{"text_format":"1","workbook":"xlsx","n_sheets":25,"sheets":["GUIA PARA PREENCHIMENTO","MODELO PROPOSTA","Remunerações","Resumo","1","2","3","4","5","6","Dados Gerais","Encargos Sociais","BDI","Sobreaviso","Uniformes","Mat Perm","EPI","Mat Cons","Não Rel - EPI","SREP","Not. Demanda","Equip Rel","Não Rel - Mat","Não Rel - Equip","Não Rel - Depr"],"not_rendered":{"charts":0,"images":5,"macros":1,"external_links":2,"defined_names":29,"comments":1,"pivot_tables":0},"unopened":[],"bounds":{"document_bytes":16777216,"sheet_cells":100000,"rows_first":2000,"rows_last":500,"rows_between":2000,"halvings":0,"cell_chars":16384,"cell_head_chars":4096},"cells_cut":0,"cells_raw":0,"read":"whole","date_system":"1900"}

{"sheet":"GUIA PARA PREENCHIMENTO","index":0,"n_rows":5,"n_cols":1,"rows_kept":5,"cut":false,"hidden":false,"merged":[]}
["GUIA PARA PREENCHIMENTO"]
[]
["1 - Preencher apenas as guias azuis:"]
[]
["2 - Recomendamos preencher somente as células com fundo azul claro. As demais possuem fórmulas e sugerimos não alterá-las."]

{"sheet":"MODELO PROPOSTA","index":1,"n_rows":64,"n_cols":2,"rows_kept":64,"cut":false,"hidden":false,"merged":[[55,1,55,9],[58,1,58,9],[59,1,59,9],[60,1,60,9],[63,1,63,9],[54,1,54,4],[54,5,54,9],[49,1,49,9],[51,1,51,9],[52,1,52,4],[52,5,52,9],[53,1,53,4],[53,5,53,9],[33,1,33,9],[34,6,34,10],[35,1,35,9],[36,1,36,9],[37,1,37,9],[38,1,38,9],[42,1,42,9],[44,1,44,9],[45,1,45,9],[46,1,46,9],[29,1,29,4],[29,5,29,9],[30,1,30,4],[30,5,30,9],[31,1,31,4],[31,5,31,9],[26,1,26,4],[26,5,26,9],[27,1,27,4],[27,5,27,9],[28,1,28,4],[28,5,28,9],[25,1,25,4],[25,5,25,9],[10,1,10,9],[11,1,11,9],[12,1,12,9],[14,1,14,9],[15,1,15,9],[16,1,16,2],[17,1,18,9],[19,1,19,9],[21,1,21,9],[22,1,22,9],[23,1,23,9],[9,1,9,9],[1,1,1,9],[4,1,4,9],[6,1,6,9],[7,1,7,9],[8,1,8,9]]}
[]
[null,"MODELO DA PROPOSTA COMPLETA"]
[]
[null,"."]
[null,"I – FORMALIZAÇÃO"]
[]
[null,"PREGÃO ELETRÔNICO N. 66/22"]
[null,"OBJETO: Prestação de serviços continuados, por empresa especializada, referentes a apoio a Processos, Tratamento de Dados e Inovação em Tecnologia da Informação, com dedicação exclusiva de profissionais, pelo período de 12 (doze) meses"]
[null,"LICITANTE: _____________________________________________________"]
[null,"CNPJ: ________________________________________________________"]
[null,"ENDEREÇO COMPLETO: _________________________________________"]
[null,"TELEFONE:_____________________________________________________"]
[null,"E-MAIL: ________________________________________________________"]
[]
[null,"Apresentamos nossa proposta para o item único da presente licitação, de acordo com as disposições do Edital."]
[null,"Decorre do conteúdo da presente proposta a explicitação do seguinte PREÇO DE JULGAMENTO (GLOBAL) PARA O ITEM:"]
[null,{"$f":"Resumo!H72","v":9709442.501712}]
[null,{"$f":"Extenso_Valor(B17)","v":"nove milhões, setecentos e nove mil, quatrocentos e quarenta e dois reais e cinquenta centavos"}]
[]
[null,"(por extenso)"]
[]
[null,"No valor proposto estão incluídos todos os custos e todas as despesas, diretas e indiretas, para a execução dos serviços objeto da licitação, em conformidade com as especificações e demais condições e exigências constantes do Edital."]
[null,"Informamos que eventuais rubricas dispostas em Acordo ou Convenção Coletiva de Trabalho que não se relacionem ao custo direto da venda do serviço, tais como “Participação nos Resultados” e “Abono substitutivo de Participação nos Resultados”, serão consideradas nos custos indiretos da proposta."]
[null,"O prazo de validade da presente proposta é de ______ (por extenso) dias. (observado o disposto no Título 11 do Edital)."]
[]
[null,"Convenção coletiva de trabalho ou a norma coletiva a que estamos obrigados:"]
[null,"Data-Base:"]
[null,"Número do Registro SRT:"]
[null,"Regime de tributação da empresa:"]
[null,"Empresa é beneficiada pela desoneração da folha de pagamento instituída pela Lei n. 12.546, de 2001, alterada pela Lei n. 13.161, de 2015?"]
[null,"Empresa adere ao PAT (Programa de Alimentação do Trabalhador)?"]
[null,"(Se adere ao PAT): Os valores do auxílio-alimentação apresentados na presente proposta correspondem somente aos efetivamente pagos pela empresa aos empregados?"]
[]
[null,"DECLARAÇÕES"]
[]
[null,"A SEREM PRESTADAS SOMENTE NA HIPÓTESE DE LICITANTE MICROEMPRESA OU EMPRESA DE PEQUENO PORTE, EM CONFORMIDADE COM OS ARTIGOS 17, 18, 30 E 31 DA LEI COMPLEMENTAR N. 123, de 2006, E O ACÓRDÃO TCU 2798/2010-PLENÁRIO"]
[null,"Declaramos que:"]
[null,"a)   em se tratando dos serviços vedados descritos no artigo 17 da Lei Complementar n. 123, de 2006, notadamente os descritos no inciso XII (cessão ou locação de mão de obra), ressalvados os serviços listados nos parágrafos 5o-B a 5o-E do artigo 18 da referida Lei, a proposta apresentada não contempla qualquer benefício tributário referente ao SIMPLES NACIONAL, conforme os subitens 5.7 e 5.8 do Edital;"]
[null,"b)   na hipótese de contratação desta Microempresa ou Empresa de Pequeno Porte inscrita no SIMPLES NACIONAL e executora de atividade vedada, ficamos sujeitos à exclusão obrigatória no SIMPLES NACIONAL a contar do mês seguinte ao da contratação, em consequência do que dispõem o artigo 17, inciso XII e o artigo 31, inciso II da Lei Complementar n, 123, de 2006, devendo entregar à Câmara dos Deputados, à título de comprovação, cópia de ofício – com comprovante de entrega e recebimento, que comunique a assinatura do contrato de prestação de serviços mediante cessão de mão de obra e encaminhado pela contratada à Receita Federal do Brasil até o último dia útil do mês subsequente ao da contratação, consoante artigo 30, § 1º, inciso II da Lei Complementar n. 123, de 2006."]
[]
[]
[]
[null,"A SEREM PRESTADAS SOMENTE NA HIPÓTESE DE LICITANTE BENEFICIADA PELA DESONERAÇÃO DA FOLHA DE PAGAMENTO INSTITUÍDA PELA LEI N. 12.546, DE 2011, ALTERADA PELA LEI N. 13.161, DE 2015. "]
[]
[null,"Declaramos, sob as penas da Lei, que:"]
[null,"a)   recolhemos a contribuição previdenciária incidente sobre o valor da receita bruta, em substituição às contribuições previdenciárias incidentes sobre a folha de pagamento, previstas nos incisos I e III do caput do artigo 22 da Lei n. 8.212, de 24 de julho de 1991, na forma do caput do artigo 7º (ou 8º) da Lei n. 12.546, de 14 de dezembro de 2011, alterada pela Lei n. 13.161, de 31 de agosto de 2015;"]
[null,"b)   temos ciência que nossa manifestação, conforme alínea “a” anterior, será remetida à Receita Federal do Brasil e que, em caso de constatação de falsidade, estará sujeita às sanções administrativas cabíveis, sem prejuízo do encaminhamento dos documentos ao Ministério Público para apuração de eventual responsabilidade criminal desta declarante."]
[]
[]
[null,"É OBRIGATÓRIA A COMPROVAÇÃO A QUE SE REFERE A ALÍNEA “A” DO SUBITEM 5.9.5 DO TÍTULO 5 DO EDITAL."]
[]
[null,"DADOS PARA ASSINATURA DO CONTRATO"]
[null,"Nome do signatário"]
[null,"Cargo"]
[null,"Qualificação\n(Naturalidade e domicílio)"]
[null,"OBS.: O signatário deve possuir poderes de administração estabelecidos em contrato social e/ou possuir procuração com poderes para assinar contratos em nome da empresa. \nA documentação comprobatória deverá ser encaminhada quando da assinatura do contrato."]
[]
[]
[null,"Brasília,     de                     de 2022."]
[]
[null,"Assinatura do representante legal da empresa"]
[]
[]
[null,"Nome do representante legal da empresa"]

{"sheet":"Remunerações","index":2,"n_rows":12,"n_cols":11,"rows_kept":12,"cut":false,"hidden":false,"merged":[[0,1,0,10]]}
[null,"QUADRO DE REMUNERAÇÕES"]
[]
[null,null,"ITEM","POSTO DE TRABALHO","QUANTIDADE","SALÁRIO","ADICIONAL DE PERICULOSIDADE","ADICIONAL DE INSALUBRIDADE","ADICIONAL NOTURNO","OUTROS","SALÁRIO COM ADICIONAIS"]
[null,null,null,"POSTO DE TRABALHO - EQUIPE DE TRABALHO"]
[null,null,1,{"$f":"HLOOKUP($C5,'Dados Gerais'!$D$5:$I$68,6)","v":"Analista de TI - Agile Master - sênior"},{"$f":"HLOOKUP($C5,'Dados Gerais'!$D$5:$I$68,10)","v":8},{"$f":"HLOOKUP($C5,'Dados Gerais'!$D$5:$H$68,8)","v":11027},{"$f":"HLOOKUP($C5,'Dados Gerais'!$D$5:$H$68,26)","v":0},{"$f":"HLOOKUP($C5,'Dados Gerais'!$D$5:$H$68,32)","v":0},{"$f":"HLOOKUP($C5,'Dados Gerais'!$D$5:$H$68,47)","v":0},{"$f":"HLOOKUP($C5,'Dados Gerais'!$D$5:$H$68,34)","v":0},{"$f":"SUM(F5:J5)","v":11027}]
[null,null,2,{"$f":"HLOOKUP($C6,'Dados Gerais'!$D$5:$I$68,6)","v":"Analista de TI - Engenheiro de Dados - sênior"},{"$f":"HLOOKUP($C6,'Dados Gerais'!$D$5:$I$68,10)","v":5},{"$f":"HLOOKUP($C6,'Dados Gerais'!$D$5:$H$68,8)","v":13998.55},{"$f":"HLOOKUP($C6,'Dados Gerais'!$D$5:$H$68,26)","v":0},{"$f":"HLOOKUP($C6,'Dados Gerais'!$D$5:$H$68,32)","v":0},{"$f":"HLOOKUP($C6,'Dados Gerais'!$D$5:$H$68,47)","v":0},{"$f":"HLOOKUP($C6,'Dados Gerais'!$D$5:$H$68,34)","v":0},{"$f":"SUM(F6:J6)","v":13998.55}]
[null,null,3,{"$f":"HLOOKUP($C7,'Dados Gerais'!$D$5:$I$68,6)","v":"Analista de TI - Analista de Dados - sênior"},{"$f":"HLOOKUP($C7,'Dados Gerais'!$D$5:$I$68,10)","v":9},{"$f":"HLOOKUP($C7,'Dados Gerais'!$D$5:$H$68,8)","v":9747.5400000000009},{"$f":"HLOOKUP($C7,'Dados Gerais'!$D$5:$H$68,26)","v":0},{"$f":"HLOOKUP($C7,'Dados Gerais'!$D$5:$H$68,32)","v":0},{"$f":"HLOOKUP($C7,'Dados Gerais'!$D$5:$H$68,47)","v":0},{"$f":"HLOOKUP($C7,'Dados Gerais'!$D$5:$H$68,34)","v":0},9747.5400000000009]
[null,null,4,{"$f":"HLOOKUP($C8,'Dados Gerais'!$D$5:$I$68,6)","v":"Analista de TI - Arquiteto de Dados - sênior"},{"$f":"HLOOKUP($C8,'Dados Gerais'!$D$5:$I$68,10)","v":6},{"$f":"HLOOKUP($C8,'Dados Gerais'!$D$5:$H$68,8)","v":11079.73},{"$f":"HLOOKUP($C8,'Dados Gerais'!$D$5:$H$68,26)","v":0},{"$f":"HLOOKUP($C8,'Dados Gerais'!$D$5:$H$68,32)","v":0},{"$f":"HLOOKUP($C8,'Dados Gerais'!$D$5:$H$68,47)","v":0},{"$f":"HLOOKUP($C8,'Dados Gerais'!$D$5:$H$68,34)","v":0},11079.73]
[null,null,5,{"$f":"HLOOKUP($C9,'Dados Gerais'!$D$5:$I$68,6)","v":"Analista de TI - Planejamento e Processos Digitais - sênior"},{"$f":"HLOOKUP($C9,'Dados Gerais'!$D$5:$I$68,10)","v":4},{"$f":"HLOOKUP($C9,'Dados Gerais'!$D$5:$H$68,8)","v":8369.94},{"$f":"HLOOKUP($C9,'Dados Gerais'!$D$5:$H$68,26)","v":0},{"$f":"HLOOKUP($C9,'Dados Gerais'!$D$5:$H$68,32)","v":0},{"$f":"HLOOKUP($C9,'Dados Gerais'!$D$5:$H$68,47)","v":0},{"$f":"HLOOKUP($C9,'Dados Gerais'!$D$5:$H$68,34)","v":0},{"$f":"SUM(F9:J9)","v":8369.94}]
[null,null,6,{"$f":"HLOOKUP($C10,'Dados Gerais'!$D$5:$I$68,6)","v":"Analista de Design e Cultura Digital - sênior"},{"$f":"HLOOKUP($C10,'Dados Gerais'!$D$5:$I$68,10)","v":2},{"$f":"HLOOKUP($C10,'Dados Gerais'!$D$5:$I$68,8)","v":7036.27},{"$f":"HLOOKUP($C10,'Dados Gerais'!$D$5:$H$68,26)","v":0},{"$f":"HLOOKUP($C10,'Dados Gerais'!$D$5:$H$68,32)","v":0},{"$f":"HLOOKUP($C10,'Dados Gerais'!$D$5:$H$68,47)","v":0},{"$f":"HLOOKUP($C10,'Dados Gerais'!$D$5:$H$68,34)","v":0},7036.27]
[]
[null,null,null,"TOTAL DE POSTOS",{"$f":"SUM(E5:E11)","v":34}]

{"sheet":"Resumo","index":3,"n_rows":72,"n_cols":11,"rows_kept":72,"cut":false,"hidden":false,"merged":[[2,1,2,8],[17,1,17,8],[32,1,32,8],[59,3,59,7],[69,3,69,7]]}
[]
[]
[null,"RESUMO - TOTAIS MENSAIS - FATURA ORDINÁRIA (SEM O 13º E SEM OS ITENS SOB DEMANDA)"]
[]
[]
[null,null,"ITEM","POSTO DE TRABALHO","QUANTIDADE","PREÇO UNIT       (SEM O 13º)","DESTAQUE DO 13º","PREÇO POR EMPREGADO","PREÇO TOTAL (MENSAL)"]
[null,null,"POSTO DE TRABALHO - EQUIPE DE TRABALHO"]
[null,null,1,{"$f":"HLOOKUP(C8,'Dados Gerais'!$D$5:$BH$10,6)","v":"Analista de TI - Agile Master - sênior"},{"$f":"HLOOKUP(C8,'Dados Gerais'!$D$5:$BH$14,10)","v":8},{"$f":"'1'!E105","v":23065.489880999998},0,{"$f":"G8+F8","v":23065.489880999998},{"$f":"H8*E8","v":184523.91904799998}]
[null,null,2,{"$f":"HLOOKUP(C9,'Dados Gerais'!$D$5:$BH$10,6)","v":"Analista de TI - Engenheiro de Dados - sênior"},{"$f":"HLOOKUP(C9,'Dados Gerais'!$D$5:$BH$14,10)","v":5},{"$f":"'2'!E105","v":28981.288916999994},0,28981.288916999994,144906.44458499996]
[null,null,3,{"$f":"HLOOKUP(C10,'Dados Gerais'!$D$5:$BH$10,6)","v":"Analista de TI - Analista de Dados - sênior"},{"$f":"HLOOKUP(C10,'Dados Gerais'!$D$5:$BH$14,10)","v":9},{"$f":"'3'!E105","v":20518.327430999998},0,20518.327430999998,184664.946879]
[null,null,4,{"$f":"HLOOKUP(C11,'Dados Gerais'!$D$5:$BH$10,6)","v":"Analista de TI - Arquiteto de Dados - sênior"},{"$f":"HLOOKUP(C11,'Dados Gerais'!$D$5:$BH$14,10)","v":6},{"$f":"'4'!E105","v":23170.466151000001},0,23170.466151000001,139022.796906]
[null,null,5,{"$f":"HLOOKUP(C12,'Dados Gerais'!$D$5:$BH$10,6)","v":"Analista de TI - Planejamento e Processos Digitais - sênior"},{"$f":"HLOOKUP(C12,'Dados Gerais'!$D$5:$BH$14,10)","v":4},{"$f":"'5'!E105","v":17775.698913},0,17775.698913,71102.795652000001]
[null,null,6,{"$f":"HLOOKUP(C13,'Dados Gerais'!$D$5:$BH$10,6)","v":"Analista de Design e Cultura Digital - sênior"},{"$f":"HLOOKUP(C13,'Dados Gerais'!$D$5:$BH$14,10)","v":2},{"$f":"'6'!E105","v":15120.647703000002},0,15120.647703000002,30241.295406000005]
[]
[null,null,null,"TOTAL MENSAL - SALÁRIOS",null,null,null,null,{"$f":"SUM(I8:I14)","v":754462.19847599999}]
[]
[]
[null,"RESUMO - TOTAIS MENSAIS - DESTAQUE DO 13º SALÁRIO"]
[]
[]
[null,null,"ITEM","POSTO DE TRABALHO","QUANTIDADE","PREÇO UNIT       (SEM O 13º)","DESTAQUE DO 13º","PREÇO POR EMPREGADO","PREÇO TOTAL (MENSAL)"]
[null,null,"POSTO DE TRABALHO - EQUIPE DE TRABALHO"]
[null,null,1,{"$f":"D8","v":"Analista de TI - Agile Master - sênior"},8,0,{"$f":"'1'!F113","v":1674.35},{"$f":"G23+F23","v":1674.35},{"$f":"H23*E23","v":13394.8}]
[null,null,2,"Analista de TI - Engenheiro de Dados - sênior",5,0,{"$f":"'2'!F113","v":2125.56},2125.56,10627.8]
[null,null,3,"Analista de TI - Analista de Dados - sênior",9,0,{"$f":"'3'!F113","v":1480.09},1480.09,13320.81]
[null,null,4,"Analista de TI - Arquiteto de Dados - sênior",6,0,{"$f":"'4'!F113","v":1682.36},1682.36,10094.16]
[null,null,5,"Analista de TI - Planejamento e Processos Digitais - sênior",4,0,{"$f":"'5'!F113","v":1270.9099999999999},1270.9099999999999,5083.6399999999994]
[null,null,6,"Analista de Design e Cultura Digital - sênior",2,0,{"$f":"'6'!F113","v":1068.4000000000001},1068.4000000000001,2136.8000000000002]
[]
[null,null,null,"TOTAL MENSAL - DESTAQUE DO 13º",null,null,null,null,{"$f":"SUM(I23:I29)","v":54658.009999999995}]
[]
[]
[null,"RESUMO - TOTAIS MENSAIS - FATURA ORDINÁRIA TOTAL"]
[]
[]
[null,null,"ITEM","POSTO DE TRABALHO","QUANTIDADE","PREÇO UNIT       (SEM O 13º)","DESTAQUE DO 13º","PREÇO POR EMPREGADO","PREÇO TOTAL (MENSAL)"]
[null,null,"POSTO DE TRABALHO - EQUIPE DE TRABALHO"]
[null,null,1,{"$f":"D23","v":"Analista de TI - Agile Master - sênior"},8,{"$f":"F8","v":23065.489880999998},{"$f":"G23","v":1674.35},{"$f":"G38+F38","v":24739.839880999996},{"$f":"H38*E38","v":197918.71904799997}]
[null,null,2,"Analista de TI - Engenheiro de Dados - sênior",5,28981.288916999994,2125.56,31106.848916999996,155534.24458499998]
[null,null,3,"Analista de TI - Analista de Dados - sênior",9,20518.327430999998,1480.09,21998.417430999998,197985.75687899999]
[null,null,4,"Analista de TI - Arquiteto de Dados - sênior",6,23170.466151000001,1682.36,24852.826151000001,149116.95690600001]
[null,null,5,"Analista de TI - Planejamento e Processos Digitais - sênior",4,17775.698913,1270.9099999999999,19046.608913,76186.435652]
[null,null,6,"Analista de Design e Cultura Digital - sênior",2,15120.647703000002,1068.4000000000001,16189.047703000002,32378.095406000004]
[]
[null,null,null,"TOTAL MENSAL - SALÁRIOS",null,null,null,null,{"$f":"SUM(I38:I44)","v":809120.208476}]
[]
[null,null,"ITEM","DESCRIÇÃO",null,null,null,null,"PREÇO TOTAL (MENSAL)"]
[null,null,"EQUIP","EQUIPAMENTOS NÃO RELACIONADOS DIRETAMENTE A UM POSTO DE TRABALHO",null,null,null,null,{"$f":"'[1]Não Rel - Depr'!M150","v":0}]
[null,null,"HEXTRA","HORAS EXTRAS",null,null,null,null,{"$f":"'[1]Não Rel - Depr'!M150","v":0}]
[null,null,"HNOT","ADICIONAL DE HORAS NOTURNAS (SOB DEMANDA)",null,null,null,null,{"$f":"'[1]Not. Demanda'!G142","v":0}]
[null,null,"SREP","SISTEMA DE REGISTRO ELETRÔNICO DE PRESENÇA - SREP",null,null,null,null,0]
[null,null,"EPI - N.REL","EQUIPAMENTOS DE PROTEÇÃO INDIVIDUAL NÃO RELACIONADOS DIRETAMENTE A UM POSTO DE TRABALHO",null,null,null,null,{"$f":"'[1]Não Rel - EPI'!K97","v":0}]
[null,null,"FERR - N.REL","FERRAMENTAS NÃO RELACIONADAS DIRETAMENTE A UM POSTO DE TRABALHO",null,null,null,null,{"$f":"'[1]Não Rel - Depr'!M151","v":0}]
[null,null,"MAT SOB DEMANDA","MATERIAIS NÃO RELACIONADOS DIRETAMENTE A UM POSTO DE TRABALHO - AQUISIÇÃO SOB DEMANDA",null,null,null,null,{"$f":"'[1]Não Rel - Mat Consumo'!L134","v":0}]
[null,null,"MAT CONS DURAVEL SOB DEMANDA","MATERIAIS DE CONSUMO DURÁVEL NÃO RELACIONADOS DIRETAMENTE A UM POSTO DE TRABALHO - AQUISIÇÃO SOB DEMANDA",null,null,null,null,{"$f":"'[1]Não Rel - Mat Cons Durável'!L120","v":0}]
[null,null,"EQ SOB DEMANDA","SERVIÇOS NÃO RELACIONADOS DIRETAMENTE A UM POSTO DE TRABALHO - AQUISIÇÃO SOB DEMANDA",null,null,null,null,{"$f":"'[1]Não Rel - Serviços'!K96","v":0}]
[]
[null,null,null,"TOTAL MENSAL - ITENS SOB DEMANDA",null,null,null,null,{"$f":"SUM(I48:I57)","v":0},null,{"$f":"(I58+I45)*12","v":9709442.501712}]
[]
[null,null,null,"TOTAL MENSAL - ITENS ORDINÁRIOS"]
[null,null,null,"DESCRIÇÃO",null,null,null,"VALOR"]
[null,null,null,"Postos de Trabalho - Inclusive 13º Salário",null,null,null,{"$f":"I45","v":809120.208476}]
[null,null,null,"Adicional de Horas Noturnas",null,null,null,{"$f":"I50","v":0}]
[null,null,null,"Sistema de Registro Eletrônico de Presença - SREP",null,null,null,{"$f":"I51","v":0}]
[null,null,null,"Equipamentos de Proteção Individual não relacionados diretamente a um posto de trabalho",null,null,null,{"$f":"I52","v":0}]
[null,null,null,"Ferramentas não relacionadas diretamente a um posto de trabalho",null,null,null,{"$f":"I53","v":0}]
[]
[null,null,null,null,null,null,"TOTAL MENSAL - ITENS ORDINÁRIOS",{"$f":"SUM(H62:H67)","v":809120.208476}]
[]
[null,null,null,"TOTAL ANUAL - ITENS ORDINÁRIOS"]
[]
[null,null,null,null,null,null,"12 x TOTAL MENSAL - ITENS ORDINÁRIOS",{"$f":"H68*12","v":9709442.501712}]

{"sheet":"1","index":4,"n_rows":119,"n_cols":8,"rows_kept":119,"cut":false,"hidden":false,"merged":[[106,1,106,3],[1,1,1,5],[2,1,2,5],[7,1,7,3],[17,1,17,3],[4,1,4,2],[46,1,46,3],[56,1,56,3],[74,1,74,3],[83,1,83,3],[5,1,5,2],[39,3,39,5],[68,3,68,5]]}
[]
[null,"PLANILHA DE ESTIMATIVA DE CUSTOS"]
[null,"Padrão IN 05/2017 e IN 07/2018 - MPDG"]
[]
[null,1,null,{"$f":"HLOOKUP($B$5,'Dados Gerais'!$D$5:$BH$21,6)","v":"Analista de TI - Agile Master - sênior"},"QUANTIDADE",{"$f":"HLOOKUP($B$5,'Dados Gerais'!$D$5:$BH$21,10)","v":8}]
[null,"CCT",null,{"$f":"HLOOKUP($B$5,'Dados Gerais'!$D$5:$BH$21,16)","v":"SINDPD/DF X SINDESEI/DF 2021/2022 Nº DF000608/2021"},"DATA-BASE",{"$f":"HLOOKUP($B$5,'Dados Gerais'!$D$5:$BH$21,17)","v":"2021-05-01"}]
[]
[null,"MÓDULO 1 - COMPOSIÇÃO DA REMUNERAÇÃO",null,null,null,"Valor"]
[null,null,"A","Salário-Base",null,{"$f":"HLOOKUP($B$5,'Dados Gerais'!$D$5:$BH$21,8)","v":11027}]
[null,null,"B","Adicional de Periculosidade",null,{"$f":"HLOOKUP($B$5,'Dados Gerais'!$D$5:$BH$38,25)","v":0}]
[null,null,"C","Adicional de Insalubridade",null,{"$f":"HLOOKUP($B$5,'Dados Gerais'!$D$5:$BH$38,27)","v":0}]
[null,null,"D","Adicional Noturno",null,{"$f":"HLOOKUP($B$5,'Dados Gerais'!$D$5:$BH$51,46)","v":0},null,"* Nota 1 - O Módulo 1 refere-se ao valor mensal devido ao empregado pela prestação do serviço no período de 12 meses."]
[null,null,"E","Adicional de Hora Extra",null,{"$f":"HLOOKUP($B$5,'Dados Gerais'!$D$5:$BH$68,63)","v":0},null,"* Nota 2 - O adicional de hora extra no feriado trabalhado foi suprimido pela Lei 13.467/17"]
[null,null,"F","Outros (especificar)",null,{"$f":"HLOOKUP($B$5,'Dados Gerais'!$D$5:$BH$60,33)","v":0},null,"* Nota 3 - ART. 7º, § 2º, DA LEI Nº 605/49.Sendo mensalista o obreiro, o adicional noturno pago de forma fixa já é considerado integrado para os efeitos do pagamento do repouso semanal remunerado, nos termos do art. 7º, § 2º, da Lei nº 605/49."]
[]
[null,null,null,"TOTAL DA REMUNERAÇÃO",null,{"$f":"SUM(F9:F14)","v":11027}]
[]
[null,"MÓDULO 2 - ENCARGOS E BENEFÍCIOS ANUAIS, MENSAIS E DIÁRIOS",null,null,"Percentuais","Valor"]
[null,"Submódulo 2.1 - 13º Salário, Férias e Adicional de Férias"]
[null,null,"A","13º Salário - Calculado no Módulo 7 - Destacado",0,{"$f":"ROUND(E20*F$16,2)","v":0},null,"* Nota 1 - Provisiona-se, mensalmente, o proporcional a 1/12 dos valores referentes a gratificação natalina"]
[null,null,"B","Adicional de Férias",{"$f":"'[2]Encargos Sociais'!E30","v":3.03030303030303E-2},{"$f":"ROUND(E21*F$16,2)","v":334.15},null,"* Nota 2 - O adicional de férias contido no Submódulo 2.1 corresponde a 1/3 da remuneração que, por sua vez, é dividida por 12 contome Nota 1."]
[]
[null,"Submódulo 2.2 - Encargos Previdenciários (GPS), Fundo de Garantia por Tempo de Serviço (FGTS) e Outras Contribuições"]
[null,null,"A","INSS (art. 22, inciso I, Lei nº 8.212/91)",{"$f":"'Encargos Sociais'!E13","v":0.2},{"$f":"ROUND(E24*($F$16+$F$41+$F$73),2)","v":2516.9}]
[null,null,"B","Salário Educação (art. 3º, inciso I, Decreto nº 87.043/82)",{"$f":"'Encargos Sociais'!E14","v":2.5000000000000001E-2},{"$f":"ROUND(E25*($F$16+$F$41+$F$73),2)","v":314.61}]
[null,null,"C","SAT/RAT (art. 22, II, Lei 8.212/91 e Anexo V, Decreto 6.042/07) - Enquadramento 8211-3/00",{"$f":"'Encargos Sociais'!E15","v":0.01},125.85]
[null,null,"D","SESC ou SESI (art. 30, Lei nº 8.036/90 e art. 1º, Lei 8.154/90)",{"$f":"'Encargos Sociais'!E16","v":1.4999999999999999E-2},188.77]
[null,null,"E","SENAI ou SENAC (Decreto nº 2.318/86)",{"$f":"'Encargos Sociais'!E17","v":0.01},125.85]
[null,null,"F","SEBRAE (§ 3º, art. 8º, Lei 8.029/90, alterada pela Lei nº 8.154/90)",{"$f":"'Encargos Sociais'!E18","v":6.0000000000000001E-3},75.510000000000005]
[null,null,"G","INCRA (art. 1º, I, Decreto Lei 1.146/70 e Lei 7.787, de 30/06/89)",{"$f":"'Encargos Sociais'!E19","v":2E-3},25.17,null,"* Nota 1 - Os percentuais dos encargos previdenciários, do FGTS e demais contribuições são estabelecidos por legislação vigente."]
[null,null,"H","FGTS (Lei Complementar nº 110/01 e art. 30, Lei nº 8.036/90)",{"$f":"'Encargos Sociais'!E20","v":0.08},1006.76,null,"* Nota 2 - O SAT, a depender do grau de risco do serviço, irá variar entre 1%, para risco leve, de 2%, para risco médio, e de 3% para risco grave."]
[null,null,"I","SECONCI (Convenções Coletivas de Trabalho da construção)",{"$f":"'Encargos Sociais'!E21","v":0},0,null,"* Nota 3 - Os percentuais do Submódulo 2.2 incidem sobre o Módulo 1 e o Submódulo 2.1."]
[]
[null,"Submódulo 2.3 - Benefícios Mensais e Diários"]
[null,null,"A","Auxílio Transporte",null,{"$f":"HLOOKUP($B$5,'Dados Gerais'!$D$5:$BH$94,83)","v":0}]
[null,null,"B","Auxílio Alimentação",null,{"$f":"HLOOKUP($B$5,'Dados Gerais'!$D$5:$BH$94,90)","v":770}]
[null,null,"C","Assistência Médica e Familiar",null,{"$f":"HLOOKUP($B$5,'Dados Gerais'!$D$5:$BH$102,98)","v":96.3}]
[null,null,"D","Outros (Seguro de vida e auxílio funeral e auxílio odontológico)",null,{"$f":"HLOOKUP($B$5,'Dados Gerais'!$D$5:$BH$119,115)","v":12.39},null,"* Nota 1 - O valor informado deverá ser o custo real do benefício (descontado o valor eventualmente pago pelo empregado)."]
[null,null,null,null,null,null,null,"* Nota 2 - Observar a previsão dos benefícios contidos em Acordos, Convenções e Dissídios Coletivos de Trabalho e o disposto no art. 6º da IN 5/2017"]
[null,null,null,"QUADRO-RESUMO DO MÓDULO 2"]
[null,null,null,"2.1 - 13º Salário, Férias e Adicional de Férias - 13º Destacado - Calculado no Módulo 7 ",{"$f":"SUM(E20:E21)","v":3.03030303030303E-2},{"$f":"F20+F21","v":334.15}]
[null,null,null,"2.2 - Encargos Previdenciários (GPS), Fundo de Garantia por Tempo de Serviço (FGTS) e Contribuições",{"$f":"SUM(E24:E32)","v":0.34800000000000003},{"$f":"SUM(F24:F32)","v":4379.42}]
[null,null,null,"2.3 - Benefícios Mensais e Diários",null,{"$f":"SUM(F35:F38)","v":878.68999999999994}]
[]
[null,null,null,"TOTAL DOS ENCARGOS E BENEFÍCIOS",null,{"$f":"SUM(F41:F43)","v":5592.2599999999993}]
[]
[null,"MÓDULO 3 - PREVISÃO PARA RESCISÃO",null,null,"Percentuais","Valor"]
[null,null,"A","Aviso Prévio Indenizado (Art. 7º, inciso XXI, da CF/1988 e arts. 477, 487, §1º, e 491 da CLT)",{"$f":"'[2]Encargos Sociais'!E35","v":3.3333333333333335E-3},{"$f":"ROUND(E48*($F$16+$F$59),2)","v":40.1}]
[null,null,"B","Incidência do FGTS sobre o Aviso Prévio Indenizado (Súmula 305 TST)",{"$f":"'[2]Encargos Sociais'!E36","v":2.6666666666666668E-4},3.21,null,"* Nota 1 - Adotou-se os parâmetros do estudo do STF (http://www.stf.jus.br/arquivo/cms/sobrestfestudosci/anexo/encargos_sociais_03102007.pdf), onde 5% do pessoal é demitido pelo empregador no decurso do contrato (para estes, considerou-se o aviso prévio indenizado). Desprezou-se as demissões por justa causa e os pedidos de demissão."]
[null,null,"C","Multa do FGTS e Contribuição Social sobre o Aviso Prévio Indenizado (Art. 18, §1º, da Lei 8.036/1990 e art. 1º da LC nº 110/2001)",{"$f":"'[2]Encargos Sociais'!E37","v":1.274074074074074E-3},15.33,null,"* Nota 2 - No cálculo do percentual, considerou-se 36 dias, correspondendo à metade da duração média dos contratos (2 anos)"]
[null,null,"D","Aviso Prévio Trabalhado (Art. 488, parágrafo único, CLT)",{"$f":"'[2]Encargos Sociais'!E38","v":1.0833333333333334E-2},130.32,null,"* Nota 3 - Incide sobre a Remuneração + 13º salário (1/12) + Férias (1/12) + Adicional de Férias (1/36) x 50% multa (40% para o empregado e 10% de contribuição social) x 8% FGTS"]
[null,null,"E","Incidência de GPS, FGTS e outras contribuições sobre o Aviso Prévio Trabalhado",{"$f":"'[2]Encargos Sociais'!E39","v":3.7699999999999999E-3},45.35,null,"* Nota 4 - Os 95% restantes do cálculo, a um prazo médio de contrato de 4 anos. Assim, calcula-se 7 dias para o 1º ano de contrato e mais 3 dias para os 3 anos seguintes."]
[null,null,"F","Multa do FGTS e Contribuição Social sobre o Aviso Prévio Trabalhado",{"$f":"'[2]Encargos Sociais'!E40","v":1.1466666666666665E-2},137.94]
[]
[null,null,null,"TOTAL DE PREVISÃO PARA RESCISÃO",null,{"$f":"SUM(F48:F53)","v":372.25}]
[]
[null,"MÓDULO 4 - CUSTO DE REPOSIÇÃO DO PROFISSIONAL AUSENTE",null,null,"Percentuais","Valor"]
[null,"Submódulo 4.1 - Ausências Legais"]
[null,null,"A","Férias (Arts. 129 e 130, inc. I, da CLT)",{"$f":"'[2]Encargos Sociais'!E24","v":9.0909090909090912E-2},{"$f":"ROUND(E59*$F$16,2)","v":1002.45},null,"* Nota 1 - As alíneas “A” a “F” referem-se somente ao custo que será pago ao repositor pelos dias \ntrabalhados quando da necessidade de substituir a mão de obra alocada na prestação do serviço."]
[null,null,"B","Ausências Legais (Arts. 131 e 473 da CLT)",{"$f":"'Encargos Sociais'!E25","v":7.9365079365079361E-3},{"$f":"ROUND(E60*$F$16,2)","v":87.52},null,"* Nota 2 - Adotou-se a estimativa do SINAPI de 2 dias por ano."]
[null,null,"C","Licença-Paternidade (Art. 7º, XIX, e art. 10, §1º, do ADCT, CF/1988 e Art. 1º, II, da Lei 11.770/2008)",{"$f":"'Encargos Sociais'!E26","v":8.2777777777777776E-4},9.1300000000000008,null,"* Nota 3 - Utilizada a proporção de 50% para homens, 5 dias de afastamento, e a probabilidade de um trabalhador requerer a Licença Paternidade em 5,22%, conforme SINAPI (citando dados da PNAD 2015)"]
[null,null,"D","Ausência por Acidente de Trabalho (Art. 131, III, da CLT)",{"$f":"'Encargos Sociais'!E27","v":8.541666666666667E-4},9.42,null,"* Nota 4 - Utilzada a estatística de 1,96% dos contribuintes beneficiados com a emissão do auxílio, conforme Anuário Estatístico da Previdência Social. Afastamento de 15 dias a cargo da empresa."]
[null,null,"E","Afastamento Maternidade (Art. 71 da Lei nº 8.213/1991)",{"$f":"'Encargos Sociais'!E28","v":3.2925925925925922E-3},36.31,null,"* Nota 5 - Utilizada a proporção de 50% para mulheres, 180 dias de afastamento, e a probabilidade de uma trabalhadora requerer a Licença Maternidade em 4,91%, conforme SINAPI (citando dados do IBGE 2016)"]
[null,null,"F","Auxílio Enfermidade - Doença (Art. 59 da Lei nº 8.213/1991)",{"$f":"'Encargos Sociais'!E29","v":7.1222222222222225E-3},78.540000000000006,null,"* Nota 6 - Utilizada a estatística de 3,37% dos contribuintes beneficiados com o auxílio, conforme Anuário Estatístico da Previdência Social de 2015 (acrescidos de 2 dias ao ano, para os quais o trabalhador nem requer o benefício da Previdência - conforme SINAPI)"]
[]
[null,"Submódulo 4.2 - Intrajornada"]
[null,null,"A","Intervalo para repouso ou alimentação",{"$f":"'Encargos Sociais'!E32","v":0},{"$f":"ROUND(E67*$F$16,2)","v":0}]
[]
[null,null,null,"QUADRO-RESUMO DO MÓDULO 4",null,"Valor"]
[null,null,null,"4.1 - Ausências Legais",{"$f":"SUM(E59:E64)","v":0.11094235810485811},{"$f":"ROUND(E70*$F$16,2)","v":1223.3599999999999}]
[null,null,null,"4.2 - Intrajornada",{"$f":"E67","v":0},{"$f":"ROUND(E71*$F$16,2)","v":0}]
[]
[null,null,null,"TOTAL DE PREVISÃO PARA RESCISÃO E INTERVALO INTRAJORNADA",null,{"$f":"SUM(F70:F71)","v":1223.3599999999999}]
[]
[null,"MÓDULO 5 - INSUMOS DIVERSOS",null,null,null,"Valor"]
[null,null,"A","Uniformes - aquisição",null,{"$f":"ROUND(HLOOKUP($B$5,Uniformes!K11:DZ32,3)/12,2)","v":0}]
[null,null,"B","Materiais de consumo relacionados ao posto - aquisição",null,{"$f":"ROUND(HLOOKUP(B5,'Mat Cons'!I11:DX13,3)/12,2)","v":0}]
[null,null,"C","Materiais permanentes relacionados ao posto - remuneração da sua depreciação / manutenção",null,{"$f":"HLOOKUP(B5,'Mat Perm'!Q11:EF13,3)","v":0}]
[null,null,"D","Equipamentos relacionados ao posto - remuneração da sua depreciação / manutenção",null,{"$f":"HLOOKUP(B5,'Equip Rel'!Q11:EF13,3)","v":0}]
[null,null,"E","Equipamentos de Proteção Individual - EPI - aquisição",null,{"$f":"ROUND(HLOOKUP(B5,EPI!I11:DX13,3)/12,2)","v":0}]
[]
[null,null,null,"TOTAL DE INSUMOS DIVERSOS",null,{"$f":"SUM(F76:F81)","v":0},null,"* Nota - Valores mensais por empregado"]
[]
[null,"MÓDULO 6 - CUSTOS INDIRETOS, TRIBUTOS E LUCRO - BDI",null,null,"Percentuais","Valor"]
[null,null,"A","Custos Indiretos",{"$f":"BDI!E6","v":6.0999999999999999E-2}]
[null,null,"A.1","Administração Central",{"$f":"BDI!E7","v":2.5999999999999999E-2}]
[null,null,"A.2","Seguros, Garantias e Riscos",{"$f":"BDI!E8","v":3.5000000000000003E-2}]
[null,null,"B","Lucro",{"$f":"BDI!E10","v":0.04}]
[null,null,"C","Tributos",{"$f":"SUM(E90:E91)","v":0.124}]
[null,null,"C.1","Tributos Federais (COFINS, PIS e CPRB)",{"$f":"BDI!E18","v":7.3999999999999996E-2}]
[null,null,"C.2","Tributos Distritais (ISS)",{"$f":"BDI!E23","v":0.05},null,null,"* Nota - Utilizou-se o indicado pelo Sindicato da Arquitetura e da Engenharia (Sinaenco, 2008, p. 22), que adota um percentual redutor de 20% no cálculo dos custos tributários relativos às contribuições PIS e COFINS"]
[null,null,"D","Despesas Financeiras",{"$f":"BDI!E13","v":5.2519605742542552E-3}]
[]
[null,null,null,"TOTAL DE BDI",{"$f":"BDI!E26","v":0.26629999999999998},{"$f":"E94*E102","v":4850.6198809999996}]
[]
[null,null,null,"QUADRO-RESUMO DO CUSTO MENSAL POR EMPREGADO - SEM O 13º","Valor"]
[null,null,null,"Módulo 1 - Composição da Remuneração",{"$f":"F16","v":11027}]
[null,null,null,"Módulo 2 - Encargos e Benefícios Anuais, Mensais e Diários",{"$f":"F45","v":5592.2599999999993}]
[null,null,null,"Módulo 3 - Provisão para Rescisão",{"$f":"F55","v":372.25}]
[null,null,null,"Módulo 4 - Custo de Reposição do Profissional Ausente",{"$f":"F73","v":1223.3599999999999}]
[null,null,null,"Módulo 5 - Insumos Diversos",{"$f":"F82","v":0}]
[null,null,null,"SUBTOTAL (A+B+C+D+E)",{"$f":"SUM(E97:E101)","v":18214.87}]
[null,null,null,"Módulo 6 - Custos Indiretos, Tributos e Lucro",{"$f":"F94","v":4850.6198809999996}]
[]
[null,null,null,"TOTAL DO POSTO",{"$f":"SUM(E102:E103)","v":23065.489880999998}]
[]
[null,"MÓDULO 7 - DESTAQUE DO MÓDULO 2 - 13º SALÁRIO",null,null,"Percentuais","Valor"]
[null,null,"A","13º Salário",{"$f":"'[2]Encargos Sociais'!E31","v":8.3333333333333329E-2},{"$f":"ROUND(E108*F$16,2)","v":918.92}]
[null,null,"B","Encargos Sociais sobre o 13º Salário - Taxa calculada no SUBMÓDULO 2.2",{"$f":"SUM($E$24:$E$32)","v":0.34800000000000003},{"$f":"ROUND(E109*$F$108,2)","v":319.77999999999997},null,"* Nota 1 - Provisiona-se, mensalmente, o proporcional a 1/12 dos valores referentes a gratificação natalina"]
[null,null,"C","Reincidência de férias sobre o 13º Salário",{"$f":"E59","v":9.0909090909090912E-2},{"$f":"ROUND(E110*$F$108,2)","v":83.54}]
[null,null,"D","BDI sobre o 13º Salário - Taxa calculada no MÓDULO 6",{"$f":"E94","v":0.26629999999999998},{"$f":"ROUND(E111*($F$108+$F$109+$F$110),2)","v":352.11}]
[]
[null,null,null,"TOTAL DO DESTAQUE DO 13º SALÁRIO",null,{"$f":"SUM(F108:F111)","v":1674.35}]
[]
[null,null,null,"QUADRO-RESUMO DO CUSTO MENSAL POR EMPREGADO","Valor"]
[null,null,null,"Custo total - sem o 13º Salário",{"$f":"E105","v":23065.489880999998}]
[null,null,null,"Destaque do 13º Salário (valor mensal)",{"$f":"F113","v":1674.35}]
[]
[null,null,null,"TOTAL DO POSTO",{"$f":"E116+E117","v":24739.839880999996}]

{"sheet":"2","index":5,"n_rows":119,"n_cols":8,"rows_kept":119,"cut":false,"hidden":false,"merged":[[1,1,1,5],[2,1,2,5],[4,1,4,2],[5,1,5,2],[7,1,7,3],[17,1,17,3],[106,1,106,3],[39,3,39,5],[46,1,46,3],[56,1,56,3],[68,3,68,5],[74,1,74,3],[83,1,83,3]]}
[]
[null,"PLANILHA DE ESTIMATIVA DE CUSTOS"]
[null,"Padrão IN 05/2017 e IN 07/2018 - MPDG"]
[]
[null,2,null,{"$f":"HLOOKUP($B$5,'Dados Gerais'!$D$5:$BH$21,6)","v":"Analista de TI - Engenheiro de Dados - sênior"},"QUANTIDADE",{"$f":"HLOOKUP($B$5,'Dados Gerais'!$D$5:$BH$21,10)","v":5}]
[null,"CCT",null,{"$f":"HLOOKUP($B$5,'Dados Gerais'!$D$5:$BH$21,16)","v":"SINDPD/DF X SINDESEI/DF 2021/2022 Nº DF000608/2021"},"DATA-BASE",{"$f":"HLOOKUP($B$5,'Dados Gerais'!$D$5:$BH$21,17)","v":"2021-05-01"}]
[]
[null,"MÓDULO 1 - COMPOSIÇÃO DA REMUNERAÇÃO",null,null,null,"Valor"]
[null,null,"A","Salário-Base",null,{"$f":"HLOOKUP($B$5,'Dados Gerais'!$D$5:$BH$21,8)","v":13998.55}]
[null,null,"B","Adicional de Periculosidade",null,{"$f":"HLOOKUP($B$5,'Dados Gerais'!$D$5:$BH$38,25)","v":0}]
[null,null,"C","Adicional de Insalubridade",null,{"$f":"HLOOKUP($B$5,'Dados Gerais'!$D$5:$BH$38,27)","v":0}]
[null,null,"D","Adicional Noturno",null,{"$f":"HLOOKUP($B$5,'Dados Gerais'!$D$5:$BH$51,46)","v":0},null,"* Nota 1 - O Módulo 1 refere-se ao valor mensal devido ao empregado pela prestação do serviço no período de 12 meses."]
[null,null,"E","Adicional de Hora Extra",null,{"$f":"HLOOKUP($B$5,'Dados Gerais'!$D$5:$BH$68,63)","v":0},null,"* Nota 2 - O adicional de hora extra no feriado trabalhado foi suprimido pela Lei 13.467/17"]
[null,null,"F","Outros (especificar)",null,{"$f":"HLOOKUP($B$5,'Dados Gerais'!$D$5:$BH$60,33)","v":0},null,"* Nota 3 - ART. 7º, § 2º, DA LEI Nº 605/49.Sendo mensalista o obreiro, o adicional noturno pago de forma fixa já é considerado integrado para os efeitos do pagamento do repouso semanal remunerado, nos termos do art. 7º, § 2º, da Lei nº 605/49."]
[]
[null,null,null,"TOTAL DA REMUNERAÇÃO",null,{"$f":"SUM(F9:F14)","v":13998.55}]
[]
[null,"MÓDULO 2 - ENCARGOS E BENEFÍCIOS ANUAIS, MENSAIS E DIÁRIOS",null,null,"Percentuais","Valor"]
[null,"Submódulo 2.1 - 13º Salário, Férias e Adicional de Férias"]
[null,null,"A","13º Salário - Calculado no Módulo 7 - Destacado",0,{"$f":"ROUND(E20*F$16,2)","v":0},null,"* Nota 1 - Provisiona-se, mensalmente, o proporcional a 1/12 dos valores referentes a gratificação natalina"]
[null,null,"B","Adicional de Férias",{"$f":"'[2]Encargos Sociais'!E30","v":3.03030303030303E-2},{"$f":"ROUND(E21*F$16,2)","v":424.2},null,"* Nota 2 - O adicional de férias contido no Submódulo 2.1 corresponde a 1/3 da remuneração que, por sua vez, é dividida por 12 contome Nota 1."]
[]
[null,"Submódulo 2.2 - Encargos Previdenciários (GPS), Fundo de Garantia por Tempo de Serviço (FGTS) e Outras Contribuições"]
[null,null,"A","INSS (art. 22, inciso I, Lei nº 8.212/91)",{"$f":"'Encargos Sociais'!E13","v":0.2},{"$f":"ROUND(E24*($F$16+$F$41+$F$73),2)","v":3195.16}]
[null,null,"B","Salário Educação (art. 3º, inciso I, Decreto nº 87.043/82)",{"$f":"'Encargos Sociais'!E14","v":2.5000000000000001E-2},{"$f":"ROUND(E25*($F$16+$F$41+$F$73),2)","v":399.39}]
[null,null,"C","SAT/RAT (art. 22, II, Lei 8.212/91 e Anexo V, Decreto 6.042/07) - Enquadramento 8211-3/00",{"$f":"'Encargos Sociais'!E15","v":0.01},159.76]
[null,null,"D","SESC ou SESI (art. 30, Lei nº 8.036/90 e art. 1º, Lei 8.154/90)",{"$f":"'Encargos Sociais'!E16","v":1.4999999999999999E-2},239.64]
[null,null,"E","SENAI ou SENAC (Decreto nº 2.318/86)",{"$f":"'Encargos Sociais'!E17","v":0.01},159.76]
[null,null,"F","SEBRAE (§ 3º, art. 8º, Lei 8.029/90, alterada pela Lei nº 8.154/90)",{"$f":"'Encargos Sociais'!E18","v":6.0000000000000001E-3},95.85]
[null,null,"G","INCRA (art. 1º, I, Decreto Lei 1.146/70 e Lei 7.787, de 30/06/89)",{"$f":"'Encargos Sociais'!E19","v":2E-3},31.95,null,"* Nota 1 - Os percentuais dos encargos previdenciários, do FGTS e demais contribuições são estabelecidos por legislação vigente."]
[null,null,"H","FGTS (Lei Complementar nº 110/01 e art. 30, Lei nº 8.036/90)",{"$f":"'Encargos Sociais'!E20","v":0.08},1278.06,null,"* Nota 2 - O SAT, a depender do grau de risco do serviço, irá variar entre 1%, para risco leve, de 2%, para risco médio, e de 3% para risco grave."]
[null,null,"I","SECONCI (Convenções Coletivas de Trabalho da construção)",{"$f":"'Encargos Sociais'!E21","v":0},0,null,"* Nota 3 - Os percentuais do Submódulo 2.2 incidem sobre o Módulo 1 e o Submódulo 2.1."]
[]
[null,"Submódulo 2.3 - Benefícios Mensais e Diários"]
[null,null,"A","Auxílio Transporte",null,{"$f":"HLOOKUP($B$5,'Dados Gerais'!$D$5:$BH$94,83)","v":0}]
[null,null,"B","Auxílio Alimentação",null,{"$f":"HLOOKUP($B$5,'Dados Gerais'!$D$5:$BH$94,90)","v":770}]
[null,null,"C","Assistência Médica e Familiar",null,{"$f":"HLOOKUP($B$5,'Dados Gerais'!$D$5:$BH$102,98)","v":96.3}]
[null,null,"D","Outros (Seguro de vida e auxílio funeral e auxílio odontológico)",null,{"$f":"HLOOKUP($B$5,'Dados Gerais'!$D$5:$BH$119,115)","v":12.39},null,"* Nota 1 - O valor informado deverá ser o custo real do benefício (descontado o valor eventualmente pago pelo empregado)."]
[null,null,null,null,null,null,null,"* Nota 2 - Observar a previsão dos benefícios contidos em Acordos, Convenções e Dissídios Coletivos de Trabalho e o disposto no art. 6º da IN 5/2017"]
[null,null,null,"QUADRO-RESUMO DO MÓDULO 2"]
[null,null,null,"2.1 - 13º Salário, Férias e Adicional de Férias - 13º Destacado - Calculado no Módulo 7 ",{"$f":"SUM(E20:E21)","v":3.03030303030303E-2},{"$f":"F20+F21","v":424.2}]
[null,null,null,"2.2 - Encargos Previdenciários (GPS), Fundo de Garantia por Tempo de Serviço (FGTS) e Contribuições",{"$f":"SUM(E24:E32)","v":0.34800000000000003},{"$f":"SUM(F24:F32)","v":5559.57}]
[null,null,null,"2.3 - Benefícios Mensais e Diários",null,{"$f":"SUM(F35:F38)","v":878.68999999999994}]
[]
[null,null,null,"TOTAL DOS ENCARGOS E BENEFÍCIOS",null,{"$f":"SUM(F41:F43)","v":6862.4599999999991}]
[]
[null,"MÓDULO 3 - PREVISÃO PARA RESCISÃO",null,null,"Percentuais","Valor"]
[null,null,"A","Aviso Prévio Indenizado (Art. 7º, inciso XXI, da CF/1988 e arts. 477, 487, §1º, e 491 da CLT)",{"$f":"'[2]Encargos Sociais'!E35","v":3.3333333333333335E-3},{"$f":"ROUND(E48*($F$16+$F$59),2)","v":50.9}]
[null,null,"B","Incidência do FGTS sobre o Aviso Prévio Indenizado (Súmula 305 TST)",{"$f":"'[2]Encargos Sociais'!E36","v":2.6666666666666668E-4},4.07,null,"* Nota 1 - Adotou-se os parâmetros do estudo do STF (http://www.stf.jus.br/arquivo/cms/sobrestfestudosci/anexo/encargos_sociais_03102007.pdf), onde 5% do pessoal é demitido pelo empregador no decurso do contrato (para estes, considerou-se o aviso prévio indenizado). Desprezou-se as demissões por justa causa e os pedidos de demissão."]
[null,null,"C","Multa do FGTS e Contribuição Social sobre o Aviso Prévio Indenizado (Art. 18, §1º, da Lei 8.036/1990 e art. 1º da LC nº 110/2001)",{"$f":"'[2]Encargos Sociais'!E37","v":1.274074074074074E-3},19.46,null,"* Nota 2 - No cálculo do percentual, considerou-se 36 dias, correspondendo à metade da duração média dos contratos (2 anos)"]
[null,null,"D","Aviso Prévio Trabalhado (Art. 488, parágrafo único, CLT)",{"$f":"'[2]Encargos Sociais'!E38","v":1.0833333333333334E-2},165.44,null,"* Nota 3 - Incide sobre a Remuneração + 13º salário (1/12) + Férias (1/12) + Adicional de Férias (1/36) x 50% multa (40% para o empregado e 10% de contribuição social) x 8% FGTS"]
[null,null,"E","Incidência de GPS, FGTS e outras contribuições sobre o Aviso Prévio Trabalhado",{"$f":"'[2]Encargos Sociais'!E39","v":3.7699999999999999E-3},57.57,null,"* Nota 4 - Os 95% restantes do cálculo, a um prazo médio de contrato de 4 anos. Assim, calcula-se 7 dias para o 1º ano de contrato e mais 3 dias para os 3 anos seguintes."]
[null,null,"F","Multa do FGTS e Contribuição Social sobre o Aviso Prévio Trabalhado",{"$f":"'[2]Encargos Sociais'!E40","v":1.1466666666666665E-2},175.11]
[]
[null,null,null,"TOTAL DE PREVISÃO PARA RESCISÃO",null,{"$f":"SUM(F48:F53)","v":472.55}]
[]
[null,"MÓDULO 4 - CUSTO DE REPOSIÇÃO DO PROFISSIONAL AUSENTE",null,null,"Percentuais","Valor"]
[null,"Submódulo 4.1 - Ausências Legais"]
[null,null,"A","Férias (Arts. 129 e 130, inc. I, da CLT)",{"$f":"'[2]Encargos Sociais'!E24","v":9.0909090909090912E-2},{"$f":"ROUND(E59*$F$16,2)","v":1272.5999999999999},null,"* Nota 1 - As alíneas “A” a “F” referem-se somente ao custo que será pago ao repositor pelos dias \ntrabalhados quando da necessidade de substituir a mão de obra alocada na prestação do serviço."]
[null,null,"B","Ausências Legais (Arts. 131 e 473 da CLT)",{"$f":"'Encargos Sociais'!E25","v":7.9365079365079361E-3},{"$f":"ROUND(E60*$F$16,2)","v":111.1},null,"* Nota 2 - Adotou-se a estimativa do SINAPI de 2 dias por ano."]
[null,null,"C","Licença-Paternidade (Art. 7º, XIX, e art. 10, §1º, do ADCT, CF/1988 e Art. 1º, II, da Lei 11.770/2008)",{"$f":"'Encargos Sociais'!E26","v":8.2777777777777776E-4},11.59,null,"* Nota 3 - Utilizada a proporção de 50% para homens, 5 dias de afastamento, e a probabilidade de um trabalhador requerer a Licença Paternidade em 5,22%, conforme SINAPI (citando dados da PNAD 2015)"]
[null,null,"D","Ausência por Acidente de Trabalho (Art. 131, III, da CLT)",{"$f":"'Encargos Sociais'!E27","v":8.541666666666667E-4},11.96,null,"* Nota 4 - Utilzada a estatística de 1,96% dos contribuintes beneficiados com a emissão do auxílio, conforme Anuário Estatístico da Previdência Social. Afastamento de 15 dias a cargo da empresa."]
[null,null,"E","Afastamento Maternidade (Art. 71 da Lei nº 8.213/1991)",{"$f":"'Encargos Sociais'!E28","v":3.2925925925925922E-3},46.09,null,"* Nota 5 - Utilizada a proporção de 50% para mulheres, 180 dias de afastamento, e a probabilidade de uma trabalhadora requerer a Licença Maternidade em 4,91%, conforme SINAPI (citando dados do IBGE 2016)"]
[null,null,"F","Auxílio Enfermidade - Doença (Art. 59 da Lei nº 8.213/1991)",{"$f":"'Encargos Sociais'!E29","v":7.1222222222222225E-3},99.7,null,"* Nota 6 - Utilizada a estatística de 3,37% dos contribuintes beneficiados com o auxílio, conforme Anuário Estatístico da Previdência Social de 2015 (acrescidos de 2 dias ao ano, para os quais o trabalhador nem requer o benefício da Previdência - conforme SINAPI)"]
[]
[null,"Submódulo 4.2 - Intrajornada"]
[null,null,"A","Intervalo para repouso ou alimentação",{"$f":"'Encargos Sociais'!E32","v":0},{"$f":"ROUND(E67*$F$16,2)","v":0}]
[]
[null,null,null,"QUADRO-RESUMO DO MÓDULO 4",null,"Valor"]
[null,null,null,"4.1 - Ausências Legais",{"$f":"SUM(E59:E64)","v":0.11094235810485811},{"$f":"ROUND(E70*$F$16,2)","v":1553.03}]
[null,null,null,"4.2 - Intrajornada",{"$f":"E67","v":0},{"$f":"ROUND(E71*$F$16,2)","v":0}]
[]
[null,null,null,"TOTAL DE PREVISÃO PARA RESCISÃO E INTERVALO INTRAJORNADA",null,{"$f":"SUM(F70:F71)","v":1553.03}]
[]
[null,"MÓDULO 5 - INSUMOS DIVERSOS",null,null,null,"Valor"]
[null,null,"A","Uniformes - aquisição",null,{"$f":"ROUND(HLOOKUP($B$5,Uniformes!K11:DZ32,3)/12,2)","v":0}]
[null,null,"B","Materiais de consumo relacionados ao posto - aquisição",null,{"$f":"ROUND(HLOOKUP(B5,'Mat Cons'!I11:DX13,3)/12,2)","v":0}]
[null,null,"C","Materiais permanentes relacionados ao posto - remuneração da sua depreciação / manutenção",null,{"$f":"HLOOKUP(B5,'Mat Perm'!Q11:EF13,3)","v":0}]
[null,null,"D","Equipamentos relacionados ao posto - remuneração da sua depreciação / manutenção",null,{"$f":"HLOOKUP(B5,'Equip Rel'!Q11:EF13,3)","v":0}]
[null,null,"E","Equipamentos de Proteção Individual - EPI - aquisição",null,{"$f":"ROUND(HLOOKUP(B5,EPI!I11:DX13,3)/12,2)","v":0}]
[]
[null,null,null,"TOTAL DE INSUMOS DIVERSOS",null,{"$f":"SUM(F76:F81)","v":0},null,"* Nota - Valores mensais por empregado"]
[]
[null,"MÓDULO 6 - CUSTOS INDIRETOS, TRIBUTOS E LUCRO - BDI",null,null,"Percentuais","Valor"]
[null,null,"A","Custos Indiretos",{"$f":"BDI!E6","v":6.0999999999999999E-2}]
[null,null,"A.1","Administração Central",{"$f":"BDI!E7","v":2.5999999999999999E-2}]
[null,null,"A.2","Seguros, Garantias e Riscos",{"$f":"BDI!E8","v":3.5000000000000003E-2}]
[null,null,"B","Lucro",{"$f":"BDI!E10","v":0.04}]
[null,null,"C","Tributos",{"$f":"SUM(E90:E91)","v":0.124}]
[null,null,"C.1","Tributos Federais (COFINS, PIS e CPRB)",{"$f":"BDI!E18","v":7.3999999999999996E-2}]
[null,null,"C.2","Tributos Distritais (ISS)",{"$f":"BDI!E23","v":0.05},null,null,"* Nota - Utilizou-se o indicado pelo Sindicato da Arquitetura e da Engenharia (Sinaenco, 2008, p. 22), que adota um percentual redutor de 20% no cálculo dos custos tributários relativos às contribuições PIS e COFINS"]
[null,null,"D","Despesas Financeiras",{"$f":"BDI!E13","v":5.2519605742542552E-3}]
[]
[null,null,null,"TOTAL DE BDI",{"$f":"BDI!E26","v":0.26629999999999998},{"$f":"E94*E102","v":6094.6989169999988}]
[]
[null,null,null,"QUADRO-RESUMO DO CUSTO MENSAL POR EMPREGADO - SEM O 13º","Valor"]
[null,null,null,"Módulo 1 - Composição da Remuneração",{"$f":"F16","v":13998.55}]
[null,null,null,"Módulo 2 - Encargos e Benefícios Anuais, Mensais e Diários",{"$f":"F45","v":6862.4599999999991}]
[null,null,null,"Módulo 3 - Provisão para Rescisão",{"$f":"F55","v":472.55}]
[null,null,null,"Módulo 4 - Custo de Reposição do Profissional Ausente",{"$f":"F73","v":1553.03}]
[null,null,null,"Módulo 5 - Insumos Diversos",{"$f":"F82","v":0}]
[null,null,null,"SUBTOTAL (A+B+C+D+E)",{"$f":"SUM(E97:E101)","v":22886.589999999997}]
[null,null,null,"Módulo 6 - Custos Indiretos, Tributos e Lucro",{"$f":"F94","v":6094.6989169999988}]
[]
[null,null,null,"TOTAL DO POSTO",{"$f":"SUM(E102:E103)","v":28981.288916999994}]
[]
[null,"MÓDULO 7 - DESTAQUE DO MÓDULO 2 - 13º SALÁRIO",null,null,"Percentuais","Valor"]
[null,null,"A","13º Salário",{"$f":"'[2]Encargos Sociais'!E31","v":8.3333333333333329E-2},{"$f":"ROUND(E108*F$16,2)","v":1166.55}]
[null,null,"B","Encargos Sociais sobre o 13º Salário - Taxa calculada no SUBMÓDULO 2.2",{"$f":"SUM($E$24:$E$32)","v":0.34800000000000003},{"$f":"ROUND(E109*$F$108,2)","v":405.96},null,"* Nota 1 - Provisiona-se, mensalmente, o proporcional a 1/12 dos valores referentes a gratificação natalina"]
[null,null,"C","Reincidência de férias sobre o 13º Salário",{"$f":"E59","v":9.0909090909090912E-2},{"$f":"ROUND(E110*$F$108,2)","v":106.05}]
[null,null,"D","BDI sobre o 13º Salário - Taxa calculada no MÓDULO 6",{"$f":"E94","v":0.26629999999999998},{"$f":"ROUND(E111*($F$108+$F$109+$F$110),2)","v":447}]
[]
[null,null,null,"TOTAL DO DESTAQUE DO 13º SALÁRIO",null,{"$f":"SUM(F108:F111)","v":2125.56}]
[]
[null,null,null,"QUADRO-RESUMO DO CUSTO MENSAL POR EMPREGADO","Valor"]
[null,null,null,"Custo total - sem o 13º Salário",{"$f":"E105","v":28981.288916999994}]
[null,null,null,"Destaque do 13º Salário (valor mensal)",{"$f":"F113","v":2125.56}]
[]
[null,null,null,"TOTAL DO POSTO",{"$f":"E116+E117","v":31106.848916999996}]

{"sheet":"3","index":6,"n_rows":119,"n_cols":8,"rows_kept":119,"cut":false,"hidden":false,"merged":[[1,1,1,5],[2,1,2,5],[4,1,4,2],[5,1,5,2],[7,1,7,3],[17,1,17,3],[106,1,106,3],[39,3,39,5],[46,1,46,3],[56,1,56,3],[68,3,68,5],[74,1,74,3],[83,1,83,3]]}
[]
[null,"PLANILHA DE ESTIMATIVA DE CUSTOS"]
[null,"Padrão IN 05/2017 e IN 07/2018 - MPDG"]
[]
[null,3,null,{"$f":"HLOOKUP($B$5,'Dados Gerais'!$D$5:$BH$21,6)","v":"Analista de TI - Analista de Dados - sênior"},"QUANTIDADE",{"$f":"HLOOKUP($B$5,'Dados Gerais'!$D$5:$BH$21,10)","v":9}]
[null,"CCT",null,{"$f":"HLOOKUP($B$5,'Dados Gerais'!$D$5:$BH$21,16)","v":"SINDPD/DF X SINDESEI/DF 2021/2022 Nº DF000608/2021"},"DATA-BASE",{"$f":"HLOOKUP($B$5,'Dados Gerais'!$D$5:$BH$21,17)","v":"2021-05-01"}]
[]
[null,"MÓDULO 1 - COMPOSIÇÃO DA REMUNERAÇÃO",null,null,null,"Valor"]
[null,null,"A","Salário-Base",null,{"$f":"HLOOKUP($B$5,'Dados Gerais'!$D$5:$BH$21,8)","v":9747.5400000000009}]
[null,null,"B","Adicional de Periculosidade",null,{"$f":"HLOOKUP($B$5,'Dados Gerais'!$D$5:$BH$38,25)","v":0}]
[null,null,"C","Adicional de Insalubridade",null,{"$f":"HLOOKUP($B$5,'Dados Gerais'!$D$5:$BH$38,27)","v":0}]
[null,null,"D","Adicional Noturno",null,{"$f":"HLOOKUP($B$5,'Dados Gerais'!$D$5:$BH$51,46)","v":0},null,"* Nota 1 - O Módulo 1 refere-se ao valor mensal devido ao empregado pela prestação do serviço no período de 12 meses."]
[null,null,"E","Adicional de Hora Extra",null,{"$f":"HLOOKUP($B$5,'Dados Gerais'!$D$5:$BH$68,63)","v":0},null,"* Nota 2 - O adicional de hora extra no feriado trabalhado foi suprimido pela Lei 13.467/17"]
[null,null,"F","Outros (especificar)",null,{"$f":"HLOOKUP($B$5,'Dados Gerais'!$D$5:$BH$60,33)","v":0},null,"* Nota 3 - ART. 7º, § 2º, DA LEI Nº 605/49.Sendo mensalista o obreiro, o adicional noturno pago de forma fixa já é considerado integrado para os efeitos do pagamento do repouso semanal remunerado, nos termos do art. 7º, § 2º, da Lei nº 605/49."]
[]
[null,null,null,"TOTAL DA REMUNERAÇÃO",null,{"$f":"SUM(F9:F14)","v":9747.5400000000009}]
[]
[null,"MÓDULO 2 - ENCARGOS E BENEFÍCIOS ANUAIS, MENSAIS E DIÁRIOS",null,null,"Percentuais","Valor"]
[null,"Submódulo 2.1 - 13º Salário, Férias e Adicional de Férias"]
[null,null,"A","13º Salário - Calculado no Módulo 7 - Destacado",0,{"$f":"ROUND(E20*F$16,2)","v":0},null,"* Nota 1 - Provisiona-se, mensalmente, o proporcional a 1/12 dos valores referentes a gratificação natalina"]
[null,null,"B","Adicional de Férias",{"$f":"'[2]Encargos Sociais'!E30","v":3.03030303030303E-2},{"$f":"ROUND(E21*F$16,2)","v":295.38},null,"* Nota 2 - O adicional de férias contido no Submódulo 2.1 corresponde a 1/3 da remuneração que, por sua vez, é dividida por 12 contome Nota 1."]
[]
[null,"Submódulo 2.2 - Encargos Previdenciários (GPS), Fundo de Garantia por Tempo de Serviço (FGTS) e Outras Contribuições"]
[null,null,"A","INSS (art. 22, inciso I, Lei nº 8.212/91)",{"$f":"'Encargos Sociais'!E13","v":0.2},{"$f":"ROUND(E24*($F$16+$F$41+$F$73),2)","v":2224.87}]
[null,null,"B","Salário Educação (art. 3º, inciso I, Decreto nº 87.043/82)",{"$f":"'Encargos Sociais'!E14","v":2.5000000000000001E-2},{"$f":"ROUND(E25*($F$16+$F$41+$F$73),2)","v":278.11}]
[null,null,"C","SAT/RAT (art. 22, II, Lei 8.212/91 e Anexo V, Decreto 6.042/07) - Enquadramento 8211-3/00",{"$f":"'Encargos Sociais'!E15","v":0.01},111.24]
[null,null,"D","SESC ou SESI (art. 30, Lei nº 8.036/90 e art. 1º, Lei 8.154/90)",{"$f":"'Encargos Sociais'!E16","v":1.4999999999999999E-2},166.87]
[null,null,"E","SENAI ou SENAC (Decreto nº 2.318/86)",{"$f":"'Encargos Sociais'!E17","v":0.01},111.24]
[null,null,"F","SEBRAE (§ 3º, art. 8º, Lei 8.029/90, alterada pela Lei nº 8.154/90)",{"$f":"'Encargos Sociais'!E18","v":6.0000000000000001E-3},66.75]
[null,null,"G","INCRA (art. 1º, I, Decreto Lei 1.146/70 e Lei 7.787, de 30/06/89)",{"$f":"'Encargos Sociais'!E19","v":2E-3},22.25,null,"* Nota 1 - Os percentuais dos encargos previdenciários, do FGTS e demais contribuições são estabelecidos por legislação vigente."]
[null,null,"H","FGTS (Lei Complementar nº 110/01 e art. 30, Lei nº 8.036/90)",{"$f":"'Encargos Sociais'!E20","v":0.08},889.95,null,"* Nota 2 - O SAT, a depender do grau de risco do serviço, irá variar entre 1%, para risco leve, de 2%, para risco médio, e de 3% para risco grave."]
[null,null,"I","SECONCI (Convenções Coletivas de Trabalho da construção)",{"$f":"'Encargos Sociais'!E21","v":0},0,null,"* Nota 3 - Os percentuais do Submódulo 2.2 incidem sobre o Módulo 1 e o Submódulo 2.1."]
[]
[null,"Submódulo 2.3 - Benefícios Mensais e Diários"]
[null,null,"A","Auxílio Transporte",null,{"$f":"HLOOKUP($B$5,'Dados Gerais'!$D$5:$BH$94,83)","v":0}]
[null,null,"B","Auxílio Alimentação",null,{"$f":"HLOOKUP($B$5,'Dados Gerais'!$D$5:$BH$94,90)","v":770}]
[null,null,"C","Assistência Médica e Familiar",null,{"$f":"HLOOKUP($B$5,'Dados Gerais'!$D$5:$BH$102,98)","v":96.3}]
[null,null,"D","Outros (Seguro de vida e auxílio funeral e auxílio odontológico)",null,{"$f":"HLOOKUP($B$5,'Dados Gerais'!$D$5:$BH$119,115)","v":12.39},null,"* Nota 1 - O valor informado deverá ser o custo real do benefício (descontado o valor eventualmente pago pelo empregado)."]
[null,null,null,null,null,null,null,"* Nota 2 - Observar a previsão dos benefícios contidos em Acordos, Convenções e Dissídios Coletivos de Trabalho e o disposto no art. 6º da IN 5/2017"]
[null,null,null,"QUADRO-RESUMO DO MÓDULO 2"]
[null,null,null,"2.1 - 13º Salário, Férias e Adicional de Férias - 13º Destacado - Calculado no Módulo 7 ",{"$f":"SUM(E20:E21)","v":3.03030303030303E-2},{"$f":"F20+F21","v":295.38}]
[null,null,null,"2.2 - Encargos Previdenciários (GPS), Fundo de Garantia por Tempo de Serviço (FGTS) e Contribuições",{"$f":"SUM(E24:E32)","v":0.34800000000000003},{"$f":"SUM(F24:F32)","v":3871.2799999999997}]
[null,null,null,"2.3 - Benefícios Mensais e Diários",null,{"$f":"SUM(F35:F38)","v":878.68999999999994}]
[]
[null,null,null,"TOTAL DOS ENCARGOS E BENEFÍCIOS",null,{"$f":"SUM(F41:F43)","v":5045.3499999999995}]
[]
[null,"MÓDULO 3 - PREVISÃO PARA RESCISÃO",null,null,"Percentuais","Valor"]
[null,null,"A","Aviso Prévio Indenizado (Art. 7º, inciso XXI, da CF/1988 e arts. 477, 487, §1º, e 491 da CLT)",{"$f":"'[2]Encargos Sociais'!E35","v":3.3333333333333335E-3},{"$f":"ROUND(E48*($F$16+$F$59),2)","v":35.450000000000003}]
[null,null,"B","Incidência do FGTS sobre o Aviso Prévio Indenizado (Súmula 305 TST)",{"$f":"'[2]Encargos Sociais'!E36","v":2.6666666666666668E-4},2.84,null,"* Nota 1 - Adotou-se os parâmetros do estudo do STF (http://www.stf.jus.br/arquivo/cms/sobrestfestudosci/anexo/encargos_sociais_03102007.pdf), onde 5% do pessoal é demitido pelo empregador no decurso do contrato (para estes, considerou-se o aviso prévio indenizado). Desprezou-se as demissões por justa causa e os pedidos de demissão."]
[null,null,"C","Multa do FGTS e Contribuição Social sobre o Aviso Prévio Indenizado (Art. 18, §1º, da Lei 8.036/1990 e art. 1º da LC nº 110/2001)",{"$f":"'[2]Encargos Sociais'!E37","v":1.274074074074074E-3},13.55,null,"* Nota 2 - No cálculo do percentual, considerou-se 36 dias, correspondendo à metade da duração média dos contratos (2 anos)"]
[null,null,"D","Aviso Prévio Trabalhado (Art. 488, parágrafo único, CLT)",{"$f":"'[2]Encargos Sociais'!E38","v":1.0833333333333334E-2},115.2,null,"* Nota 3 - Incide sobre a Remuneração + 13º salário (1/12) + Férias (1/12) + Adicional de Férias (1/36) x 50% multa (40% para o empregado e 10% de contribuição social) x 8% FGTS"]
[null,null,"E","Incidência de GPS, FGTS e outras contribuições sobre o Aviso Prévio Trabalhado",{"$f":"'[2]Encargos Sociais'!E39","v":3.7699999999999999E-3},40.090000000000003,null,"* Nota 4 - Os 95% restantes do cálculo, a um prazo médio de contrato de 4 anos. Assim, calcula-se 7 dias para o 1º ano de contrato e mais 3 dias para os 3 anos seguintes."]
[null,null,"F","Multa do FGTS e Contribuição Social sobre o Aviso Prévio Trabalhado",{"$f":"'[2]Encargos Sociais'!E40","v":1.1466666666666665E-2},121.93]
[]
[null,null,null,"TOTAL DE PREVISÃO PARA RESCISÃO",null,{"$f":"SUM(F48:F53)","v":329.06000000000006}]
[]
[null,"MÓDULO 4 - CUSTO DE REPOSIÇÃO DO PROFISSIONAL AUSENTE",null,null,"Percentuais","Valor"]
[null,"Submódulo 4.1 - Ausências Legais"]
[null,null,"A","Férias (Arts. 129 e 130, inc. I, da CLT)",{"$f":"'[2]Encargos Sociais'!E24","v":9.0909090909090912E-2},{"$f":"ROUND(E59*$F$16,2)","v":886.14},null,"* Nota 1 - As alíneas “A” a “F” referem-se somente ao custo que será pago ao repositor pelos dias \ntrabalhados quando da necessidade de substituir a mão de obra alocada na prestação do serviço."]
[null,null,"B","Ausências Legais (Arts. 131 e 473 da CLT)",{"$f":"'Encargos Sociais'!E25","v":7.9365079365079361E-3},{"$f":"ROUND(E60*$F$16,2)","v":77.36},null,"* Nota 2 - Adotou-se a estimativa do SINAPI de 2 dias por ano."]
[null,null,"C","Licença-Paternidade (Art. 7º, XIX, e art. 10, §1º, do ADCT, CF/1988 e Art. 1º, II, da Lei 11.770/2008)",{"$f":"'Encargos Sociais'!E26","v":8.2777777777777776E-4},8.07,null,"* Nota 3 - Utilizada a proporção de 50% para homens, 5 dias de afastamento, e a probabilidade de um trabalhador requerer a Licença Paternidade em 5,22%, conforme SINAPI (citando dados da PNAD 2015)"]
[null,null,"D","Ausência por Acidente de Trabalho (Art. 131, III, da CLT)",{"$f":"'Encargos Sociais'!E27","v":8.541666666666667E-4},8.33,null,"* Nota 4 - Utilzada a estatística de 1,96% dos contribuintes beneficiados com a emissão do auxílio, conforme Anuário Estatístico da Previdência Social. Afastamento de 15 dias a cargo da empresa."]
[null,null,"E","Afastamento Maternidade (Art. 71 da Lei nº 8.213/1991)",{"$f":"'Encargos Sociais'!E28","v":3.2925925925925922E-3},32.090000000000003,null,"* Nota 5 - Utilizada a proporção de 50% para mulheres, 180 dias de afastamento, e a probabilidade de uma trabalhadora requerer a Licença Maternidade em 4,91%, conforme SINAPI (citando dados do IBGE 2016)"]
[null,null,"F","Auxílio Enfermidade - Doença (Art. 59 da Lei nº 8.213/1991)",{"$f":"'Encargos Sociais'!E29","v":7.1222222222222225E-3},69.42,null,"* Nota 6 - Utilizada a estatística de 3,37% dos contribuintes beneficiados com o auxílio, conforme Anuário Estatístico da Previdência Social de 2015 (acrescidos de 2 dias ao ano, para os quais o trabalhador nem requer o benefício da Previdência - conforme SINAPI)"]
[]
[null,"Submódulo 4.2 - Intrajornada"]
[null,null,"A","Intervalo para repouso ou alimentação",{"$f":"'Encargos Sociais'!E32","v":0},{"$f":"ROUND(E67*$F$16,2)","v":0}]
[]
[null,null,null,"QUADRO-RESUMO DO MÓDULO 4",null,"Valor"]
[null,null,null,"4.1 - Ausências Legais",{"$f":"SUM(E59:E64)","v":0.11094235810485811},{"$f":"ROUND(E70*$F$16,2)","v":1081.42}]
[null,null,null,"4.2 - Intrajornada",{"$f":"E67","v":0},{"$f":"ROUND(E71*$F$16,2)","v":0}]
[]
[null,null,null,"TOTAL DE PREVISÃO PARA RESCISÃO E INTERVALO INTRAJORNADA",null,{"$f":"SUM(F70:F71)","v":1081.42}]
[]
[null,"MÓDULO 5 - INSUMOS DIVERSOS",null,null,null,"Valor"]
[null,null,"A","Uniformes - aquisição",null,{"$f":"ROUND(HLOOKUP($B$5,Uniformes!K11:DZ13,3)/12,2)","v":0}]
[null,null,"B","Materiais de consumo relacionados ao posto - aquisição",null,{"$f":"ROUND(HLOOKUP(B5,'Mat Cons'!I11:DX13,3)/12,2)","v":0}]
[null,null,"C","Materiais permanentes relacionados ao posto - remuneração da sua depreciação / manutenção",null,{"$f":"HLOOKUP(B5,'Mat Perm'!Q11:EF13,3)","v":0}]
[null,null,"D","Equipamentos relacionados ao posto - remuneração da sua depreciação / manutenção",null,{"$f":"HLOOKUP(B5,'Equip Rel'!Q11:EF13,3)","v":0}]
[null,null,"E","Equipamentos de Proteção Individual - EPI - aquisição",null,{"$f":"ROUND(HLOOKUP(B5,EPI!I11:DX13,3)/12,2)","v":0}]
[]
[null,null,null,"TOTAL DE INSUMOS DIVERSOS",null,{"$f":"SUM(F76:F81)","v":0},null,"* Nota - Valores mensais por empregado"]
[]
[null,"MÓDULO 6 - CUSTOS INDIRETOS, TRIBUTOS E LUCRO - BDI",null,null,"Percentuais","Valor"]
[null,null,"A","Custos Indiretos",{"$f":"BDI!E6","v":6.0999999999999999E-2}]
[null,null,"A.1","Administração Central",{"$f":"BDI!E7","v":2.5999999999999999E-2}]
[null,null,"A.2","Seguros, Garantias e Riscos",{"$f":"BDI!E8","v":3.5000000000000003E-2}]
[null,null,"B","Lucro",{"$f":"BDI!E10","v":0.04}]
[null,null,"C","Tributos",{"$f":"SUM(E90:E91)","v":0.124}]
[null,null,"C.1","Tributos Federais (COFINS, PIS e CPRB)",{"$f":"BDI!E18","v":7.3999999999999996E-2}]
[null,null,"C.2","Tributos Distritais (ISS)",{"$f":"BDI!E23","v":0.05},null,null,"* Nota - Utilizou-se o indicado pelo Sindicato da Arquitetura e da Engenharia (Sinaenco, 2008, p. 22), que adota um percentual redutor de 20% no cálculo dos custos tributários relativos às contribuições PIS e COFINS"]
[null,null,"D","Despesas Financeiras",{"$f":"BDI!E13","v":5.2519605742542552E-3}]
[]
[null,null,null,"TOTAL DE BDI",{"$f":"BDI!E26","v":0.26629999999999998},{"$f":"E94*E102","v":4314.9574309999998}]
[]
[null,null,null,"QUADRO-RESUMO DO CUSTO MENSAL POR EMPREGADO - SEM O 13º","Valor"]
[null,null,null,"Módulo 1 - Composição da Remuneração",{"$f":"F16","v":9747.5400000000009}]
[null,null,null,"Módulo 2 - Encargos e Benefícios Anuais, Mensais e Diários",{"$f":"F45","v":5045.3499999999995}]
[null,null,null,"Módulo 3 - Provisão para Rescisão",{"$f":"F55","v":329.06000000000006}]
[null,null,null,"Módulo 4 - Custo de Reposição do Profissional Ausente",{"$f":"F73","v":1081.42}]
[null,null,null,"Módulo 5 - Insumos Diversos",{"$f":"F82","v":0}]
[null,null,null,"SUBTOTAL (A+B+C+D+E)",{"$f":"SUM(E97:E101)","v":16203.369999999999}]
[null,null,null,"Módulo 6 - Custos Indiretos, Tributos e Lucro",{"$f":"F94","v":4314.9574309999998}]
[]
[null,null,null,"TOTAL DO POSTO",{"$f":"SUM(E102:E103)","v":20518.327430999998}]
[]
[null,"MÓDULO 7 - DESTAQUE DO MÓDULO 2 - 13º SALÁRIO",null,null,"Percentuais","Valor"]
[null,null,"A","13º Salário",{"$f":"'[2]Encargos Sociais'!E31","v":8.3333333333333329E-2},{"$f":"ROUND(E108*F$16,2)","v":812.3}]
[null,null,"B","Encargos Sociais sobre o 13º Salário - Taxa calculada no SUBMÓDULO 2.2",{"$f":"SUM($E$24:$E$32)","v":0.34800000000000003},{"$f":"ROUND(E109*$F$108,2)","v":282.68},null,"* Nota 1 - Provisiona-se, mensalmente, o proporcional a 1/12 dos valores referentes a gratificação natalina"]
[null,null,"C","Reincidência de férias sobre o 13º Salário",{"$f":"E59","v":9.0909090909090912E-2},{"$f":"ROUND(E110*$F$108,2)","v":73.849999999999994}]
[null,null,"D","BDI sobre o 13º Salário - Taxa calculada no MÓDULO 6",{"$f":"E94","v":0.26629999999999998},{"$f":"ROUND(E111*($F$108+$F$109+$F$110),2)","v":311.26}]
[]
[null,null,null,"TOTAL DO DESTAQUE DO 13º SALÁRIO",null,{"$f":"SUM(F108:F111)","v":1480.09}]
[]
[null,null,null,"QUADRO-RESUMO DO CUSTO MENSAL POR EMPREGADO","Valor"]
[null,null,null,"Custo total - sem o 13º Salário",{"$f":"E105","v":20518.327430999998}]
[null,null,null,"Destaque do 13º Salário (valor mensal)",{"$f":"F113","v":1480.09}]
[]
[null,null,null,"TOTAL DO POSTO",{"$f":"E116+E117","v":21998.417430999998}]

{"sheet":"4","index":7,"n_rows":119,"n_cols":8,"rows_kept":119,"cut":false,"hidden":false,"merged":[[1,1,1,5],[2,1,2,5],[4,1,4,2],[5,1,5,2],[7,1,7,3],[17,1,17,3],[106,1,106,3],[39,3,39,5],[46,1,46,3],[56,1,56,3],[68,3,68,5],[74,1,74,3],[83,1,83,3]]}
[]
[null,"PLANILHA DE ESTIMATIVA DE CUSTOS"]
[null,"Padrão IN 05/2017 e IN 07/2018 - MPDG"]
[]
[null,4,null,{"$f":"HLOOKUP($B$5,'Dados Gerais'!$D$5:$BH$21,6)","v":"Analista de TI - Arquiteto de Dados - sênior"},"QUANTIDADE",{"$f":"HLOOKUP($B$5,'Dados Gerais'!$D$5:$BH$21,10)","v":6}]
[null,"CCT",null,{"$f":"HLOOKUP($B$5,'Dados Gerais'!$D$5:$BH$21,16)","v":"SINDPD/DF X SINDESEI/DF 2021/2022 Nº DF000608/2021"},"DATA-BASE",{"$f":"HLOOKUP($B$5,'Dados Gerais'!$D$5:$BH$21,17)","v":"2021-05-01"}]
[]
[null,"MÓDULO 1 - COMPOSIÇÃO DA REMUNERAÇÃO",null,null,null,"Valor"]
[null,null,"A","Salário-Base",null,{"$f":"HLOOKUP($B$5,'Dados Gerais'!$D$5:$BH$21,8)","v":11079.73}]
[null,null,"B","Adicional de Periculosidade",null,{"$f":"HLOOKUP($B$5,'Dados Gerais'!$D$5:$BH$38,25)","v":0}]
[null,null,"C","Adicional de Insalubridade",null,{"$f":"HLOOKUP($B$5,'Dados Gerais'!$D$5:$BH$38,27)","v":0}]
[null,null,"D","Adicional Noturno",null,{"$f":"HLOOKUP($B$5,'Dados Gerais'!$D$5:$BH$51,46)","v":0},null,"* Nota 1 - O Módulo 1 refere-se ao valor mensal devido ao empregado pela prestação do serviço no período de 12 meses."]
[null,null,"E","Adicional de Hora Extra",null,{"$f":"HLOOKUP($B$5,'Dados Gerais'!$D$5:$BH$68,63)","v":0},null,"* Nota 2 - O adicional de hora extra no feriado trabalhado foi suprimido pela Lei 13.467/17"]
[null,null,"F","Outros (especificar)",null,{"$f":"HLOOKUP($B$5,'Dados Gerais'!$D$5:$BH$60,33)","v":0},null,"* Nota 3 - ART. 7º, § 2º, DA LEI Nº 605/49.Sendo mensalista o obreiro, o adicional noturno pago de forma fixa já é considerado integrado para os efeitos do pagamento do repouso semanal remunerado, nos termos do art. 7º, § 2º, da Lei nº 605/49."]
[]
[null,null,null,"TOTAL DA REMUNERAÇÃO",null,{"$f":"SUM(F9:F14)","v":11079.73}]
[]
[null,"MÓDULO 2 - ENCARGOS E BENEFÍCIOS ANUAIS, MENSAIS E DIÁRIOS",null,null,"Percentuais","Valor"]
[null,"Submódulo 2.1 - 13º Salário, Férias e Adicional de Férias"]
[null,null,"A","13º Salário - Calculado no Módulo 7 - Destacado",0,{"$f":"ROUND(E20*F$16,2)","v":0},null,"* Nota 1 - Provisiona-se, mensalmente, o proporcional a 1/12 dos valores referentes a gratificação natalina"]
[null,null,"B","Adicional de Férias",{"$f":"'[2]Encargos Sociais'!E30","v":3.03030303030303E-2},{"$f":"ROUND(E21*F$16,2)","v":335.75},null,"* Nota 2 - O adicional de férias contido no Submódulo 2.1 corresponde a 1/3 da remuneração que, por sua vez, é dividida por 12 contome Nota 1."]
[]
[null,"Submódulo 2.2 - Encargos Previdenciários (GPS), Fundo de Garantia por Tempo de Serviço (FGTS) e Outras Contribuições"]
[null,null,"A","INSS (art. 22, inciso I, Lei nº 8.212/91)",{"$f":"'Encargos Sociais'!E13","v":0.2},{"$f":"ROUND(E24*($F$16+$F$41+$F$73),2)","v":2528.94}]
[null,null,"B","Salário Educação (art. 3º, inciso I, Decreto nº 87.043/82)",{"$f":"'Encargos Sociais'!E14","v":2.5000000000000001E-2},{"$f":"ROUND(E25*($F$16+$F$41+$F$73),2)","v":316.12}]
[null,null,"C","SAT/RAT (art. 22, II, Lei 8.212/91 e Anexo V, Decreto 6.042/07) - Enquadramento 8211-3/00",{"$f":"'Encargos Sociais'!E15","v":0.01},126.45]
[null,null,"D","SESC ou SESI (art. 30, Lei nº 8.036/90 e art. 1º, Lei 8.154/90)",{"$f":"'Encargos Sociais'!E16","v":1.4999999999999999E-2},189.67]
[null,null,"E","SENAI ou SENAC (Decreto nº 2.318/86)",{"$f":"'Encargos Sociais'!E17","v":0.01},126.45]
[null,null,"F","SEBRAE (§ 3º, art. 8º, Lei 8.029/90, alterada pela Lei nº 8.154/90)",{"$f":"'Encargos Sociais'!E18","v":6.0000000000000001E-3},75.87]
[null,null,"G","INCRA (art. 1º, I, Decreto Lei 1.146/70 e Lei 7.787, de 30/06/89)",{"$f":"'Encargos Sociais'!E19","v":2E-3},25.29,null,"* Nota 1 - Os percentuais dos encargos previdenciários, do FGTS e demais contribuições são estabelecidos por legislação vigente."]
[null,null,"H","FGTS (Lei Complementar nº 110/01 e art. 30, Lei nº 8.036/90)",{"$f":"'Encargos Sociais'!E20","v":0.08},1011.58,null,"* Nota 2 - O SAT, a depender do grau de risco do serviço, irá variar entre 1%, para risco leve, de 2%, para risco médio, e de 3% para risco grave."]
[null,null,"I","SECONCI (Convenções Coletivas de Trabalho da construção)",{"$f":"'Encargos Sociais'!E21","v":0},0,null,"* Nota 3 - Os percentuais do Submódulo 2.2 incidem sobre o Módulo 1 e o Submódulo 2.1."]
[]
[null,"Submódulo 2.3 - Benefícios Mensais e Diários"]
[null,null,"A","Auxílio Transporte",null,{"$f":"HLOOKUP($B$5,'Dados Gerais'!$D$5:$BH$94,83)","v":0}]
[null,null,"B","Auxílio Alimentação",null,{"$f":"HLOOKUP($B$5,'Dados Gerais'!$D$5:$BH$94,90)","v":770}]
[null,null,"C","Assistência Médica e Familiar",null,{"$f":"HLOOKUP($B$5,'Dados Gerais'!$D$5:$BH$102,98)","v":96.3}]
[null,null,"D","Outros (Seguro de vida e auxílio funeral e auxílio odontológico)",null,{"$f":"HLOOKUP($B$5,'Dados Gerais'!$D$5:$BH$119,115)","v":12.39},null,"* Nota 1 - O valor informado deverá ser o custo real do benefício (descontado o valor eventualmente pago pelo empregado)."]
[null,null,null,null,null,null,null,"* Nota 2 - Observar a previsão dos benefícios contidos em Acordos, Convenções e Dissídios Coletivos de Trabalho e o disposto no art. 6º da IN 5/2017"]
[null,null,null,"QUADRO-RESUMO DO MÓDULO 2"]
[null,null,null,"2.1 - 13º Salário, Férias e Adicional de Férias - 13º Destacado - Calculado no Módulo 7 ",{"$f":"SUM(E20:E21)","v":3.03030303030303E-2},{"$f":"F20+F21","v":335.75}]
[null,null,null,"2.2 - Encargos Previdenciários (GPS), Fundo de Garantia por Tempo de Serviço (FGTS) e Contribuições",{"$f":"SUM(E24:E32)","v":0.34800000000000003},{"$f":"SUM(F24:F32)","v":4400.37}]
[null,null,null,"2.3 - Benefícios Mensais e Diários",null,{"$f":"SUM(F35:F38)","v":878.68999999999994}]
[]
[null,null,null,"TOTAL DOS ENCARGOS E BENEFÍCIOS",null,{"$f":"SUM(F41:F43)","v":5614.8099999999995}]
[]
[null,"MÓDULO 3 - PREVISÃO PARA RESCISÃO",null,null,"Percentuais","Valor"]
[null,null,"A","Aviso Prévio Indenizado (Art. 7º, inciso XXI, da CF/1988 e arts. 477, 487, §1º, e 491 da CLT)",{"$f":"'[2]Encargos Sociais'!E35","v":3.3333333333333335E-3},{"$f":"ROUND(E48*($F$16+$F$59),2)","v":40.29}]
[null,null,"B","Incidência do FGTS sobre o Aviso Prévio Indenizado (Súmula 305 TST)",{"$f":"'[2]Encargos Sociais'!E36","v":2.6666666666666668E-4},3.22,null,"* Nota 1 - Adotou-se os parâmetros do estudo do STF (http://www.stf.jus.br/arquivo/cms/sobrestfestudosci/anexo/encargos_sociais_03102007.pdf), onde 5% do pessoal é demitido pelo empregador no decurso do contrato (para estes, considerou-se o aviso prévio indenizado). Desprezou-se as demissões por justa causa e os pedidos de demissão."]
[null,null,"C","Multa do FGTS e Contribuição Social sobre o Aviso Prévio Indenizado (Art. 18, §1º, da Lei 8.036/1990 e art. 1º da LC nº 110/2001)",{"$f":"'[2]Encargos Sociais'!E37","v":1.274074074074074E-3},15.4,null,"* Nota 2 - No cálculo do percentual, considerou-se 36 dias, correspondendo à metade da duração média dos contratos (2 anos)"]
[null,null,"D","Aviso Prévio Trabalhado (Art. 488, parágrafo único, CLT)",{"$f":"'[2]Encargos Sociais'!E38","v":1.0833333333333334E-2},130.94,null,"* Nota 3 - Incide sobre a Remuneração + 13º salário (1/12) + Férias (1/12) + Adicional de Férias (1/36) x 50% multa (40% para o empregado e 10% de contribuição social) x 8% FGTS"]
[null,null,"E","Incidência de GPS, FGTS e outras contribuições sobre o Aviso Prévio Trabalhado",{"$f":"'[2]Encargos Sociais'!E39","v":3.7699999999999999E-3},45.57,null,"* Nota 4 - Os 95% restantes do cálculo, a um prazo médio de contrato de 4 anos. Assim, calcula-se 7 dias para o 1º ano de contrato e mais 3 dias para os 3 anos seguintes."]
[null,null,"F","Multa do FGTS e Contribuição Social sobre o Aviso Prévio Trabalhado",{"$f":"'[2]Encargos Sociais'!E40","v":1.1466666666666665E-2},138.6]
[]
[null,null,null,"TOTAL DE PREVISÃO PARA RESCISÃO",null,{"$f":"SUM(F48:F53)","v":374.02}]
[]
[null,"MÓDULO 4 - CUSTO DE REPOSIÇÃO DO PROFISSIONAL AUSENTE",null,null,"Percentuais","Valor"]
[null,"Submódulo 4.1 - Ausências Legais"]
[null,null,"A","Férias (Arts. 129 e 130, inc. I, da CLT)",{"$f":"'[2]Encargos Sociais'!E24","v":9.0909090909090912E-2},{"$f":"ROUND(E59*$F$16,2)","v":1007.25},null,"* Nota 1 - As alíneas “A” a “F” referem-se somente ao custo que será pago ao repositor pelos dias \ntrabalhados quando da necessidade de substituir a mão de obra alocada na prestação do serviço."]
[null,null,"B","Ausências Legais (Arts. 131 e 473 da CLT)",{"$f":"'Encargos Sociais'!E25","v":7.9365079365079361E-3},{"$f":"ROUND(E60*$F$16,2)","v":87.93},null,"* Nota 2 - Adotou-se a estimativa do SINAPI de 2 dias por ano."]
[null,null,"C","Licença-Paternidade (Art. 7º, XIX, e art. 10, §1º, do ADCT, CF/1988 e Art. 1º, II, da Lei 11.770/2008)",{"$f":"'Encargos Sociais'!E26","v":8.2777777777777776E-4},9.17,null,"* Nota 3 - Utilizada a proporção de 50% para homens, 5 dias de afastamento, e a probabilidade de um trabalhador requerer a Licença Paternidade em 5,22%, conforme SINAPI (citando dados da PNAD 2015)"]
[null,null,"D","Ausência por Acidente de Trabalho (Art. 131, III, da CLT)",{"$f":"'Encargos Sociais'!E27","v":8.541666666666667E-4},9.4600000000000009,null,"* Nota 4 - Utilzada a estatística de 1,96% dos contribuintes beneficiados com a emissão do auxílio, conforme Anuário Estatístico da Previdência Social. Afastamento de 15 dias a cargo da empresa."]
[null,null,"E","Afastamento Maternidade (Art. 71 da Lei nº 8.213/1991)",{"$f":"'Encargos Sociais'!E28","v":3.2925925925925922E-3},36.479999999999997,null,"* Nota 5 - Utilizada a proporção de 50% para mulheres, 180 dias de afastamento, e a probabilidade de uma trabalhadora requerer a Licença Maternidade em 4,91%, conforme SINAPI (citando dados do IBGE 2016)"]
[null,null,"F","Auxílio Enfermidade - Doença (Art. 59 da Lei nº 8.213/1991)",{"$f":"'Encargos Sociais'!E29","v":7.1222222222222225E-3},78.91,null,"* Nota 6 - Utilizada a estatística de 3,37% dos contribuintes beneficiados com o auxílio, conforme Anuário Estatístico da Previdência Social de 2015 (acrescidos de 2 dias ao ano, para os quais o trabalhador nem requer o benefício da Previdência - conforme SINAPI)"]
[]
[null,"Submódulo 4.2 - Intrajornada"]
[null,null,"A","Intervalo para repouso ou alimentação",{"$f":"'Encargos Sociais'!E32","v":0},{"$f":"ROUND(E67*$F$16,2)","v":0}]
[]
[null,null,null,"QUADRO-RESUMO DO MÓDULO 4",null,"Valor"]
[null,null,null,"4.1 - Ausências Legais",{"$f":"SUM(E59:E64)","v":0.11094235810485811},{"$f":"ROUND(E70*$F$16,2)","v":1229.21}]
[null,null,null,"4.2 - Intrajornada",{"$f":"E67","v":0},{"$f":"ROUND(E71*$F$16,2)","v":0}]
[]
[null,null,null,"TOTAL DE PREVISÃO PARA RESCISÃO E INTERVALO INTRAJORNADA",null,{"$f":"SUM(F70:F71)","v":1229.21}]
[]
[null,"MÓDULO 5 - INSUMOS DIVERSOS",null,null,null,"Valor"]
[null,null,"A","Uniformes - aquisição",null,{"$f":"ROUND(HLOOKUP($B$5,Uniformes!K11:DZ13,3)/12,2)","v":0}]
[null,null,"B","Materiais de consumo relacionados ao posto - aquisição",null,{"$f":"ROUND(HLOOKUP(B5,'Mat Cons'!I11:DX13,3)/12,2)","v":0}]
[null,null,"C","Materiais permanentes relacionados ao posto - remuneração da sua depreciação / manutenção",null,{"$f":"HLOOKUP(B5,'Mat Perm'!Q11:EF13,3)","v":0}]
[null,null,"D","Equipamentos relacionados ao posto - remuneração da sua depreciação / manutenção",null,{"$f":"HLOOKUP(B5,'Equip Rel'!Q11:EF13,3)","v":0}]
[null,null,"E","Equipamentos de Proteção Individual - EPI - aquisição",null,{"$f":"ROUND(HLOOKUP(B5,EPI!I11:DX13,3)/12,2)","v":0}]
[]
[null,null,null,"TOTAL DE INSUMOS DIVERSOS",null,{"$f":"SUM(F76:F81)","v":0},null,"* Nota - Valores mensais por empregado"]
[]
[null,"MÓDULO 6 - CUSTOS INDIRETOS, TRIBUTOS E LUCRO - BDI",null,null,"Percentuais","Valor"]
[null,null,"A","Custos Indiretos",{"$f":"BDI!E6","v":6.0999999999999999E-2}]
[null,null,"A.1","Administração Central",{"$f":"BDI!E7","v":2.5999999999999999E-2}]
[null,null,"A.2","Seguros, Garantias e Riscos",{"$f":"BDI!E8","v":3.5000000000000003E-2}]
[null,null,"B","Lucro",{"$f":"BDI!E10","v":0.04}]
[null,null,"C","Tributos",{"$f":"SUM(E90:E91)","v":0.124}]
[null,null,"C.1","Tributos Federais (COFINS, PIS e CPRB)",{"$f":"BDI!E18","v":7.3999999999999996E-2}]
[null,null,"C.2","Tributos Distritais (ISS)",{"$f":"BDI!E23","v":0.05},null,null,"* Nota - Utilizou-se o indicado pelo Sindicato da Arquitetura e da Engenharia (Sinaenco, 2008, p. 22), que adota um percentual redutor de 20% no cálculo dos custos tributários relativos às contribuições PIS e COFINS"]
[null,null,"D","Despesas Financeiras",{"$f":"BDI!E13","v":5.2519605742542552E-3}]
[]
[null,null,null,"TOTAL DE BDI",{"$f":"BDI!E26","v":0.26629999999999998},{"$f":"E94*E102","v":4872.6961510000001}]
[]
[null,null,null,"QUADRO-RESUMO DO CUSTO MENSAL POR EMPREGADO - SEM O 13º","Valor"]
[null,null,null,"Módulo 1 - Composição da Remuneração",{"$f":"F16","v":11079.73}]
[null,null,null,"Módulo 2 - Encargos e Benefícios Anuais, Mensais e Diários",{"$f":"F45","v":5614.8099999999995}]
[null,null,null,"Módulo 3 - Provisão para Rescisão",{"$f":"F55","v":374.02}]
[null,null,null,"Módulo 4 - Custo de Reposição do Profissional Ausente",{"$f":"F73","v":1229.21}]
[null,null,null,"Módulo 5 - Insumos Diversos",{"$f":"F82","v":0}]
[null,null,null,"SUBTOTAL (A+B+C+D+E)",{"$f":"SUM(E97:E101)","v":18297.77}]
[null,null,null,"Módulo 6 - Custos Indiretos, Tributos e Lucro",{"$f":"F94","v":4872.6961510000001}]
[]
[null,null,null,"TOTAL DO POSTO",{"$f":"SUM(E102:E103)","v":23170.466151000001}]
[]
[null,"MÓDULO 7 - DESTAQUE DO MÓDULO 2 - 13º SALÁRIO",null,null,"Percentuais","Valor"]
[null,null,"A","13º Salário",{"$f":"'[2]Encargos Sociais'!E31","v":8.3333333333333329E-2},{"$f":"ROUND(E108*F$16,2)","v":923.31}]
[null,null,"B","Encargos Sociais sobre o 13º Salário - Taxa calculada no SUBMÓDULO 2.2",{"$f":"SUM($E$24:$E$32)","v":0.34800000000000003},{"$f":"ROUND(E109*$F$108,2)","v":321.31},null,"* Nota 1 - Provisiona-se, mensalmente, o proporcional a 1/12 dos valores referentes a gratificação natalina"]
[null,null,"C","Reincidência de férias sobre o 13º Salário",{"$f":"E59","v":9.0909090909090912E-2},{"$f":"ROUND(E110*$F$108,2)","v":83.94}]
[null,null,"D","BDI sobre o 13º Salário - Taxa calculada no MÓDULO 6",{"$f":"E94","v":0.26629999999999998},{"$f":"ROUND(E111*($F$108+$F$109+$F$110),2)","v":353.8}]
[]
[null,null,null,"TOTAL DO DESTAQUE DO 13º SALÁRIO",null,{"$f":"SUM(F108:F111)","v":1682.36}]
[]
[null,null,null,"QUADRO-RESUMO DO CUSTO MENSAL POR EMPREGADO","Valor"]
[null,null,null,"Custo total - sem o 13º Salário",{"$f":"E105","v":23170.466151000001}]
[null,null,null,"Destaque do 13º Salário (valor mensal)",{"$f":"F113","v":1682.36}]
[]
[null,null,null,"TOTAL DO POSTO",{"$f":"E116+E117","v":24852.826151000001}]

{"sheet":"5","index":8,"n_rows":119,"n_cols":8,"rows_kept":119,"cut":false,"hidden":false,"merged":[[1,1,1,5],[2,1,2,5],[4,1,4,2],[5,1,5,2],[7,1,7,3],[17,1,17,3],[106,1,106,3],[39,3,39,5],[46,1,46,3],[56,1,56,3],[68,3,68,5],[74,1,74,3],[83,1,83,3]]}
[]
[null,"PLANILHA DE ESTIMATIVA DE CUSTOS"]
[null,"Padrão IN 05/2017 e IN 07/2018 - MPDG"]
[]
[null,5,null,{"$f":"HLOOKUP($B$5,'Dados Gerais'!$D$5:$BH$21,6)","v":"Analista de TI - Planejamento e Processos Digitais - sênior"},"QUANTIDADE",{"$f":"HLOOKUP($B$5,'Dados Gerais'!$D$5:$BH$21,10)","v":4}]
[null,"CCT",null,{"$f":"HLOOKUP($B$5,'Dados Gerais'!$D$5:$BH$21,16)","v":"SINDPD/DF X SINDESEI/DF 2021/2022 Nº DF000608/2021"},"DATA-BASE",{"$f":"HLOOKUP($B$5,'Dados Gerais'!$D$5:$BH$21,17)","v":"2021-05-01"}]
[]
[null,"MÓDULO 1 - COMPOSIÇÃO DA REMUNERAÇÃO",null,null,null,"Valor"]
[null,null,"A","Salário-Base",null,{"$f":"HLOOKUP($B$5,'Dados Gerais'!$D$5:$BH$21,8)","v":8369.94}]
[null,null,"B","Adicional de Periculosidade",null,{"$f":"HLOOKUP($B$5,'Dados Gerais'!$D$5:$BH$38,25)","v":0}]
[null,null,"C","Adicional de Insalubridade",null,{"$f":"HLOOKUP($B$5,'Dados Gerais'!$D$5:$BH$38,27)","v":0}]
[null,null,"D","Adicional Noturno",null,{"$f":"HLOOKUP($B$5,'Dados Gerais'!$D$5:$BH$51,46)","v":0},null,"* Nota 1 - O Módulo 1 refere-se ao valor mensal devido ao empregado pela prestação do serviço no período de 12 meses."]
[null,null,"E","Adicional de Hora Extra",null,{"$f":"HLOOKUP($B$5,'Dados Gerais'!$D$5:$BH$68,63)","v":0},null,"* Nota 2 - O adicional de hora extra no feriado trabalhado foi suprimido pela Lei 13.467/17"]
[null,null,"F","Outros (especificar)",null,{"$f":"HLOOKUP($B$5,'Dados Gerais'!$D$5:$BH$60,33)","v":0},null,"* Nota 3 - ART. 7º, § 2º, DA LEI Nº 605/49.Sendo mensalista o obreiro, o adicional noturno pago de forma fixa já é considerado integrado para os efeitos do pagamento do repouso semanal remunerado, nos termos do art. 7º, § 2º, da Lei nº 605/49."]
[]
[null,null,null,"TOTAL DA REMUNERAÇÃO",null,{"$f":"SUM(F9:F14)","v":8369.94}]
[]
[null,"MÓDULO 2 - ENCARGOS E BENEFÍCIOS ANUAIS, MENSAIS E DIÁRIOS",null,null,"Percentuais","Valor"]
[null,"Submódulo 2.1 - 13º Salário, Férias e Adicional de Férias"]
[null,null,"A","13º Salário - Calculado no Módulo 7 - Destacado",0,{"$f":"ROUND(E20*F$16,2)","v":0},null,"* Nota 1 - Provisiona-se, mensalmente, o proporcional a 1/12 dos valores referentes a gratificação natalina"]
[null,null,"B","Adicional de Férias",{"$f":"'[2]Encargos Sociais'!E30","v":3.03030303030303E-2},{"$f":"ROUND(E21*F$16,2)","v":253.63},null,"* Nota 2 - O adicional de férias contido no Submódulo 2.1 corresponde a 1/3 da remuneração que, por sua vez, é dividida por 12 contome Nota 1."]
[]
[null,"Submódulo 2.2 - Encargos Previdenciários (GPS), Fundo de Garantia por Tempo de Serviço (FGTS) e Outras Contribuições"]
[null,null,"A","INSS (art. 22, inciso I, Lei nº 8.212/91)",{"$f":"'Encargos Sociais'!E13","v":0.2},{"$f":"ROUND(E24*($F$16+$F$41+$F$73),2)","v":1910.43}]
[null,null,"B","Salário Educação (art. 3º, inciso I, Decreto nº 87.043/82)",{"$f":"'Encargos Sociais'!E14","v":2.5000000000000001E-2},{"$f":"ROUND(E25*($F$16+$F$41+$F$73),2)","v":238.8}]
[null,null,"C","SAT/RAT (art. 22, II, Lei 8.212/91 e Anexo V, Decreto 6.042/07) - Enquadramento 8211-3/00",{"$f":"'Encargos Sociais'!E15","v":0.01},95.52]
[null,null,"D","SESC ou SESI (art. 30, Lei nº 8.036/90 e art. 1º, Lei 8.154/90)",{"$f":"'Encargos Sociais'!E16","v":1.4999999999999999E-2},143.28]
[null,null,"E","SENAI ou SENAC (Decreto nº 2.318/86)",{"$f":"'Encargos Sociais'!E17","v":0.01},95.52]
[null,null,"F","SEBRAE (§ 3º, art. 8º, Lei 8.029/90, alterada pela Lei nº 8.154/90)",{"$f":"'Encargos Sociais'!E18","v":6.0000000000000001E-3},57.31]
[null,null,"G","INCRA (art. 1º, I, Decreto Lei 1.146/70 e Lei 7.787, de 30/06/89)",{"$f":"'Encargos Sociais'!E19","v":2E-3},19.100000000000001,null,"* Nota 1 - Os percentuais dos encargos previdenciários, do FGTS e demais contribuições são estabelecidos por legislação vigente."]
[null,null,"H","FGTS (Lei Complementar nº 110/01 e art. 30, Lei nº 8.036/90)",{"$f":"'Encargos Sociais'!E20","v":0.08},764.17,null,"* Nota 2 - O SAT, a depender do grau de risco do serviço, irá variar entre 1%, para risco leve, de 2%, para risco médio, e de 3% para risco grave."]
[null,null,"I","SECONCI (Convenções Coletivas de Trabalho da construção)",{"$f":"'Encargos Sociais'!E21","v":0},0,null,"* Nota 3 - Os percentuais do Submódulo 2.2 incidem sobre o Módulo 1 e o Submódulo 2.1."]
[]
[null,"Submódulo 2.3 - Benefícios Mensais e Diários"]
[null,null,"A","Auxílio Transporte",null,{"$f":"HLOOKUP($B$5,'Dados Gerais'!$D$5:$BH$94,83)","v":0}]
[null,null,"B","Auxílio Alimentação",null,{"$f":"HLOOKUP($B$5,'Dados Gerais'!$D$5:$BH$94,90)","v":770}]
[null,null,"C","Assistência Médica e Familiar",null,{"$f":"HLOOKUP($B$5,'Dados Gerais'!$D$5:$BH$102,98)","v":96.3}]
[null,null,"D","Outros (Seguro de vida e auxílio funeral e auxílio odontológico)",null,{"$f":"HLOOKUP($B$5,'Dados Gerais'!$D$5:$BH$119,115)","v":12.39},null,"* Nota 1 - O valor informado deverá ser o custo real do benefício (descontado o valor eventualmente pago pelo empregado)."]
[null,null,null,null,null,null,null,"* Nota 2 - Observar a previsão dos benefícios contidos em Acordos, Convenções e Dissídios Coletivos de Trabalho e o disposto no art. 6º da IN 5/2017"]
[null,null,null,"QUADRO-RESUMO DO MÓDULO 2"]
[null,null,null,"2.1 - 13º Salário, Férias e Adicional de Férias - 13º Destacado - Calculado no Módulo 7 ",{"$f":"SUM(E20:E21)","v":3.03030303030303E-2},{"$f":"F20+F21","v":253.63}]
[null,null,null,"2.2 - Encargos Previdenciários (GPS), Fundo de Garantia por Tempo de Serviço (FGTS) e Contribuições",{"$f":"SUM(E24:E32)","v":0.34800000000000003},{"$f":"SUM(F24:F32)","v":3324.13}]
[null,null,null,"2.3 - Benefícios Mensais e Diários",null,{"$f":"SUM(F35:F38)","v":878.68999999999994}]
[]
[null,null,null,"TOTAL DOS ENCARGOS E BENEFÍCIOS",null,{"$f":"SUM(F41:F43)","v":4456.45}]
[]
[null,"MÓDULO 3 - PREVISÃO PARA RESCISÃO",null,null,"Percentuais","Valor"]
[null,null,"A","Aviso Prévio Indenizado (Art. 7º, inciso XXI, da CF/1988 e arts. 477, 487, §1º, e 491 da CLT)",{"$f":"'[2]Encargos Sociais'!E35","v":3.3333333333333335E-3},{"$f":"ROUND(E48*($F$16+$F$59),2)","v":30.44}]
[null,null,"B","Incidência do FGTS sobre o Aviso Prévio Indenizado (Súmula 305 TST)",{"$f":"'[2]Encargos Sociais'!E36","v":2.6666666666666668E-4},2.4300000000000002,null,"* Nota 1 - Adotou-se os parâmetros do estudo do STF (http://www.stf.jus.br/arquivo/cms/sobrestfestudosci/anexo/encargos_sociais_03102007.pdf), onde 5% do pessoal é demitido pelo empregador no decurso do contrato (para estes, considerou-se o aviso prévio indenizado). Desprezou-se as demissões por justa causa e os pedidos de demissão."]
[null,null,"C","Multa do FGTS e Contribuição Social sobre o Aviso Prévio Indenizado (Art. 18, §1º, da Lei 8.036/1990 e art. 1º da LC nº 110/2001)",{"$f":"'[2]Encargos Sociais'!E37","v":1.274074074074074E-3},11.63,null,"* Nota 2 - No cálculo do percentual, considerou-se 36 dias, correspondendo à metade da duração média dos contratos (2 anos)"]
[null,null,"D","Aviso Prévio Trabalhado (Art. 488, parágrafo único, CLT)",{"$f":"'[2]Encargos Sociais'!E38","v":1.0833333333333334E-2},98.92,null,"* Nota 3 - Incide sobre a Remuneração + 13º salário (1/12) + Férias (1/12) + Adicional de Férias (1/36) x 50% multa (40% para o empregado e 10% de contribuição social) x 8% FGTS"]
[null,null,"E","Incidência de GPS, FGTS e outras contribuições sobre o Aviso Prévio Trabalhado",{"$f":"'[2]Encargos Sociais'!E39","v":3.7699999999999999E-3},34.42,null,"* Nota 4 - Os 95% restantes do cálculo, a um prazo médio de contrato de 4 anos. Assim, calcula-se 7 dias para o 1º ano de contrato e mais 3 dias para os 3 anos seguintes."]
[null,null,"F","Multa do FGTS e Contribuição Social sobre o Aviso Prévio Trabalhado",{"$f":"'[2]Encargos Sociais'!E40","v":1.1466666666666665E-2},104.7]
[]
[null,null,null,"TOTAL DE PREVISÃO PARA RESCISÃO",null,{"$f":"SUM(F48:F53)","v":282.54000000000002}]
[]
[null,"MÓDULO 4 - CUSTO DE REPOSIÇÃO DO PROFISSIONAL AUSENTE",null,null,"Percentuais","Valor"]
[null,"Submódulo 4.1 - Ausências Legais"]
[null,null,"A","Férias (Arts. 129 e 130, inc. I, da CLT)",{"$f":"'[2]Encargos Sociais'!E24","v":9.0909090909090912E-2},{"$f":"ROUND(E59*$F$16,2)","v":760.9},null,"* Nota 1 - As alíneas “A” a “F” referem-se somente ao custo que será pago ao repositor pelos dias \ntrabalhados quando da necessidade de substituir a mão de obra alocada na prestação do serviço."]
[null,null,"B","Ausências Legais (Arts. 131 e 473 da CLT)",{"$f":"'Encargos Sociais'!E25","v":7.9365079365079361E-3},{"$f":"ROUND(E60*$F$16,2)","v":66.430000000000007},null,"* Nota 2 - Adotou-se a estimativa do SINAPI de 2 dias por ano."]
[null,null,"C","Licença-Paternidade (Art. 7º, XIX, e art. 10, §1º, do ADCT, CF/1988 e Art. 1º, II, da Lei 11.770/2008)",{"$f":"'Encargos Sociais'!E26","v":8.2777777777777776E-4},6.93,null,"* Nota 3 - Utilizada a proporção de 50% para homens, 5 dias de afastamento, e a probabilidade de um trabalhador requerer a Licença Paternidade em 5,22%, conforme SINAPI (citando dados da PNAD 2015)"]
[null,null,"D","Ausência por Acidente de Trabalho (Art. 131, III, da CLT)",{"$f":"'Encargos Sociais'!E27","v":8.541666666666667E-4},7.15,null,"* Nota 4 - Utilzada a estatística de 1,96% dos contribuintes beneficiados com a emissão do auxílio, conforme Anuário Estatístico da Previdência Social. Afastamento de 15 dias a cargo da empresa."]
[null,null,"E","Afastamento Maternidade (Art. 71 da Lei nº 8.213/1991)",{"$f":"'Encargos Sociais'!E28","v":3.2925925925925922E-3},27.56,null,"* Nota 5 - Utilizada a proporção de 50% para mulheres, 180 dias de afastamento, e a probabilidade de uma trabalhadora requerer a Licença Maternidade em 4,91%, conforme SINAPI (citando dados do IBGE 2016)"]
[null,null,"F","Auxílio Enfermidade - Doença (Art. 59 da Lei nº 8.213/1991)",{"$f":"'Encargos Sociais'!E29","v":7.1222222222222225E-3},59.61,null,"* Nota 6 - Utilizada a estatística de 3,37% dos contribuintes beneficiados com o auxílio, conforme Anuário Estatístico da Previdência Social de 2015 (acrescidos de 2 dias ao ano, para os quais o trabalhador nem requer o benefício da Previdência - conforme SINAPI)"]
[]
[null,"Submódulo 4.2 - Intrajornada"]
[null,null,"A","Intervalo para repouso ou alimentação",{"$f":"'Encargos Sociais'!E32","v":0},{"$f":"ROUND(E67*$F$16,2)","v":0}]
[]
[null,null,null,"QUADRO-RESUMO DO MÓDULO 4",null,"Valor"]
[null,null,null,"4.1 - Ausências Legais",{"$f":"SUM(E59:E64)","v":0.11094235810485811},{"$f":"ROUND(E70*$F$16,2)","v":928.58}]
[null,null,null,"4.2 - Intrajornada",{"$f":"E67","v":0},{"$f":"ROUND(E71*$F$16,2)","v":0}]
[]
[null,null,null,"TOTAL DE PREVISÃO PARA RESCISÃO E INTERVALO INTRAJORNADA",null,{"$f":"SUM(F70:F71)","v":928.58}]
[]
[null,"MÓDULO 5 - INSUMOS DIVERSOS",null,null,null,"Valor"]
[null,null,"A","Uniformes - aquisição",null,{"$f":"ROUND(HLOOKUP($B$5,Uniformes!K11:DZ13,3)/12,2)","v":0}]
[null,null,"B","Materiais de consumo relacionados ao posto - aquisição",null,{"$f":"ROUND(HLOOKUP(B5,'Mat Cons'!I11:DX13,3)/12,2)","v":0}]
[null,null,"C","Materiais permanentes relacionados ao posto - remuneração da sua depreciação / manutenção",null,{"$f":"HLOOKUP(B5,'Mat Perm'!Q11:EF13,3)","v":0}]
[null,null,"D","Equipamentos relacionados ao posto - remuneração da sua depreciação / manutenção",null,{"$f":"HLOOKUP(B5,'Equip Rel'!Q11:EF13,3)","v":0}]
[null,null,"E","Equipamentos de Proteção Individual - EPI - aquisição",null,{"$f":"ROUND(HLOOKUP(B5,EPI!I11:DX13,3)/12,2)","v":0}]
[]
[null,null,null,"TOTAL DE INSUMOS DIVERSOS",null,{"$f":"SUM(F76:F81)","v":0},null,"* Nota - Valores mensais por empregado"]
[]
[null,"MÓDULO 6 - CUSTOS INDIRETOS, TRIBUTOS E LUCRO - BDI",null,null,"Percentuais","Valor"]
[null,null,"A","Custos Indiretos",{"$f":"BDI!E6","v":6.0999999999999999E-2}]
[null,null,"A.1","Administração Central",{"$f":"BDI!E7","v":2.5999999999999999E-2}]
[null,null,"A.2","Seguros, Garantias e Riscos",{"$f":"BDI!E8","v":3.5000000000000003E-2}]
[null,null,"B","Lucro",{"$f":"BDI!E10","v":0.04}]
[null,null,"C","Tributos",{"$f":"SUM(E90:E91)","v":0.124}]
[null,null,"C.1","Tributos Federais (COFINS, PIS e CPRB)",{"$f":"BDI!E18","v":7.3999999999999996E-2}]
[null,null,"C.2","Tributos Distritais (ISS)",{"$f":"BDI!E23","v":0.05},null,null,"* Nota - Utilizou-se o indicado pelo Sindicato da Arquitetura e da Engenharia (Sinaenco, 2008, p. 22), que adota um percentual redutor de 20% no cálculo dos custos tributários relativos às contribuições PIS e COFINS"]
[null,null,"D","Despesas Financeiras",{"$f":"BDI!E13","v":5.2519605742542552E-3}]
[]
[null,null,null,"TOTAL DE BDI",{"$f":"BDI!E26","v":0.26629999999999998},{"$f":"E94*E102","v":3738.188913}]
[]
[null,null,null,"QUADRO-RESUMO DO CUSTO MENSAL POR EMPREGADO - SEM O 13º","Valor"]
[null,null,null,"Módulo 1 - Composição da Remuneração",{"$f":"F16","v":8369.94}]
[null,null,null,"Módulo 2 - Encargos e Benefícios Anuais, Mensais e Diários",{"$f":"F45","v":4456.45}]
[null,null,null,"Módulo 3 - Provisão para Rescisão",{"$f":"F55","v":282.54000000000002}]
[null,null,null,"Módulo 4 - Custo de Reposição do Profissional Ausente",{"$f":"F73","v":928.58}]
[null,null,null,"Módulo 5 - Insumos Diversos",{"$f":"F82","v":0}]
[null,null,null,"SUBTOTAL (A+B+C+D+E)",{"$f":"SUM(E97:E101)","v":14037.51}]
[null,null,null,"Módulo 6 - Custos Indiretos, Tributos e Lucro",{"$f":"F94","v":3738.188913}]
[]
[null,null,null,"TOTAL DO POSTO",{"$f":"SUM(E102:E103)","v":17775.698913}]
[]
[null,"MÓDULO 7 - DESTAQUE DO MÓDULO 2 - 13º SALÁRIO",null,null,"Percentuais","Valor"]
[null,null,"A","13º Salário",{"$f":"'[2]Encargos Sociais'!E31","v":8.3333333333333329E-2},{"$f":"ROUND(E108*F$16,2)","v":697.5}]
[null,null,"B","Encargos Sociais sobre o 13º Salário - Taxa calculada no SUBMÓDULO 2.2",{"$f":"SUM($E$24:$E$32)","v":0.34800000000000003},{"$f":"ROUND(E109*$F$108,2)","v":242.73},null,"* Nota 1 - Provisiona-se, mensalmente, o proporcional a 1/12 dos valores referentes a gratificação natalina"]
[null,null,"C","Reincidência de férias sobre o 13º Salário",{"$f":"E59","v":9.0909090909090912E-2},{"$f":"ROUND(E110*$F$108,2)","v":63.41}]
[null,null,"D","BDI sobre o 13º Salário - Taxa calculada no MÓDULO 6",{"$f":"E94","v":0.26629999999999998},{"$f":"ROUND(E111*($F$108+$F$109+$F$110),2)","v":267.27}]
[]
[null,null,null,"TOTAL DO DESTAQUE DO 13º SALÁRIO",null,{"$f":"SUM(F108:F111)","v":1270.9099999999999}]
[]
[null,null,null,"QUADRO-RESUMO DO CUSTO MENSAL POR EMPREGADO","Valor"]
[null,null,null,"Custo total - sem o 13º Salário",{"$f":"E105","v":17775.698913}]
[null,null,null,"Destaque do 13º Salário (valor mensal)",{"$f":"F113","v":1270.9099999999999}]
[]
[null,null,null,"TOTAL DO POSTO",{"$f":"E116+E117","v":19046.608913}]

{"sheet":"6","index":9,"n_rows":119,"n_cols":8,"rows_kept":119,"cut":false,"hidden":false,"merged":[[106,1,106,3],[39,3,39,5],[46,1,46,3],[56,1,56,3],[68,3,68,5],[74,1,74,3],[83,1,83,3],[17,1,17,3],[1,1,1,5],[2,1,2,5],[4,1,4,2],[5,1,5,2],[7,1,7,3]]}
[]
[null,"PLANILHA DE ESTIMATIVA DE CUSTOS"]
[null,"Padrão IN 05/2017 e IN 07/2018 - MPDG"]
[]
[null,6,null,{"$f":"HLOOKUP($B$5,'Dados Gerais'!$D$5:$BH$21,6)","v":"Analista de Design e Cultura Digital - sênior"},"QUANTIDADE",{"$f":"HLOOKUP($B$5,'Dados Gerais'!$D$5:$BH$21,10)","v":2}]
[null,"CCT",null,{"$f":"HLOOKUP($B$5,'Dados Gerais'!$D$5:$BH$21,16)","v":"SINDPD/DF X SINDESEI/DF 2021/2022 Nº DF000608/2021"},"DATA-BASE",{"$f":"HLOOKUP($B$5,'Dados Gerais'!$D$5:$BH$21,17)","v":"2021-05-01"}]
[]
[null,"MÓDULO 1 - COMPOSIÇÃO DA REMUNERAÇÃO",null,null,null,"Valor"]
[null,null,"A","Salário-Base",null,{"$f":"HLOOKUP($B$5,'Dados Gerais'!$D$5:$BH$21,8)","v":7036.27}]
[null,null,"B","Adicional de Periculosidade",null,{"$f":"HLOOKUP($B$5,'Dados Gerais'!$D$5:$BH$38,25)","v":0}]
[null,null,"C","Adicional de Insalubridade",null,{"$f":"HLOOKUP($B$5,'Dados Gerais'!$D$5:$BH$38,27)","v":0}]
[null,null,"D","Adicional Noturno",null,{"$f":"HLOOKUP($B$5,'Dados Gerais'!$D$5:$BH$51,46)","v":0},null,"* Nota 1 - O Módulo 1 refere-se ao valor mensal devido ao empregado pela prestação do serviço no período de 12 meses."]
[null,null,"E","Adicional de Hora Extra",null,{"$f":"HLOOKUP($B$5,'Dados Gerais'!$D$5:$BH$68,63)","v":0},null,"* Nota 2 - O adicional de hora extra no feriado trabalhado foi suprimido pela Lei 13.467/17"]
[null,null,"F","Outros (especificar)",null,{"$f":"HLOOKUP($B$5,'Dados Gerais'!$D$5:$BH$60,33)","v":0},null,"* Nota 3 - ART. 7º, § 2º, DA LEI Nº 605/49.Sendo mensalista o obreiro, o adicional noturno pago de forma fixa já é considerado integrado para os efeitos do pagamento do repouso semanal remunerado, nos termos do art. 7º, § 2º, da Lei nº 605/49."]
[]
[null,null,null,"TOTAL DA REMUNERAÇÃO",null,{"$f":"SUM(F9:F14)","v":7036.27}]
[]
[null,"MÓDULO 2 - ENCARGOS E BENEFÍCIOS ANUAIS, MENSAIS E DIÁRIOS",null,null,"Percentuais","Valor"]
[null,"Submódulo 2.1 - 13º Salário, Férias e Adicional de Férias"]
[null,null,"A","13º Salário - Calculado no Módulo 7 - Destacado",0,{"$f":"ROUND(E20*F$16,2)","v":0},null,"* Nota 1 - Provisiona-se, mensalmente, o proporcional a 1/12 dos valores referentes a gratificação natalina"]
[null,null,"B","Adicional de Férias",{"$f":"'[2]Encargos Sociais'!E30","v":3.03030303030303E-2},{"$f":"ROUND(E21*F$16,2)","v":213.22},null,"* Nota 2 - O adicional de férias contido no Submódulo 2.1 corresponde a 1/3 da remuneração que, por sua vez, é dividida por 12 contome Nota 1."]
[]
[null,"Submódulo 2.2 - Encargos Previdenciários (GPS), Fundo de Garantia por Tempo de Serviço (FGTS) e Outras Contribuições"]
[null,null,"A","INSS (art. 22, inciso I, Lei nº 8.212/91)",{"$f":"'Encargos Sociais'!E13","v":0.2},{"$f":"ROUND(E24*($F$16+$F$41+$F$73),2)","v":1606.02}]
[null,null,"B","Salário Educação (art. 3º, inciso I, Decreto nº 87.043/82)",{"$f":"'Encargos Sociais'!E14","v":2.5000000000000001E-2},{"$f":"ROUND(E25*($F$16+$F$41+$F$73),2)","v":200.75}]
[null,null,"C","SAT/RAT (art. 22, II, Lei 8.212/91 e Anexo V, Decreto 6.042/07) - Enquadramento 8211-3/00",{"$f":"'Encargos Sociais'!E15","v":0.01},80.3]
[null,null,"D","SESC ou SESI (art. 30, Lei nº 8.036/90 e art. 1º, Lei 8.154/90)",{"$f":"'Encargos Sociais'!E16","v":1.4999999999999999E-2},120.45]
[null,null,"E","SENAI ou SENAC (Decreto nº 2.318/86)",{"$f":"'Encargos Sociais'!E17","v":0.01},80.3]
[null,null,"F","SEBRAE (§ 3º, art. 8º, Lei 8.029/90, alterada pela Lei nº 8.154/90)",{"$f":"'Encargos Sociais'!E18","v":6.0000000000000001E-3},48.18]
[null,null,"G","INCRA (art. 1º, I, Decreto Lei 1.146/70 e Lei 7.787, de 30/06/89)",{"$f":"'Encargos Sociais'!E19","v":2E-3},16.059999999999999,null,"* Nota 1 - Os percentuais dos encargos previdenciários, do FGTS e demais contribuições são estabelecidos por legislação vigente."]
[null,null,"H","FGTS (Lei Complementar nº 110/01 e art. 30, Lei nº 8.036/90)",{"$f":"'Encargos Sociais'!E20","v":0.08},642.41,null,"* Nota 2 - O SAT, a depender do grau de risco do serviço, irá variar entre 1%, para risco leve, de 2%, para risco médio, e de 3% para risco grave."]
[null,null,"I","SECONCI (Convenções Coletivas de Trabalho da construção)",{"$f":"'Encargos Sociais'!E21","v":0},0,null,"* Nota 3 - Os percentuais do Submódulo 2.2 incidem sobre o Módulo 1 e o Submódulo 2.1."]
[]
[null,"Submódulo 2.3 - Benefícios Mensais e Diários"]
[null,null,"A","Auxílio Transporte",null,{"$f":"HLOOKUP($B$5,'Dados Gerais'!$D$5:$BH$94,83)","v":0}]
[null,null,"B","Auxílio Alimentação",null,{"$f":"HLOOKUP($B$5,'Dados Gerais'!$D$5:$BH$94,90)","v":770}]
[null,null,"C","Assistência Médica e Familiar",null,{"$f":"HLOOKUP($B$5,'Dados Gerais'!$D$5:$BH$102,98)","v":96.3}]
[null,null,"D","Outros (Seguro de vida e auxílio funeral e auxílio odontológico)",null,{"$f":"HLOOKUP($B$5,'Dados Gerais'!$D$5:$BH$119,115)","v":12.39},null,"* Nota 1 - O valor informado deverá ser o custo real do benefício (descontado o valor eventualmente pago pelo empregado)."]
[null,null,null,null,null,null,null,"* Nota 2 - Observar a previsão dos benefícios contidos em Acordos, Convenções e Dissídios Coletivos de Trabalho e o disposto no art. 6º da IN 5/2017"]
[null,null,null,"QUADRO-RESUMO DO MÓDULO 2"]
[null,null,null,"2.1 - 13º Salário, Férias e Adicional de Férias - 13º Destacado - Calculado no Módulo 7 ",{"$f":"SUM(E20:E21)","v":3.03030303030303E-2},{"$f":"F20+F21","v":213.22}]
[null,null,null,"2.2 - Encargos Previdenciários (GPS), Fundo de Garantia por Tempo de Serviço (FGTS) e Contribuições",{"$f":"SUM(E24:E32)","v":0.34800000000000003},{"$f":"SUM(F24:F32)","v":2794.47}]
[null,null,null,"2.3 - Benefícios Mensais e Diários",null,{"$f":"SUM(F35:F38)","v":878.68999999999994}]
[]
[null,null,null,"TOTAL DOS ENCARGOS E BENEFÍCIOS",null,{"$f":"SUM(F41:F43)","v":3886.3799999999997}]
[]
[null,"MÓDULO 3 - PREVISÃO PARA RESCISÃO",null,null,"Percentuais","Valor"]
[null,null,"A","Aviso Prévio Indenizado (Art. 7º, inciso XXI, da CF/1988 e arts. 477, 487, §1º, e 491 da CLT)",{"$f":"'[2]Encargos Sociais'!E35","v":3.3333333333333335E-3},{"$f":"ROUND(E48*($F$16+$F$59),2)","v":25.59}]
[null,null,"B","Incidência do FGTS sobre o Aviso Prévio Indenizado (Súmula 305 TST)",{"$f":"'[2]Encargos Sociais'!E36","v":2.6666666666666668E-4},2.0499999999999998,null,"* Nota 1 - Adotou-se os parâmetros do estudo do STF (http://www.stf.jus.br/arquivo/cms/sobrestfestudosci/anexo/encargos_sociais_03102007.pdf), onde 5% do pessoal é demitido pelo empregador no decurso do contrato (para estes, considerou-se o aviso prévio indenizado). Desprezou-se as demissões por justa causa e os pedidos de demissão."]
[null,null,"C","Multa do FGTS e Contribuição Social sobre o Aviso Prévio Indenizado (Art. 18, §1º, da Lei 8.036/1990 e art. 1º da LC nº 110/2001)",{"$f":"'[2]Encargos Sociais'!E37","v":1.274074074074074E-3},9.7799999999999994,null,"* Nota 2 - No cálculo do percentual, considerou-se 36 dias, correspondendo à metade da duração média dos contratos (2 anos)"]
[null,null,"D","Aviso Prévio Trabalhado (Art. 488, parágrafo único, CLT)",{"$f":"'[2]Encargos Sociais'!E38","v":1.0833333333333334E-2},83.16,null,"* Nota 3 - Incide sobre a Remuneração + 13º salário (1/12) + Férias (1/12) + Adicional de Férias (1/36) x 50% multa (40% para o empregado e 10% de contribuição social) x 8% FGTS"]
[null,null,"E","Incidência de GPS, FGTS e outras contribuições sobre o Aviso Prévio Trabalhado",{"$f":"'[2]Encargos Sociais'!E39","v":3.7699999999999999E-3},28.94,null,"* Nota 4 - Os 95% restantes do cálculo, a um prazo médio de contrato de 4 anos. Assim, calcula-se 7 dias para o 1º ano de contrato e mais 3 dias para os 3 anos seguintes."]
[null,null,"F","Multa do FGTS e Contribuição Social sobre o Aviso Prévio Trabalhado",{"$f":"'[2]Encargos Sociais'!E40","v":1.1466666666666665E-2},88.02]
[]
[null,null,null,"TOTAL DE PREVISÃO PARA RESCISÃO",null,{"$f":"SUM(F48:F53)","v":237.54000000000002}]
[]
[null,"MÓDULO 4 - CUSTO DE REPOSIÇÃO DO PROFISSIONAL AUSENTE",null,null,"Percentuais","Valor"]
[null,"Submódulo 4.1 - Ausências Legais"]
[null,null,"A","Férias (Arts. 129 e 130, inc. I, da CLT)",{"$f":"'[2]Encargos Sociais'!E24","v":9.0909090909090912E-2},{"$f":"ROUND(E59*$F$16,2)","v":639.66},null,"* Nota 1 - As alíneas “A” a “F” referem-se somente ao custo que será pago ao repositor pelos dias \ntrabalhados quando da necessidade de substituir a mão de obra alocada na prestação do serviço."]
[null,null,"B","Ausências Legais (Arts. 131 e 473 da CLT)",{"$f":"'Encargos Sociais'!E25","v":7.9365079365079361E-3},{"$f":"ROUND(E60*$F$16,2)","v":55.84},null,"* Nota 2 - Adotou-se a estimativa do SINAPI de 2 dias por ano."]
[null,null,"C","Licença-Paternidade (Art. 7º, XIX, e art. 10, §1º, do ADCT, CF/1988 e Art. 1º, II, da Lei 11.770/2008)",{"$f":"'Encargos Sociais'!E26","v":8.2777777777777776E-4},5.82,null,"* Nota 3 - Utilizada a proporção de 50% para homens, 5 dias de afastamento, e a probabilidade de um trabalhador requerer a Licença Paternidade em 5,22%, conforme SINAPI (citando dados da PNAD 2015)"]
[null,null,"D","Ausência por Acidente de Trabalho (Art. 131, III, da CLT)",{"$f":"'Encargos Sociais'!E27","v":8.541666666666667E-4},6.01,null,"* Nota 4 - Utilzada a estatística de 1,96% dos contribuintes beneficiados com a emissão do auxílio, conforme Anuário Estatístico da Previdência Social. Afastamento de 15 dias a cargo da empresa."]
[null,null,"E","Afastamento Maternidade (Art. 71 da Lei nº 8.213/1991)",{"$f":"'Encargos Sociais'!E28","v":3.2925925925925922E-3},23.17,null,"* Nota 5 - Utilizada a proporção de 50% para mulheres, 180 dias de afastamento, e a probabilidade de uma trabalhadora requerer a Licença Maternidade em 4,91%, conforme SINAPI (citando dados do IBGE 2016)"]
[null,null,"F","Auxílio Enfermidade - Doença (Art. 59 da Lei nº 8.213/1991)",{"$f":"'Encargos Sociais'!E29","v":7.1222222222222225E-3},50.11,null,"* Nota 6 - Utilizada a estatística de 3,37% dos contribuintes beneficiados com o auxílio, conforme Anuário Estatístico da Previdência Social de 2015 (acrescidos de 2 dias ao ano, para os quais o trabalhador nem requer o benefício da Previdência - conforme SINAPI)"]
[]
[null,"Submódulo 4.2 - Intrajornada"]
[null,null,"A","Intervalo para repouso ou alimentação",{"$f":"'Encargos Sociais'!E32","v":0},{"$f":"ROUND(E67*$F$16,2)","v":0}]
[]
[null,null,null,"QUADRO-RESUMO DO MÓDULO 4",null,"Valor"]
[null,null,null,"4.1 - Ausências Legais",{"$f":"SUM(E59:E64)","v":0.11094235810485811},{"$f":"ROUND(E70*$F$16,2)","v":780.62}]
[null,null,null,"4.2 - Intrajornada",{"$f":"E67","v":0},{"$f":"ROUND(E71*$F$16,2)","v":0}]
[]
[null,null,null,"TOTAL DE PREVISÃO PARA RESCISÃO E INTERVALO INTRAJORNADA",null,{"$f":"SUM(F70:F71)","v":780.62}]
[]
[null,"MÓDULO 5 - INSUMOS DIVERSOS",null,null,null,"Valor"]
[null,null,"A","Uniformes - aquisição",null,{"$f":"ROUND(HLOOKUP($B$5,Uniformes!K11:DZ13,3)/12,2)","v":0}]
[null,null,"B","Materiais de consumo relacionados ao posto - aquisição",null,{"$f":"ROUND(HLOOKUP(B5,'Mat Cons'!I11:DX13,3)/12,2)","v":0}]
[null,null,"C","Materiais permanentes relacionados ao posto - remuneração da sua depreciação / manutenção",null,{"$f":"HLOOKUP(B5,'Mat Perm'!Q11:EF13,3)","v":0}]
[null,null,"D","Equipamentos relacionados ao posto - remuneração da sua depreciação / manutenção",null,{"$f":"HLOOKUP(B5,'Equip Rel'!Q11:EF13,3)","v":0}]
[null,null,"E","Equipamentos de Proteção Individual - EPI - aquisição",null,{"$f":"ROUND(HLOOKUP(B5,EPI!I11:DX13,3)/12,2)","v":0}]
[]
[null,null,null,"TOTAL DE INSUMOS DIVERSOS",null,{"$f":"SUM(F76:F81)","v":0},null,"* Nota - Valores mensais por empregado"]
[]
[null,"MÓDULO 6 - CUSTOS INDIRETOS, TRIBUTOS E LUCRO - BDI",null,null,"Percentuais","Valor"]
[null,null,"A","Custos Indiretos",{"$f":"BDI!E6","v":6.0999999999999999E-2}]
[null,null,"A.1","Administração Central",{"$f":"BDI!E7","v":2.5999999999999999E-2}]
[null,null,"A.2","Seguros, Garantias e Riscos",{"$f":"BDI!E8","v":3.5000000000000003E-2}]
[null,null,"B","Lucro",{"$f":"BDI!E10","v":0.04}]
[null,null,"C","Tributos",{"$f":"SUM(E90:E91)","v":0.124}]
[null,null,"C.1","Tributos Federais (COFINS, PIS e CPRB)",{"$f":"BDI!E18","v":7.3999999999999996E-2}]
[null,null,"C.2","Tributos Distritais (ISS)",{"$f":"BDI!E23","v":0.05},null,null,"* Nota - Utilizou-se o indicado pelo Sindicato da Arquitetura e da Engenharia (Sinaenco, 2008, p. 22), que adota um percentual redutor de 20% no cálculo dos custos tributários relativos às contribuições PIS e COFINS"]
[null,null,"D","Despesas Financeiras",{"$f":"BDI!E13","v":5.2519605742542552E-3}]
[]
[null,null,null,"TOTAL DE BDI",{"$f":"BDI!E26","v":0.26629999999999998},{"$f":"E94*E102","v":3179.8377030000001}]
[]
[null,null,null,"QUADRO-RESUMO DO CUSTO MENSAL POR EMPREGADO - SEM O 13º","Valor"]
[null,null,null,"Módulo 1 - Composição da Remuneração",{"$f":"F16","v":7036.27}]
[null,null,null,"Módulo 2 - Encargos e Benefícios Anuais, Mensais e Diários",{"$f":"F45","v":3886.3799999999997}]
[null,null,null,"Módulo 3 - Provisão para Rescisão",{"$f":"F55","v":237.54000000000002}]
[null,null,null,"Módulo 4 - Custo de Reposição do Profissional Ausente",{"$f":"F73","v":780.62}]
[null,null,null,"Módulo 5 - Insumos Diversos",{"$f":"F82","v":0}]
[null,null,null,"SUBTOTAL (A+B+C+D+E)",{"$f":"SUM(E97:E101)","v":11940.810000000001}]
[null,null,null,"Módulo 6 - Custos Indiretos, Tributos e Lucro",{"$f":"F94","v":3179.8377030000001}]
[]
[null,null,null,"TOTAL DO POSTO",{"$f":"SUM(E102:E103)","v":15120.647703000002}]
[]
[null,"MÓDULO 7 - DESTAQUE DO MÓDULO 2 - 13º SALÁRIO",null,null,"Percentuais","Valor"]
[null,null,"A","13º Salário",{"$f":"'[2]Encargos Sociais'!E31","v":8.3333333333333329E-2},{"$f":"ROUND(E108*F$16,2)","v":586.36}]
[null,null,"B","Encargos Sociais sobre o 13º Salário - Taxa calculada no SUBMÓDULO 2.2",{"$f":"SUM($E$24:$E$32)","v":0.34800000000000003},{"$f":"ROUND(E109*$F$108,2)","v":204.05},null,"* Nota 1 - Provisiona-se, mensalmente, o proporcional a 1/12 dos valores referentes a gratificação natalina"]
[null,null,"C","Reincidência de férias sobre o 13º Salário",{"$f":"E59","v":9.0909090909090912E-2},{"$f":"ROUND(E110*$F$108,2)","v":53.31}]
[null,null,"D","BDI sobre o 13º Salário - Taxa calculada no MÓDULO 6",{"$f":"E94","v":0.26629999999999998},{"$f":"ROUND(E111*($F$108+$F$109+$F$110),2)","v":224.68}]
[]
[null,null,null,"TOTAL DO DESTAQUE DO 13º SALÁRIO",null,{"$f":"SUM(F108:F111)","v":1068.4000000000001}]
[]
[null,null,null,"QUADRO-RESUMO DO CUSTO MENSAL POR EMPREGADO","Valor"]
[null,null,null,"Custo total - sem o 13º Salário",{"$f":"E105","v":15120.647703000002}]
[null,null,null,"Destaque do 13º Salário (valor mensal)",{"$f":"F113","v":1068.4000000000001}]
[]
[null,null,null,"TOTAL DO POSTO",{"$f":"E116+E117","v":16189.047703000002}]

{"sheet":"Dados Gerais","index":10,"n_rows":119,"n_cols":60,"rows_kept":119,"cut":false,"hidden":false,"merged":[[2,1,2,2]]}
[]
[]
[null,"INFORMAÇÕES DE ENTRADA"]
[]
[null,null,null,1,2,3,4,5,6,10,11,12,13,14,15,16,17,18,19,20,21,22,23,24,25,26,27,28,29,30,31,32,33,34,35,36,37,38,39,40,41,42,43,44,45,46,47,48,49,50,51,52,53,54,55,56,57,58,59,60]
[null,"",null,"CARGO 1","CARGO 2","CARGO 3","CARGO 4","CARGO 5","CARGO 6","CARGO 10","CARGO 11","CARGO 12","CARGO 13","CARGO 14","CARGO 15","CARGO 16","CARGO 17","CARGO 18","CARGO 19","CARGO 20","CARGO 21","CARGO 22","CARGO 23","CARGO 24","CARGO 25","CARGO 26","CARGO 27","CARGO 28","CARGO 29","CARGO 30","CARGO 31","CARGO 32","CARGO 33","CARGO 34","CARGO 35","CARGO 36","CARGO 37","CARGO 38","CARGO 39","CARGO 40","CARGO 41","CARGO 42","CARGO 43","CARGO 44","CARGO 45","CARGO 46","CARGO 47","CARGO 48","CARGO 49","CARGO 50","CARGO 51","CARGO 52","CARGO 53","CARGO 54","CARGO 55","CARGO 56","CARGO 57","CARGO 58","CARGO 59","CARGO 60"]
[null,"INFORMAÇÕES BÁSICAS"]
[]
[null,"DESCRIÇÃO DOS POSTOS DE SERVIÇO"]
[null,null,null,"Analista de TI - Agile Master - sênior","Analista de TI - Engenheiro de Dados - sênior","Analista de TI - Analista de Dados - sênior","Analista de TI - Arquiteto de Dados - sênior","Analista de TI - Planejamento e Processos Digitais - sênior","Analista de Design e Cultura Digital - sênior"]
[null,"REMUNERAÇÕES"]
[null,null,null,11027,13998.55,9747.5400000000009,11079.73,8369.94,7036.27]
[null,"QUANTIDADE DE POSTOS"]
[null,null,null,8,5,9,6,4,2]
[null,"JORNADA"]
[null,null,"HORAS/MÊS",{"$f":"8*5*5","v":200},{"$f":"8*5*5","v":200},200,200,200,200]
[null,null,"HORAS/DIA",8,8,8,8,8,8]
[null,null,"DIAS/MÊS",22,22,22,22,22,22]
[null,"CCT UTILIZADA"]
[null,null,"SINDICATOS E REFERÊNCIA","SINDPD/DF X SINDESEI/DF 2021/2022 Nº DF000608/2021","SINDPD/DF X SINDESEI/DF 2021/2022 Nº DF000608/2021","SINDPD/DF X SINDESEI/DF 2021/2022 Nº DF000608/2021","SINDPD/DF X SINDESEI/DF 2021/2022 Nº DF000608/2021","SINDPD/DF X SINDESEI/DF 2021/2022 Nº DF000608/2021","SINDPD/DF X SINDESEI/DF 2021/2022 Nº DF000608/2021"]
[null,null,"DATA-BASE","2021-05-01","2021-05-01","2021-05-01","2021-05-01","2021-05-01","2021-05-01"]
[]
[null,"ADICIONAIS LEGAIS E GRATIFICAÇÕES"]
[]
[null,"PERICULOSIDADE (PERCENTUAL)"]
[null,null,null,0,0,0,0,0,0]
[null,"BASE DE CÁLCULO DO ADICIONAL DE PERICULOSIDADE (SALÁRIO BÁSICO)"]
[null,null,null,{"$f":"D12","v":11027},2386.75,{"$f":"F12","v":9747.5400000000009},{"$f":"G12","v":11079.73},{"$f":"H12","v":8369.94},2386.75]
[null,"VALOR MENSAL DO ADICIONAL DE PERICULOSIDADE"]
[null,null,null,{"$f":"ROUND(D26*D12,2)","v":0},0,{"$f":"ROUND(F26*F12,2)","v":0},{"$f":"ROUND(G26*G12,2)","v":0},{"$f":"ROUND(H26*H12,2)","v":0},0]
[null,"INSALUBRIDADE (PERCENTUAL)"]
[null,null,null,0,0,0,0,0,0]
[null,"BASE DE CÁLCULO DO ADICIONAL DE INSALUBRIDADE (SALÁRIO MÍNIMO LEGAL)"]
[null,null,null,1100,1100,1100,1100,1100,1100]
[null,"VALOR MENSAL DO ADICIONAL DE INSALUBRIDADE"]
[null,null,null,{"$f":"ROUND(D32*D12,2)","v":0},0,{"$f":"ROUND(F32*F12,2)","v":0},{"$f":"ROUND(G32*G12,2)","v":0},{"$f":"ROUND(H32*H12,2)","v":0},0]
[null,"GRATIFICAÇÃO - VALOR MENSAL (R$)"]
[null,null,null,0,0,0,0,0,0]
[]
[null,"ADICIONAL NOTURNO"]
[]
[null,"INCIDÊNCIA (PERCENTUAL)"]
[null,null,null,0.2,0.2,0.2,0.2,0.2,0.2]
[null,"HORAS REAIS POR DIA"]
[null,null,null,0,0,0,0,0,0]
[null,"HORAS FICTAS POR DIA"]
[null,null,null,{"$f":"D45*8/7","v":0},0,0,0,0,0]
[null,"BASE DE CÁLCULO DO ADICIONAL NOTURNO (INCLUINDO ADICIONAIS E GRATIFICAÇÕES)"]
[null,null,null,{"$f":"D12+D30+D36+D38","v":11027},13998.55,9747.5400000000009,11079.73,8369.94,7036.27]
[null,"VALOR MENSAL DO ADICIONAL NOTURNO (HORA NORMAL + HORA REDUZIDA) - POR POSTO"]
[null,null,null,{"$f":"ROUND(D47*D18*D43*D49/D16,2)","v":0},0,0,0,0,0]
[]
[null,"ADICIONAL DE HORA EXTRA"]
[]
[null,"INCIDÊNCIA (PERCENTUAL 1)"]
[null,null,null,0.5,0.5,0.5,0.5,0.5,0.5]
[null,"HORAS EXTRAS POR MÊS (PERCENTUAL 1)"]
[null,null,null,0,0,0,0,0,0]
[null,"VALOR MENSAL DO ADICIONAL DE HORAS EXTRAS (PERCENTUAL 1) - POR POSTO"]
[null,null,null,{"$f":"ROUND(D58*D56*D12/D16,2)","v":0},0,{"$f":"ROUND(F58*F56*F12/F16,2)","v":0},{"$f":"ROUND(G58*G56*G12/G16,2)","v":0},{"$f":"ROUND(H58*H56*H12/H16,2)","v":0},0]
[null,"INCIDÊNCIA (PERCENTUAL 2)"]
[null,null,null,1,1,1,1,1,1]
[null,"HORAS EXTRAS POR MÊS (PERCENTUAL 2)"]
[null,null,null,0,0,0,0,0,0]
[null,"VALOR MENSAL DO ADICIONAL DE HORAS EXTRAS (PERCENTUAL 2) - POR POSTO"]
[null,null,null,{"$f":"ROUND(D64*D62*D12/D16,2)","v":0},0,{"$f":"ROUND(F64*F62*F12/F16,2)","v":0},{"$f":"ROUND(G64*G62*G12/G16,2)","v":0},{"$f":"ROUND(H64*H62*H12/H16,2)","v":0},0]
[null,"TOTAL MENSAL DOS ADICIONAIS DE HORAS EXTRAS - POR POSTO"]
[null,null,null,{"$f":"D66+D60","v":0},0,{"$f":"F66+F60","v":0},{"$f":"G66+G60","v":0},{"$f":"H66+H60","v":0},0]
[]
[null,"BENEFÍCIOS COMUNS - AUXÍLIO TRANSPORTE"]
[]
[null,"DISTRIBUIÇÃO ESTIMADA DE PROCEDÊNCIA"]
[null,null,"Cidade-satélite",0.6,0.6,0.6,0.6,0.6,0.6]
[null,null,"Região do entorno",0.4,0.4,0.4,0.4,0.4,0.4]
[null,null,"Esplanada - apenas para os que vêm do entorno",{"$f":"D74","v":0.4},0.4,0.4,0.4,0.4,0.4]
[null,"VALORES DOS VALES"]
[null,null,"Cidade-satélite",5.5,{"$f":"D77","v":5.5},5.5,5.5,5.5,5.5]
[null,null,"Região do entorno",7.05,7.05,7.05,7.05,7.05,7.05]
[null,null,"Esplanada",2.75,2.75,2.75,2.75,2.75,2.75]
[null,"VALOR MENSAL BRUTO DE PAGAMENTO - POR POSTO"]
[null,null,null,{"$f":"ROUND((D73*D77+D74*D78+D75*D79)*2*D18,2)","v":317.68},317.68,317.68,317.68,317.68,317.68]
[null,"PERCENTUAL DE DESCONTO"]
[null,null,null,0.06,0.06,0.06,0.06,0.06,0.06]
[null,"VALOR MENSAL DO DESCONTO - POR POSTO"]
[null,null,null,{"$f":"ROUND(D83*D12,2)","v":661.62},839.91,584.85,664.78,502.2,422.18]
[null,"VALOR MENSAL LÍQUIDO DO VALE TRANSPORTE - POR POSTO"]
[null,null,null,{"$f":"IF(D81>D85,D81-D85,0)","v":0},0,0,0,0,0]
[null,null,null,{"$f":"D87*D14","v":0},2962.54,{"$f":"F87*F14","v":0},{"$f":"G87*G14","v":0},{"$f":"H87*H14","v":0},2962.54]
[null,"BENEFÍCIOS COMUNS - AUXÍLIO ALIMENTAÇÃO"]
[]
[null,null,"VALOR CCT",28.69,28.69,28.69,28.69,28.69,28.69]
[null,null,"VALOR CD",35,{"$f":"D92","v":35},{"$f":"E92","v":35},{"$f":"F92","v":35},{"$f":"G92","v":35},{"$f":"H92","v":35}]
[null,"VALOR MENSAL DO AUXÍLIO ALIMENTAÇÃO - POR POSTO"]
[null,null,null,{"$f":"ROUND(LARGE(D91:D92,1)*D18,2)","v":770},770,770,770,770,770]
[null,null,null,{"$f":"D94*D14","v":6160},10339.56,{"$f":"F94*F14","v":6930},{"$f":"G94*G14","v":4620},{"$f":"H94*H14","v":3080},10339.56]
[null,"BENEFÍCIOS ESPECIAIS - ASSISTÊNCIA MÉDICA E FAMILIAR"]
[]
[null,null,"OBRIGAÇÃO DE PAGTO","SIM","SIM","SIM","SIM","SIM","SIM"]
[null,null,"VALOR CCT"]
[null,null,"VALOR MERCADO",{"$f":"192.6*0.5","v":96.3},{"$f":"192.6*0.5","v":96.3},96.3,96.3,96.3,96.3]
[null,"VALOR MENSAL DO AUXÍLIO ESPECIAL - ASSISTÊNCIA MÉDICA E FAMILIAR - POR POSTO"]
[null,null,null,{"$f":"IF(D98=\"SIM\",ROUND(SMALL(D99:D100,1),2),0)","v":96.3},96.3,96.3,96.3,96.3,96.3]
[]
[null,"BENEFÍCIOS ESPECIAIS - SEGURO DE VIDA E AUXÍLIO-FUNERAL, AUX ODONT, AUX CRECHE"]
[]
[null,"SEGURO DE VIDA E AUXÍLIO FUNERAL"]
[null,null,"OBRIGAÇÃO DE PAGTO","SIM","SIM","SIM","SIM","SIM","SIM"]
[null,null,"VALOR CCT"]
[null,null,"VALOR MERCADO",12.39,12.39,12.39,12.39,12.39,12.39]
[null,"VALOR MENSAL DO AUXÍLIO ESPECIAL - SEGURO DE VIDA E AUXÍLIO FUNERAL - POR POSTO"]
[null,null,null,{"$f":"IF(D107=\"SIM\",ROUND(SMALL(D108:D109,1),2),0)","v":12.39},12.39,12.39,12.39,12.39,12.39]
[null,"AUXÍLIO ODONTOLÓGICO"]
[null,null,"OBRIGAÇÃO DE PAGTO","NÃO","NÃO","NÃO","NÃO","NÃO","NÃO"]
[null,null,"VALOR CCT",0,0,0,0,0,0]
[null,null,"VALOR MERCADO",0,0,0,0,0,0]
[null,"VALOR MENSAL DO AUXÍLIO ESPECIAL - SEGURO DE VIDA E AUX FUNERAL - POR POSTO"]
[null,null,null,{"$f":"IF(D113=\"SIM\",ROUND(SMALL(D114:D115,1),2)*D18,0)","v":0},0,0,0,0,0]
[null,"TOTAL MENSAL DOS AUXÍLIOS ESPECIAIS - POR POSTO"]
[null,null,null,{"$f":"D117+D111","v":12.39},12.39,12.39,12.39,12.39,12.39]

{"sheet":"Encargos Sociais","index":11,"n_rows":45,"n_cols":7,"rows_kept":45,"cut":false,"hidden":false,"merged":[[1,1,1,3],[2,1,2,4]]}
[]
[]
[null,"ENCARGOS SOCIAIS SOBRE A MÃO DE OBRA"]
[null,null,null,null,"Percentuais"]
[]
[null,"Referência:"]
[null,null,"SINAPI OUT/2018"]
[]
[null,"Categorias:"]
[null,null,"TODAS"]
[]
[null,"GRUPO A: Encargos Sociais Básicos - Previdenciários (GPS), Fundo de Garantia por Tempo de Serviço (FGTS) e Outras Contribuições",null,null,{"$f":"ROUND(SUM(E13:E21),4)","v":0.34799999999999998}]
[null,null,"A","INSS (art. 22, inciso I, Lei nº 8.212/91)",0.2]
[null,null,"B","Salário Educação (art. 3º, inciso I, Decreto nº 87.043/82)",2.5000000000000001E-2]
[null,null,"C","SAT/RAT (art. 22, II, Lei 8.212/91 e Anexo V, Decreto 6.042/07) - Enquadramento 6290-1/01",0.01]
[null,null,"D","SESC ou SESI (art. 30, Lei nº 8.036/90 e art. 1º, Lei 8.154/90)",1.4999999999999999E-2]
[null,null,"E","SENAI ou SENAC (Decreto nº 2.318/86)",0.01]
[null,null,"F","SEBRAE (§ 3º, art. 8º, Lei 8.029/90, alterada pela Lei nº 8.154/90)",6.0000000000000001E-3,null,"* Nota 1 - Os percentuais dos encargos previdenciários, do FGTS e demais contribuições são estabelecidos por legislação vigente."]
[null,null,"G","INCRA (art. 1º, I, Decreto Lei 1.146/70 e Lei 7.787, de 30/06/89)",2E-3,null,"* Nota 2 - O SAT, a depender do grau de risco do serviço, irá variar entre 1%, para risco leve, de 2%, para risco médio, e de 3% para risco grave."]
[null,null,"H","FGTS (Lei Complementar nº 110/01 e art. 30, Lei nº 8.036/90)",0.08,null,"* Nota 3 - Os percentuais do Submódulo 2.2 incidem sobre o Módulo 1, o Submódulo 2.1, o Módulo 3, o Módulo 4 e o Módulo 6."]
[null,null,"I","SECONCI (Convenções Coletivas de Trabalho da construção)",0]
[]
[null,"GRUPO B: Encargos Sociais Relacionados ao Custo de Reposição do Profissional Ausente - Ausências Legais",null,null,{"$f":"ROUND(SUM(E24:E32),4)","v":0.22459999999999999}]
[null,null,"A","Férias (Arts. 129 e 130, inc. I, da CLT)",{"$f":"1/11","v":9.0909090909090912E-2},null,"* Nota 1 - As alíneas “A” a “F” referem-se somente ao custo que será pago ao repositor pelos dias \ntrabalhados quando da necessidade de substituir a mão de obra alocada na prestação do serviço."]
[null,null,"B","Ausências Legais (Arts. 131 e 473 da CLT)",{"$f":"2/252","v":7.9365079365079361E-3},null,"* Nota 2 - Adotou-se a estimativa do SINAPI de 2 dias por ano. Em 252 dias úteis por ano."]
[null,null,"C","Licença-Paternidade (Art. 7º, XIX, e art. 10, §1º, do ADCT, CF/1988 e Art. 1º, II, da Lei 11.770/2008)",{"$f":"(5/(30*12))*0.0596","v":8.2777777777777776E-4},null,"* Nota 3 - Utilizada a proporção de 50% para homens, 5 dias de afastamento, e a probabilidade de um trabalhador requerer a Licença Paternidade em 5,96%, conforme SINAPI (Anuário Estatístico da Previdência Social - 2017)"]
[null,null,"D","Ausência por Acidente de Trabalho (Art. 131, III, da CLT)",{"$f":"0.0205*15/360","v":8.541666666666667E-4},null,"* Nota 4 - Utilzada a estatística de 2,05% dos contribuintes beneficiados com a emissão do auxílio, conforme Anuário Estatístico da Previdência Social. Afastamento de 15 dias a cargo da empresa."]
[null,null,"E","Afastamento Maternidade (Art. 71 da Lei nº 8.213/1991)",{"$f":"0.0508*(120/360)*(30+30*4/3)/360","v":3.2925925925925922E-3},null,"* Nota 5 - Utilizada a estimativa de 120 dias de afastamento, e a probabilidade de uma trabalhadora requerer a Licença Maternidade em 5,08%, conforme SINAPI (citando dados do IBGE 2017) - A própria previdência paga o benefício pelos 120 dias, contudo o empregador arca com o 13º e com as férias"]
[null,null,"F","Auxílio Enfermidade - Doença (Art. 59 da Lei nº 8.213/1991)",{"$f":"((0.0376*15)+2)/360","v":7.1222222222222225E-3},null,"* Nota 6 - Utilizada a estatística de 3,76% dos contribuintes beneficiados com o auxílio, conforme Anuário Estatístico da Previdência Social de 2016 (acrescidos de 2 dias ao ano, para os quais o trabalhador nem requer o benefício da Previdência - conforme SINAPI)"]
[null,null,"G","Adicional de Férias (componente do Submódulo 2.1)",{"$f":"1/3*1/11","v":3.03030303030303E-2},null,"* Nota 7 - O adicional de férias contido no Submódulo 2.1 corresponde a 1/3 da remuneração que, por sua vez, é dividida por 11 contome Nota 1."]
[null,null,"H","13º Salário (destacado na planilha de custos)",{"$f":"1/12","v":8.3333333333333329E-2},null,"* Nota 8 - Provisiona-se, mensalmente, o proporcional a 1/12 dos valores referentes a gratificação natalina e adicional de férias."]
[null,null,"I","Intervalo para repouso ou alimentação (componente do Submódulo 4.2)",0]
[]
[null,"GRUPO C: Encargos Sociais Relacionados à Previsão para Rescisão Trabalhista",null,null,{"$f":"ROUND(SUM(E35:E40),4)","v":3.09E-2}]
[null,null,"A","Aviso Prévio Indenizado (Art. 7º, inciso XXI, da CF/1988 e arts. 477, 487, §1º, e 491 da CLT)",{"$f":"(30+2*3)*0.1/360/3","v":3.3333333333333335E-3},null,"* Nota 1 - Adotou-se a estimativa conforme histórico dos contratos da Câmara, onde 10% do pessoal é demitido pelo empregador no decurso do contrato (para estes, considerou-se o aviso prévio indenizado). Desprezou-se as demissões por justa causa e os pedidos de demissão. Para o período, considerou-se 3 anos de duração nos contratos (estimativa da Câmara). 30 dias no primeiro ano mais 3dias nos anos seguintes."]
[null,null,"B","Incidência do FGTS sobre o Aviso Prévio Indenizado (Súmula 305 TST)",{"$f":"E20*E35","v":2.6666666666666668E-4},null,"* Nota 2 - No cálculo do percentual, considerou-se 36 dias, correspondendo à metade da duração média dos contratos (2 anos)"]
[null,null,"C","Multa do FGTS e Contribuição Social sobre o Aviso Prévio Indenizado (Art. 18, §1º, da Lei 8.036/1990 e art. 1º da LC nº 110/2001)",{"$f":"(1+1/12+1/12+1/36)*0.4*E20*0.1/3","v":1.274074074074074E-3},null,"* Nota 3 - Incide sobre a Remuneração + 13º salário (1/12) + Férias (1/12) + Adicional de Férias (1/36) x 40% multa para o empregador x 8% FGTS x 10% do pessoal, uma vez a cada 3 anos"]
[null,null,"D","Aviso Prévio Trabalhado (Art. 488, parágrafo único, CLT)",{"$f":"((7+2*3)*0.9/360)/3","v":1.0833333333333334E-2},null,"* Nota 4 - Os 90% restantes do cálculo, a um prazo estimado de contrato de 3 anos. Assim, calcula-se 7 dias para o 1º ano de contrato e mais 3 dias para os 2 anos seguintes. Uma vez a cada 3 anos."]
[null,null,"E","Incidência de GPS, FGTS e outras contribuições sobre o Aviso Prévio Trabalhado",{"$f":"E38*E12","v":3.7699999999999999E-3}]
[null,null,"F","Multa do FGTS e Contribuição Social sobre o Aviso Prévio Trabalhado",{"$f":"(1+1/12+1/12+1/36)*0.4*E20*0.9/3","v":1.1466666666666665E-2}]
[]
[null,"GRUPO D: Reincidências",null,null,{"$f":"ROUND(SUM(E43:E43),4)","v":7.8200000000000006E-2}]
[null,null,"A","Reincidência do Grupo A sobre o Grupo B",{"$f":"E12*E23","v":7.8160799999999989E-2}]
[]
[null,null,null,"SOMATÓRIO - ENCARGOS SOCIAIS SOBRE A MÃO DE OBRA",{"$f":"E42+E34+E23+E12","v":0.68169999999999997}]

{"sheet":"BDI","index":12,"n_rows":26,"n_cols":7,"rows_kept":26,"cut":false,"hidden":false,"merged":[[1,1,1,3],[2,1,2,4]]}
[]
[]
[null,"COMPOSIÇÃO DA TAXA DE CUSTOS INDIRETOS, TRIBUTOS E LUCRO - BDI"]
[null,"APLICAÇÃO: MÃO DE OBRA, 13º, MATERIAIS, EPC E EQUIPAMENTO DE REGISTRO DE FREQUÊNCIA",null,null,"Percentuais"]
[]
[null,"Custos Indiretos da Contratada",null,null,{"$f":"SUM(E7:E8)","v":6.0999999999999999E-2}]
[null,null,"A","Administração Central (despesas de gestão da empresa, escritório e treinamento de seu pessoal, e eventuais como máscaras obrigatórias)",2.5999999999999999E-2,null,"* Nota 1 - O Somatório da Administração Central com o Lucro deve ser inferior a 12%"]
[null,null,"B","Seguros, Garantias e Riscos",3.5000000000000003E-2,null,"* Nota 2 - Seguros e Garantias 0,32%, Risco 0,50% (ref. valores 1 quartil constr rodovias, conforme Acordao 2.622-2013)"]
[]
[null,"Lucro",null,null,{"$f":"SUM(E11:E11)","v":0.04}]
[null,null,"A","Lucro Real sobre os Custos Administrados",0.04]
[]
[null,"Despesas Financeiras",null,null,{"$f":"E14","v":5.2519605742542552E-3}]
[null,null,"A","Cálculo Baseado no Prazo para a Restituição dos Desembolsos Realizados pelo Contratado e na Taxa de Retorno Arbitrada",{"$f":"(1+E16)^(E15/252)-1","v":5.2519605742542552E-3},null,"* Nota 1 - DF = [(1+TR)^(DU/252)]/100"]
[null,null,"A.1","Dias Úteis Considerados",11,null,"* Nota 2 - Diferença de dias entre o desembolso, pelo contratado, e o pagamento, pela Câmara"]
[null,null,"A.2","Taxa de Retorno",0.1275,null,"* Nota 3 - A taxa sugerida é a meta da SELIC"]
[]
[null,"Impostos - Tributos Federais",null,null,{"$f":"SUM(E19:E21)","v":7.3999999999999996E-2}]
[null,null,"A","Contribuição para o Financiamento da Seguridade Social - COFINS",{"$f":"0.8*7.6%","v":6.08E-2},null,"* Nota 1 - Redução de 20% considerando as deduções permitidas em Lei, conforme SENGE, citado pelo TCU - Acórdão 2622/2013"]
[null,null,"B","Programa de Integração Social - PIS",{"$f":"0.8*1.65%","v":1.3200000000000002E-2},null,"* Nota 2 - Redução de 20% considerando as deduções permitidas em Lei, conforme SENGE, citado pelo TCU - Acórdão 2622/2013"]
[null,null,"C","Contribuição Previdenciária sobre a Receita Bruta - CPRB",0,null,"* Nota 3 - Lei 12.546/2011 - Verificar atualizações e setores beneficiados"]
[]
[null,"Impostos - Tributos Distritais",null,null,{"$f":"SUM(E24:E24)","v":0.05}]
[null,null,"A","Imposto sobre Serviço de Qualquer Natureza - ISS",0.05]
[]
[null,null,null,"SOMATÓRIO - ENCARGOS SOCIAIS SOBRE A MÃO DE OBRA",{"$f":"ROUND((((1+E6)*(1+E10)*(1+E13)/(1-E18-E23))-1),4)","v":0.26629999999999998},null,"* Nota 1 - [(1+AC+SGR)*(1+L)*(1+DF)/(1-CONFINS-PIS-CPRB-ISS)]-1"]

{"sheet":"Sobreaviso","index":13,"n_rows":45,"n_cols":8,"rows_kept":45,"cut":false,"hidden":true,"merged":[[1,1,1,3],[2,1,2,7]]}
[]
[]
[null,"HORAS DE SOBREAVISO SOB DEMANDA"]
[]
[]
[null,null,"CATEGORIAS",null,"DIAS","HORAS / DIA","HORAS / MÊS","% SOBREAVISO"]
[]
[null,null,3,{"$f":"HLOOKUP($C8,'Dados Gerais'!D$5:H$12,6)","v":"Analista de TI - Analista de Dados - sênior"},"SEG A SEX",null,{"$f":"F8*5*52/12","v":0},{"$f":"1/3","v":0.33333333333333331}]
[null,null,null,"Considerando 6 profissionais, 6h/dia, 5 dias na semana, 52 semanas no mês"]
[null,null,3,{"$f":"HLOOKUP($C10,'Dados Gerais'!D$5:H$12,6)","v":"Analista de TI - Analista de Dados - sênior"},"FINS DE SEMANA E FERIADOS",null,{"$f":"F10*2*52/12+F10","v":0},{"$f":"H8","v":0.33333333333333331}]
[null,null,null,"Considerando 6 profissionais, 24h/dia, 2 dias na semana (1 dia por mês de feriado), 52 semanas no mês"]
[]
[]
[null,null,"VALOR DO SOBREAVISO",null,"DIAS","SALÁRIO MÊS","VL.H.NORMAL","ADIC.H.FICTAS"]
[]
[null,null,3,{"$f":"HLOOKUP($C16,'Dados Gerais'!D$5:H$12,6)","v":"Analista de TI - Analista de Dados - sênior"},"SEG A SEX",{"$f":"HLOOKUP($C16,'Dados Gerais'!D$5:H$12,8)","v":9747.5400000000009},{"$f":"F16/'Dados Gerais'!D16","v":48.737700000000004},{"$f":"G16*(H8)","v":16.245899999999999}]
[null,null,3,{"$f":"HLOOKUP($C17,'Dados Gerais'!D$5:H$12,6)","v":"Analista de TI - Analista de Dados - sênior"},"FINS DE SEMANA E FERIADOS",{"$f":"HLOOKUP($C17,'Dados Gerais'!D$5:H$12,8)","v":9747.5400000000009},{"$f":"F17/'Dados Gerais'!D16","v":48.737700000000004},{"$f":"G17*(H10)","v":16.245899999999999}]
[]
[]
[null,null,"RESUMO DO SOBREAVISO SOB DEMANDA",null,null,"DIAS"]
[null,null,"TOTAIS MENSAIS",null,null,null,"PREÇO MENSAL"]
[]
[null,null,3,{"$f":"HLOOKUP($C23,'Dados Gerais'!D$5:H$12,6)","v":"Analista de TI - Analista de Dados - sênior"},null,"SEG A SEX",{"$f":"H16*G8","v":0}]
[null,null,3,{"$f":"HLOOKUP($C24,'Dados Gerais'!D$5:H$12,6)","v":"Analista de TI - Analista de Dados - sênior"},null,"FINS DE SEMANA E FERIADOS",{"$f":"H17*G10","v":0}]
[]
[null,null,null,null,null,"SOMATÓRIO TOTAL MENSAL",{"$f":"SUM(G23:G24)","v":0}]
[null,null,null,null,null,"SOMATÓRIO TOTAL ANUAL",{"$f":"G26*12","v":0}]
[]
[]
[null,null,"ENCARGOS SOCIAIS E BDI SOBRE O SOBREAVISO SOB DEMANDA"]
[null,null,"TOTAIS MENSAIS",null,null,"PERCENTUAIS","PREÇO MENSAL"]
[]
[null,null,null,"ENCARGOS SOCIAIS",null,{"$f":"'Encargos Sociais'!E45","v":0.68169999999999997},{"$f":"F33*G26","v":0}]
[null,null,null,"BDI",null,{"$f":"BDI!E26","v":0.26629999999999998},{"$f":"F34*(G26+G33)","v":0}]
[]
[null,null,null,null,null,"SOMATÓRIO TOTAL MENSAL",{"$f":"SUM(G33:G35)","v":0}]
[null,null,null,null,null,"SOMATÓRIO TOTAL ANUAL",{"$f":"G36*12","v":0}]
[]
[]
[null,null,"VALOR TOTAL SOBREAVISO SOB DEMANDA (COM ENCARGOS SOCIAIS E BDI INCLUSOS)"]
[]
[]
[]
[null,null,null,null,null,"SOMATÓRIO TOTAL MENSAL",{"$f":"G26+G36","v":0}]
[null,null,null,null,null,"SOMATÓRIO TOTAL ANUAL",{"$f":"G44*12","v":0}]

{"sheet":"Uniformes","index":14,"n_rows":36,"n_cols":130,"rows_kept":36,"cut":false,"hidden":true,"merged":[[9,1,9,3],[10,1,10,7],[6,3,6,7]]}
[null,null,"CÂMARA DOS DEPUTADOS"]
[null,null,"DEPARTAMENTO TÉCNICO"]
[null,null,"Coordenação de Planejamento e Gestão"]
[]
[null,null,"Data:",{"$f":"'Dados Gerais'!#REF!","v":{"$error":"#REF!"}}]
[null,null,"Processo:",{"$f":"'Dados Gerais'!#REF!","v":{"$error":"#REF!"}}]
[null,null,"Objeto:",{"$f":"'Dados Gerais'!#REF!","v":{"$error":"#REF!"}}]
[]
[]
[]
[null,"UNIFORMES - AQUISIÇÃO",null,null,null,null,null,null,null,null,1,null,{"$f":"K11+1","v":2},null,{"$f":"M11+1","v":3},null,{"$f":"O11+1","v":4},null,{"$f":"Q11+1","v":5},null,{"$f":"S11+1","v":6},null,{"$f":"U11+1","v":7},null,{"$f":"W11+1","v":8},null,{"$f":"Y11+1","v":9},null,{"$f":"AA11+1","v":10},null,{"$f":"AC11+1","v":11},null,{"$f":"AE11+1","v":12},null,{"$f":"AG11+1","v":13},null,{"$f":"AI11+1","v":14},null,{"$f":"AK11+1","v":15},null,{"$f":"AM11+1","v":16},null,{"$f":"AO11+1","v":17},null,{"$f":"AQ11+1","v":18},null,{"$f":"AS11+1","v":19},null,{"$f":"AU11+1","v":20},null,{"$f":"AW11+1","v":21},null,{"$f":"AY11+1","v":22},null,{"$f":"BA11+1","v":23},null,{"$f":"BC11+1","v":24},null,{"$f":"BE11+1","v":25},null,{"$f":"BG11+1","v":26},null,{"$f":"BI11+1","v":27},null,{"$f":"BK11+1","v":28},null,{"$f":"BM11+1","v":29},null,{"$f":"BO11+1","v":30},null,{"$f":"BQ11+1","v":31},null,{"$f":"BS11+1","v":32},null,{"$f":"BU11+1","v":33},null,{"$f":"BW11+1","v":34},null,{"$f":"BY11+1","v":35},null,{"$f":"CA11+1","v":36},null,{"$f":"CC11+1","v":37},null,{"$f":"CE11+1","v":38},null,{"$f":"CG11+1","v":39},null,{"$f":"CI11+1","v":40},null,{"$f":"CK11+1","v":41},null,{"$f":"CM11+1","v":42},null,{"$f":"CO11+1","v":43},null,{"$f":"CQ11+1","v":44},null,{"$f":"CS11+1","v":45},null,{"$f":"CU11+1","v":46},null,{"$f":"CW11+1","v":47},null,{"$f":"CY11+1","v":48},null,{"$f":"DA11+1","v":49},null,{"$f":"DC11+1","v":50},null,{"$f":"DE11+1","v":51},null,{"$f":"DG11+1","v":52},null,{"$f":"DI11+1","v":53},null,{"$f":"DK11+1","v":54},null,{"$f":"DM11+1","v":55},null,{"$f":"DO11+1","v":56},null,{"$f":"DQ11+1","v":57},null,{"$f":"DS11+1","v":58},null,{"$f":"DU11+1","v":59},null,{"$f":"DW11+1","v":60}]
[]
[null,null,null,null,null,null,null,null,null,null,{"$f":"ROUND(SUM(L12:L51),2)","v":0},null,{"$f":"ROUND(SUM(N12:N51),2)","v":0},null,{"$f":"ROUND(SUM(P12:P51),2)","v":0},null,{"$f":"ROUND(SUM(R12:R51),2)","v":0},null,{"$f":"ROUND(SUM(T12:T51),2)","v":0},null,{"$f":"ROUND(SUM(V12:V51),2)","v":0},null,{"$f":"ROUND(SUM(X12:X51),2)","v":0},null,{"$f":"ROUND(SUM(Z12:Z51),2)","v":0},null,{"$f":"ROUND(SUM(AB12:AB51),2)","v":0},null,{"$f":"ROUND(SUM(AD12:AD51),2)","v":0},null,{"$f":"ROUND(SUM(AF12:AF51),2)","v":0},null,{"$f":"ROUND(SUM(AH12:AH51),2)","v":0},null,{"$f":"ROUND(SUM(AJ12:AJ51),2)","v":0},null,{"$f":"ROUND(SUM(AL12:AL51),2)","v":0},null,{"$f":"ROUND(SUM(AN12:AN51),2)","v":0},null,{"$f":"ROUND(SUM(AP12:AP51),2)","v":0},null,{"$f":"ROUND(SUM(AR12:AR51),2)","v":0},null,{"$f":"ROUND(SUM(AT12:AT51),2)","v":0},null,{"$f":"ROUND(SUM(AV12:AV51),2)","v":0},null,{"$f":"ROUND(SUM(AX12:AX51),2)","v":0},null,{"$f":"ROUND(SUM(AZ12:AZ51),2)","v":0},null,{"$f":"ROUND(SUM(BB12:BB51),2)","v":0},null,{"$f":"ROUND(SUM(BD12:BD51),2)","v":0},null,{"$f":"ROUND(SUM(BF12:BF51),2)","v":0},null,{"$f":"ROUND(SUM(BH12:BH51),2)","v":0},null,{"$f":"ROUND(SUM(BJ12:BJ51),2)","v":0},null,{"$f":"ROUND(SUM(BL12:BL51),2)","v":0},null,{"$f":"ROUND(SUM(BN12:BN51),2)","v":0},null,{"$f":"ROUND(SUM(BP12:BP51),2)","v":0},null,{"$f":"ROUND(SUM(BR12:BR51),2)","v":0},null,{"$f":"ROUND(SUM(BT12:BT51),2)","v":0},null,{"$f":"ROUND(SUM(BV12:BV51),2)","v":0},null,{"$f":"ROUND(SUM(BX12:BX51),2)","v":0},null,{"$f":"ROUND(SUM(BZ12:BZ51),2)","v":0},null,{"$f":"ROUND(SUM(CB12:CB51),2)","v":0},null,{"$f":"ROUND(SUM(CD12:CD51),2)","v":0},null,{"$f":"ROUND(SUM(CF12:CF51),2)","v":0},null,{"$f":"ROUND(SUM(CH12:CH51),2)","v":0},null,{"$f":"ROUND(SUM(CJ12:CJ51),2)","v":0},null,{"$f":"ROUND(SUM(CL12:CL51),2)","v":0},null,{"$f":"ROUND(SUM(CN12:CN51),2)","v":0},null,{"$f":"ROUND(SUM(CP12:CP51),2)","v":0},null,{"$f":"ROUND(SUM(CR12:CR51),2)","v":0},null,{"$f":"ROUND(SUM(CT12:CT51),2)","v":0},null,{"$f":"ROUND(SUM(CV12:CV51),2)","v":0},null,{"$f":"ROUND(SUM(CX12:CX51),2)","v":0},null,{"$f":"ROUND(SUM(CZ12:CZ51),2)","v":0},null,{"$f":"ROUND(SUM(DB12:DB51),2)","v":0},null,{"$f":"ROUND(SUM(DD12:DD51),2)","v":0},null,{"$f":"ROUND(SUM(DF12:DF51),2)","v":0},null,{"$f":"ROUND(SUM(DH12:DH51),2)","v":0},null,{"$f":"ROUND(SUM(DJ12:DJ51),2)","v":0},null,{"$f":"ROUND(SUM(DL12:DL51),2)","v":0},null,{"$f":"ROUND(SUM(DN12:DN51),2)","v":0},null,{"$f":"ROUND(SUM(DP12:DP51),2)","v":0},null,{"$f":"ROUND(SUM(DR12:DR51),2)","v":0},null,{"$f":"ROUND(SUM(DT12:DT51),2)","v":0},null,{"$f":"ROUND(SUM(DV12:DV51),2)","v":0},null,{"$f":"ROUND(SUM(DX12:DX51),2)","v":0},null,{"$f":"ROUND(SUM(DZ12:DZ51),2)","v":0}]
[null,null,"CATEGORIAS",null,null,null,null,"QUANTIDADE"]
[null,null,null,null,null,null,null,null,null,null,{"$f":"IF($C15=K$11,1,0)","v":0}]
[null,null,null,{"$f":"HLOOKUP($C16,'Dados Gerais'!$D$5:$BH$10,6)","v":{"$error":"#N/A"}},null,null,null,{"$f":"HLOOKUP($C16,'Dados Gerais'!$D$5:$BH$14,10)","v":{"$error":"#N/A"}},null,null,0,null,{"$f":"IF($C16=M$11,1,0)","v":0},null,{"$f":"IF($C16=O$11,1,0)","v":0},null,{"$f":"IF($C16=Q$11,1,0)","v":0},null,{"$f":"IF($C16=S$11,1,0)","v":0},null,{"$f":"IF($C16=U$11,1,0)","v":0},null,{"$f":"IF($C16=W$11,1,0)","v":0},null,{"$f":"IF($C16=Y$11,1,0)","v":0},null,{"$f":"IF($C16=AA$11,1,0)","v":0},null,{"$f":"IF($C16=AC$11,1,0)","v":0},null,{"$f":"IF($C16=AE$11,1,0)","v":0},null,{"$f":"IF($C16=AG$11,1,0)","v":0},null,{"$f":"IF($C16=AI$11,1,0)","v":0},null,{"$f":"IF($C16=AK$11,1,0)","v":0},null,{"$f":"IF($C16=AM$11,1,0)","v":0},null,{"$f":"IF($C16=AO$11,1,0)","v":0},null,{"$f":"IF($C16=AQ$11,1,0)","v":0},null,{"$f":"IF($C16=AS$11,1,0)","v":0},null,{"$f":"IF($C16=AU$11,1,0)","v":0},null,{"$f":"IF($C16=AW$11,1,0)","v":0},null,{"$f":"IF($C16=AY$11,1,0)","v":0},null,{"$f":"IF($C16=BA$11,1,0)","v":0},null,{"$f":"IF($C16=BC$11,1,0)","v":0},null,{"$f":"IF($C16=BE$11,1,0)","v":0},null,{"$f":"IF($C16=BG$11,1,0)","v":0},null,{"$f":"IF($C16=BI$11,1,0)","v":0},null,{"$f":"IF($C16=BK$11,1,0)","v":0},null,{"$f":"IF($C16=BM$11,1,0)","v":0},null,{"$f":"IF($C16=BO$11,1,0)","v":0},null,{"$f":"IF($C16=BQ$11,1,0)","v":0},null,{"$f":"IF($C16=BS$11,1,0)","v":0},null,{"$f":"IF($C16=BU$11,1,0)","v":0},null,{"$f":"IF($C16=BW$11,1,0)","v":0},null,{"$f":"IF($C16=BY$11,1,0)","v":0},null,{"$f":"IF($C16=CA$11,1,0)","v":0},null,{"$f":"IF($C16=CC$11,1,0)","v":0},null,{"$f":"IF($C16=CE$11,1,0)","v":0},null,{"$f":"IF($C16=CG$11,1,0)","v":0},null,{"$f":"IF($C16=CI$11,1,0)","v":0},null,{"$f":"IF($C16=CK$11,1,0)","v":0},null,{"$f":"IF($C16=CM$11,1,0)","v":0},null,{"$f":"IF($C16=CO$11,1,0)","v":0},null,{"$f":"IF($C16=CQ$11,1,0)","v":0},null,{"$f":"IF($C16=CS$11,1,0)","v":0},null,{"$f":"IF($C16=CU$11,1,0)","v":0},null,{"$f":"IF($C16=CW$11,1,0)","v":0},null,{"$f":"IF($C16=CY$11,1,0)","v":0},null,{"$f":"IF($C16=DA$11,1,0)","v":0},null,{"$f":"IF($C16=DC$11,1,0)","v":0},null,{"$f":"IF($C16=DE$11,1,0)","v":0},null,{"$f":"IF($C16=DG$11,1,0)","v":0},null,{"$f":"IF($C16=DI$11,1,0)","v":0},null,{"$f":"IF($C16=DK$11,1,0)","v":0},null,{"$f":"IF($C16=DM$11,1,0)","v":0},null,{"$f":"IF($C16=DO$11,1,0)","v":0},null,{"$f":"IF($C16=DQ$11,1,0)","v":0},null,{"$f":"IF($C16=DS$11,1,0)","v":0},null,{"$f":"IF($C16=DU$11,1,0)","v":0},null,{"$f":"IF($C16=DW$11,1,0)","v":0},null,{"$f":"IF($C16=DY$11,1,0)","v":0}]
[null,null,null,{"$f":"HLOOKUP($C17,'Dados Gerais'!$D$5:$BH$10,6)","v":{"$error":"#N/A"}},null,null,null,{"$f":"HLOOKUP($C17,'Dados Gerais'!$D$5:$BH$14,10)","v":{"$error":"#N/A"}},null,null,0,null,{"$f":"IF($C17=M$11,1,0)","v":0},null,{"$f":"IF($C17=O$11,1,0)","v":0},null,{"$f":"IF($C17=Q$11,1,0)","v":0},null,{"$f":"IF($C17=S$11,1,0)","v":0},null,{"$f":"IF($C17=U$11,1,0)","v":0},null,{"$f":"IF($C17=W$11,1,0)","v":0},null,{"$f":"IF($C17=Y$11,1,0)","v":0},null,{"$f":"IF($C17=AA$11,1,0)","v":0},null,{"$f":"IF($C17=AC$11,1,0)","v":0},null,{"$f":"IF($C17=AE$11,1,0)","v":0},null,{"$f":"IF($C17=AG$11,1,0)","v":0},null,{"$f":"IF($C17=AI$11,1,0)","v":0},null,{"$f":"IF($C17=AK$11,1,0)","v":0},null,{"$f":"IF($C17=AM$11,1,0)","v":0},null,{"$f":"IF($C17=AO$11,1,0)","v":0},null,{"$f":"IF($C17=AQ$11,1,0)","v":0},null,{"$f":"IF($C17=AS$11,1,0)","v":0},null,{"$f":"IF($C17=AU$11,1,0)","v":0},null,{"$f":"IF($C17=AW$11,1,0)","v":0},null,{"$f":"IF($C17=AY$11,1,0)","v":0},null,{"$f":"IF($C17=BA$11,1,0)","v":0},null,{"$f":"IF($C17=BC$11,1,0)","v":0},null,{"$f":"IF($C17=BE$11,1,0)","v":0},null,{"$f":"IF($C17=BG$11,1,0)","v":0},null,{"$f":"IF($C17=BI$11,1,0)","v":0},null,{"$f":"IF($C17=BK$11,1,0)","v":0},null,{"$f":"IF($C17=BM$11,1,0)","v":0},null,{"$f":"IF($C17=BO$11,1,0)","v":0},null,{"$f":"IF($C17=BQ$11,1,0)","v":0},null,{"$f":"IF($C17=BS$11,1,0)","v":0},null,{"$f":"IF($C17=BU$11,1,0)","v":0},null,{"$f":"IF($C17=BW$11,1,0)","v":0},null,{"$f":"IF($C17=BY$11,1,0)","v":0},null,{"$f":"IF($C17=CA$11,1,0)","v":0},null,{"$f":"IF($C17=CC$11,1,0)","v":0},null,{"$f":"IF($C17=CE$11,1,0)","v":0},null,{"$f":"IF($C17=CG$11,1,0)","v":0},null,{"$f":"IF($C17=CI$11,1,0)","v":0},null,{"$f":"IF($C17=CK$11,1,0)","v":0},null,{"$f":"IF($C17=CM$11,1,0)","v":0},null,{"$f":"IF($C17=CO$11,1,0)","v":0},null,{"$f":"IF($C17=CQ$11,1,0)","v":0},null,{"$f":"IF($C17=CS$11,1,0)","v":0},null,{"$f":"IF($C17=CU$11,1,0)","v":0},null,{"$f":"IF($C17=CW$11,1,0)","v":0},null,{"$f":"IF($C17=CY$11,1,0)","v":0},null,{"$f":"IF($C17=DA$11,1,0)","v":0},null,{"$f":"IF($C17=DC$11,1,0)","v":0},null,{"$f":"IF($C17=DE$11,1,0)","v":0},null,{"$f":"IF($C17=DG$11,1,0)","v":0},null,{"$f":"IF($C17=DI$11,1,0)","v":0},null,{"$f":"IF($C17=DK$11,1,0)","v":0},null,{"$f":"IF($C17=DM$11,1,0)","v":0},null,{"$f":"IF($C17=DO$11,1,0)","v":0},null,{"$f":"IF($C17=DQ$11,1,0)","v":0},null,{"$f":"IF($C17=DS$11,1,0)","v":0},null,{"$f":"IF($C17=DU$11,1,0)","v":0},null,{"$f":"IF($C17=DW$11,1,0)","v":0},null,{"$f":"IF($C17=DY$11,1,0)","v":0}]
[null,null,null,{"$f":"HLOOKUP($C18,'Dados Gerais'!$D$5:$BH$10,6)","v":{"$error":"#N/A"}},null,null,null,{"$f":"HLOOKUP($C18,'Dados Gerais'!$D$5:$BH$14,10)","v":{"$error":"#N/A"}},null,null,0,null,{"$f":"IF($C18=M$11,1,0)","v":0},null,{"$f":"IF($C18=O$11,1,0)","v":0},null,{"$f":"IF($C18=Q$11,1,0)","v":0},null,{"$f":"IF($C18=S$11,1,0)","v":0},null,{"$f":"IF($C18=U$11,1,0)","v":0},null,{"$f":"IF($C18=W$11,1,0)","v":0},null,{"$f":"IF($C18=Y$11,1,0)","v":0},null,{"$f":"IF($C18=AA$11,1,0)","v":0},null,{"$f":"IF($C18=AC$11,1,0)","v":0},null,{"$f":"IF($C18=AE$11,1,0)","v":0},null,{"$f":"IF($C18=AG$11,1,0)","v":0},null,{"$f":"IF($C18=AI$11,1,0)","v":0},null,{"$f":"IF($C18=AK$11,1,0)","v":0},null,{"$f":"IF($C18=AM$11,1,0)","v":0},null,{"$f":"IF($C18=AO$11,1,0)","v":0},null,{"$f":"IF($C18=AQ$11,1,0)","v":0},null,{"$f":"IF($C18=AS$11,1,0)","v":0},null,{"$f":"IF($C18=AU$11,1,0)","v":0},null,{"$f":"IF($C18=AW$11,1,0)","v":0},null,{"$f":"IF($C18=AY$11,1,0)","v":0},null,{"$f":"IF($C18=BA$11,1,0)","v":0},null,{"$f":"IF($C18=BC$11,1,0)","v":0},null,{"$f":"IF($C18=BE$11,1,0)","v":0},null,{"$f":"IF($C18=BG$11,1,0)","v":0},null,{"$f":"IF($C18=BI$11,1,0)","v":0},null,{"$f":"IF($C18=BK$11,1,0)","v":0},null,{"$f":"IF($C18=BM$11,1,0)","v":0},null,{"$f":"IF($C18=BO$11,1,0)","v":0},null,{"$f":"IF($C18=BQ$11,1,0)","v":0},null,{"$f":"IF($C18=BS$11,1,0)","v":0},null,{"$f":"IF($C18=BU$11,1,0)","v":0},null,{"$f":"IF($C18=BW$11,1,0)","v":0},null,{"$f":"IF($C18=BY$11,1,0)","v":0},null,{"$f":"IF($C18=CA$11,1,0)","v":0},null,{"$f":"IF($C18=CC$11,1,0)","v":0},null,{"$f":"IF($C18=CE$11,1,0)","v":0},null,{"$f":"IF($C18=CG$11,1,0)","v":0},null,{"$f":"IF($C18=CI$11,1,0)","v":0},null,{"$f":"IF($C18=CK$11,1,0)","v":0},null,{"$f":"IF($C18=CM$11,1,0)","v":0},null,{"$f":"IF($C18=CO$11,1,0)","v":0},null,{"$f":"IF($C18=CQ$11,1,0)","v":0},null,{"$f":"IF($C18=CS$11,1,0)","v":0},null,{"$f":"IF($C18=CU$11,1,0)","v":0},null,{"$f":"IF($C18=CW$11,1,0)","v":0},null,{"$f":"IF($C18=CY$11,1,0)","v":0},null,{"$f":"IF($C18=DA$11,1,0)","v":0},null,{"$f":"IF($C18=DC$11,1,0)","v":0},null,{"$f":"IF($C18=DE$11,1,0)","v":0},null,{"$f":"IF($C18=DG$11,1,0)","v":0},null,{"$f":"IF($C18=DI$11,1,0)","v":0},null,{"$f":"IF($C18=DK$11,1,0)","v":0},null,{"$f":"IF($C18=DM$11,1,0)","v":0},null,{"$f":"IF($C18=DO$11,1,0)","v":0},null,{"$f":"IF($C18=DQ$11,1,0)","v":0},null,{"$f":"IF($C18=DS$11,1,0)","v":0},null,{"$f":"IF($C18=DU$11,1,0)","v":0},null,{"$f":"IF($C18=DW$11,1,0)","v":0},null,{"$f":"IF($C18=DY$11,1,0)","v":0}]
[null,null,null,{"$f":"HLOOKUP($C19,'Dados Gerais'!$D$5:$BH$10,6)","v":{"$error":"#N/A"}},null,null,null,{"$f":"HLOOKUP($C19,'Dados Gerais'!$D$5:$BH$14,10)","v":{"$error":"#N/A"}},null,null,0,null,{"$f":"IF($C19=M$11,1,0)","v":0},null,{"$f":"IF($C19=O$11,1,0)","v":0},null,{"$f":"IF($C19=Q$11,1,0)","v":0},null,{"$f":"IF($C19=S$11,1,0)","v":0},null,{"$f":"IF($C19=U$11,1,0)","v":0},null,{"$f":"IF($C19=W$11,1,0)","v":0},null,{"$f":"IF($C19=Y$11,1,0)","v":0},null,{"$f":"IF($C19=AA$11,1,0)","v":0},null,{"$f":"IF($C19=AC$11,1,0)","v":0},null,{"$f":"IF($C19=AE$11,1,0)","v":0},null,{"$f":"IF($C19=AG$11,1,0)","v":0},null,{"$f":"IF($C19=AI$11,1,0)","v":0},null,{"$f":"IF($C19=AK$11,1,0)","v":0},null,{"$f":"IF($C19=AM$11,1,0)","v":0},null,{"$f":"IF($C19=AO$11,1,0)","v":0},null,{"$f":"IF($C19=AQ$11,1,0)","v":0},null,{"$f":"IF($C19=AS$11,1,0)","v":0},null,{"$f":"IF($C19=AU$11,1,0)","v":0},null,{"$f":"IF($C19=AW$11,1,0)","v":0},null,{"$f":"IF($C19=AY$11,1,0)","v":0},null,{"$f":"IF($C19=BA$11,1,0)","v":0},null,{"$f":"IF($C19=BC$11,1,0)","v":0},null,{"$f":"IF($C19=BE$11,1,0)","v":0},null,{"$f":"IF($C19=BG$11,1,0)","v":0},null,{"$f":"IF($C19=BI$11,1,0)","v":0},null,{"$f":"IF($C19=BK$11,1,0)","v":0},null,{"$f":"IF($C19=BM$11,1,0)","v":0},null,{"$f":"IF($C19=BO$11,1,0)","v":0},null,{"$f":"IF($C19=BQ$11,1,0)","v":0},null,{"$f":"IF($C19=BS$11,1,0)","v":0},null,{"$f":"IF($C19=BU$11,1,0)","v":0},null,{"$f":"IF($C19=BW$11,1,0)","v":0},null,{"$f":"IF($C19=BY$11,1,0)","v":0},null,{"$f":"IF($C19=CA$11,1,0)","v":0},null,{"$f":"IF($C19=CC$11,1,0)","v":0},null,{"$f":"IF($C19=CE$11,1,0)","v":0},null,{"$f":"IF($C19=CG$11,1,0)","v":0},null,{"$f":"IF($C19=CI$11,1,0)","v":0},null,{"$f":"IF($C19=CK$11,1,0)","v":0},null,{"$f":"IF($C19=CM$11,1,0)","v":0},null,{"$f":"IF($C19=CO$11,1,0)","v":0},null,{"$f":"IF($C19=CQ$11,1,0)","v":0},null,{"$f":"IF($C19=CS$11,1,0)","v":0},null,{"$f":"IF($C19=CU$11,1,0)","v":0},null,{"$f":"IF($C19=CW$11,1,0)","v":0},null,{"$f":"IF($C19=CY$11,1,0)","v":0},null,{"$f":"IF($C19=DA$11,1,0)","v":0},null,{"$f":"IF($C19=DC$11,1,0)","v":0},null,{"$f":"IF($C19=DE$11,1,0)","v":0},null,{"$f":"IF($C19=DG$11,1,0)","v":0},null,{"$f":"IF($C19=DI$11,1,0)","v":0},null,{"$f":"IF($C19=DK$11,1,0)","v":0},null,{"$f":"IF($C19=DM$11,1,0)","v":0},null,{"$f":"IF($C19=DO$11,1,0)","v":0},null,{"$f":"IF($C19=DQ$11,1,0)","v":0},null,{"$f":"IF($C19=DS$11,1,0)","v":0},null,{"$f":"IF($C19=DU$11,1,0)","v":0},null,{"$f":"IF($C19=DW$11,1,0)","v":0},null,{"$f":"IF($C19=DY$11,1,0)","v":0}]
[null,null,null,{"$f":"HLOOKUP($C20,'Dados Gerais'!$D$5:$BH$10,6)","v":{"$error":"#N/A"}},null,null,null,{"$f":"HLOOKUP($C20,'Dados Gerais'!$D$5:$BH$14,10)","v":{"$error":"#N/A"}},null,null,0,null,{"$f":"IF($C20=M$11,1,0)","v":0},null,{"$f":"IF($C20=O$11,1,0)","v":0},null,{"$f":"IF($C20=Q$11,1,0)","v":0},null,{"$f":"IF($C20=S$11,1,0)","v":0},null,{"$f":"IF($C20=U$11,1,0)","v":0},null,{"$f":"IF($C20=W$11,1,0)","v":0},null,{"$f":"IF($C20=Y$11,1,0)","v":0},null,{"$f":"IF($C20=AA$11,1,0)","v":0},null,{"$f":"IF($C20=AC$11,1,0)","v":0},null,{"$f":"IF($C20=AE$11,1,0)","v":0},null,{"$f":"IF($C20=AG$11,1,0)","v":0},null,{"$f":"IF($C20=AI$11,1,0)","v":0},null,{"$f":"IF($C20=AK$11,1,0)","v":0},null,{"$f":"IF($C20=AM$11,1,0)","v":0},null,{"$f":"IF($C20=AO$11,1,0)","v":0},null,{"$f":"IF($C20=AQ$11,1,0)","v":0},null,{"$f":"IF($C20=AS$11,1,0)","v":0},null,{"$f":"IF($C20=AU$11,1,0)","v":0},null,{"$f":"IF($C20=AW$11,1,0)","v":0},null,{"$f":"IF($C20=AY$11,1,0)","v":0},null,{"$f":"IF($C20=BA$11,1,0)","v":0},null,{"$f":"IF($C20=BC$11,1,0)","v":0},null,{"$f":"IF($C20=BE$11,1,0)","v":0},null,{"$f":"IF($C20=BG$11,1,0)","v":0},null,{"$f":"IF($C20=BI$11,1,0)","v":0},null,{"$f":"IF($C20=BK$11,1,0)","v":0},null,{"$f":"IF($C20=BM$11,1,0)","v":0},null,{"$f":"IF($C20=BO$11,1,0)","v":0},null,{"$f":"IF($C20=BQ$11,1,0)","v":0},null,{"$f":"IF($C20=BS$11,1,0)","v":0},null,{"$f":"IF($C20=BU$11,1,0)","v":0},null,{"$f":"IF($C20=BW$11,1,0)","v":0},null,{"$f":"IF($C20=BY$11,1,0)","v":0},null,{"$f":"IF($C20=CA$11,1,0)","v":0},null,{"$f":"IF($C20=CC$11,1,0)","v":0},null,{"$f":"IF($C20=CE$11,1,0)","v":0},null,{"$f":"IF($C20=CG$11,1,0)","v":0},null,{"$f":"IF($C20=CI$11,1,0)","v":0},null,{"$f":"IF($C20=CK$11,1,0)","v":0},null,{"$f":"IF($C20=CM$11,1,0)","v":0},null,{"$f":"IF($C20=CO$11,1,0)","v":0},null,{"$f":"IF($C20=CQ$11,1,0)","v":0},null,{"$f":"IF($C20=CS$11,1,0)","v":0},null,{"$f":"IF($C20=CU$11,1,0)","v":0},null,{"$f":"IF($C20=CW$11,1,0)","v":0},null,{"$f":"IF($C20=CY$11,1,0)","v":0},null,{"$f":"IF($C20=DA$11,1,0)","v":0},null,{"$f":"IF($C20=DC$11,1,0)","v":0},null,{"$f":"IF($C20=DE$11,1,0)","v":0},null,{"$f":"IF($C20=DG$11,1,0)","v":0},null,{"$f":"IF($C20=DI$11,1,0)","v":0},null,{"$f":"IF($C20=DK$11,1,0)","v":0},null,{"$f":"IF($C20=DM$11,1,0)","v":0},null,{"$f":"IF($C20=DO$11,1,0)","v":0},null,{"$f":"IF($C20=DQ$11,1,0)","v":0},null,{"$f":"IF($C20=DS$11,1,0)","v":0},null,{"$f":"IF($C20=DU$11,1,0)","v":0},null,{"$f":"IF($C20=DW$11,1,0)","v":0},null,{"$f":"IF($C20=DY$11,1,0)","v":0}]
[null,null,null,null,null,null,null,null,null,null,0]
[]
[null,null,"ITEM","DESCRIÇÃO","QUANT ANUAL\nPOR POSTO","Nº DE POSTOS","QUANT ANUAL\nTOTAL","VALOR"]
[null,null,null,null,null,null,null,null,null,null,null,{"$f":"IF(SUM(K$15:K$21)>0,$E24*$H24,0)","v":0},null,{"$f":"IF(SUM(M$15:M$21)>0,$E24*$H24,0)","v":0},null,{"$f":"IF(SUM(O$15:O$21)>0,$E24*$H24,0)","v":0},null,{"$f":"IF(SUM(Q$15:Q$21)>0,$E24*$H24,0)","v":0},null,{"$f":"IF(SUM(S$15:S$21)>0,$E24*$H24,0)","v":0},null,{"$f":"IF(SUM(U$15:U$21)>0,$E24*$H24,0)","v":0},null,{"$f":"IF(SUM(W$15:W$21)>0,$E24*$H24,0)","v":0},null,{"$f":"IF(SUM(Y$15:Y$21)>0,$E24*$H24,0)","v":0},null,{"$f":"IF(SUM(AA$15:AA$21)>0,$E24*$H24,0)","v":0},null,{"$f":"IF(SUM(AC$15:AC$21)>0,$E24*$H24,0)","v":0},null,{"$f":"IF(SUM(AE$15:AE$21)>0,$E24*$H24,0)","v":0},null,{"$f":"IF(SUM(AG$15:AG$21)>0,$E24*$H24,0)","v":0},null,{"$f":"IF(SUM(AI$15:AI$21)>0,$E24*$H24,0)","v":0},null,{"$f":"IF(SUM(AK$15:AK$21)>0,$E24*$H24,0)","v":0},null,{"$f":"IF(SUM(AM$15:AM$21)>0,$E24*$H24,0)","v":0},null,{"$f":"IF(SUM(AO$15:AO$21)>0,$E24*$H24,0)","v":0},null,{"$f":"IF(SUM(AQ$15:AQ$21)>0,$E24*$H24,0)","v":0},null,{"$f":"IF(SUM(AS$15:AS$21)>0,$E24*$H24,0)","v":0},null,{"$f":"IF(SUM(AU$15:AU$21)>0,$E24*$H24,0)","v":0},null,{"$f":"IF(SUM(AW$15:AW$21)>0,$E24*$H24,0)","v":0},null,{"$f":"IF(SUM(AY$15:AY$21)>0,$E24*$H24,0)","v":0},null,{"$f":"IF(SUM(BA$15:BA$21)>0,$E24*$H24,0)","v":0},null,{"$f":"IF(SUM(BC$15:BC$21)>0,$E24*$H24,0)","v":0},null,{"$f":"IF(SUM(BE$15:BE$21)>0,$E24*$H24,0)","v":0},null,{"$f":"IF(SUM(BG$15:BG$21)>0,$E24*$H24,0)","v":0},null,{"$f":"IF(SUM(BI$15:BI$21)>0,$E24*$H24,0)","v":0},null,{"$f":"IF(SUM(BK$15:BK$21)>0,$E24*$H24,0)","v":0},null,{"$f":"IF(SUM(BM$15:BM$21)>0,$E24*$H24,0)","v":0},null,{"$f":"IF(SUM(BO$15:BO$21)>0,$E24*$H24,0)","v":0},null,{"$f":"IF(SUM(BQ$15:BQ$21)>0,$E24*$H24,0)","v":0},null,{"$f":"IF(SUM(BS$15:BS$21)>0,$E24*$H24,0)","v":0},null,{"$f":"IF(SUM(BU$15:BU$21)>0,$E24*$H24,0)","v":0},null,{"$f":"IF(SUM(BW$15:BW$21)>0,$E24*$H24,0)","v":0},null,{"$f":"IF(SUM(BY$15:BY$21)>0,$E24*$H24,0)","v":0},null,{"$f":"IF(SUM(CA$15:CA$21)>0,$E24*$H24,0)","v":0},null,{"$f":"IF(SUM(CC$15:CC$21)>0,$E24*$H24,0)","v":0},null,{"$f":"IF(SUM(CE$15:CE$21)>0,$E24*$H24,0)","v":0},null,{"$f":"IF(SUM(CG$15:CG$21)>0,$E24*$H24,0)","v":0},null,{"$f":"IF(SUM(CI$15:CI$21)>0,$E24*$H24,0)","v":0},null,{"$f":"IF(SUM(CK$15:CK$21)>0,$E24*$H24,0)","v":0},null,{"$f":"IF(SUM(CM$15:CM$21)>0,$E24*$H24,0)","v":0},null,{"$f":"IF(SUM(CO$15:CO$21)>0,$E24*$H24,0)","v":0},null,{"$f":"IF(SUM(CQ$15:CQ$21)>0,$E24*$H24,0)","v":0},null,{"$f":"IF(SUM(CS$15:CS$21)>0,$E24*$H24,0)","v":0},null,{"$f":"IF(SUM(CU$15:CU$21)>0,$E24*$H24,0)","v":0},null,{"$f":"IF(SUM(CW$15:CW$21)>0,$E24*$H24,0)","v":0},null,{"$f":"IF(SUM(CY$15:CY$21)>0,$E24*$H24,0)","v":0},null,{"$f":"IF(SUM(DA$15:DA$21)>0,$E24*$H24,0)","v":0},null,{"$f":"IF(SUM(DC$15:DC$21)>0,$E24*$H24,0)","v":0},null,{"$f":"IF(SUM(DE$15:DE$21)>0,$E24*$H24,0)","v":0},null,{"$f":"IF(SUM(DG$15:DG$21)>0,$E24*$H24,0)","v":0},null,{"$f":"IF(SUM(DI$15:DI$21)>0,$E24*$H24,0)","v":0},null,{"$f":"IF(SUM(DK$15:DK$21)>0,$E24*$H24,0)","v":0},null,{"$f":"IF(SUM(DM$15:DM$21)>0,$E24*$H24,0)","v":0},null,{"$f":"IF(SUM(DO$15:DO$21)>0,$E24*$H24,0)","v":0},null,{"$f":"IF(SUM(DQ$15:DQ$21)>0,$E24*$H24,0)","v":0},null,{"$f":"IF(SUM(DS$15:DS$21)>0,$E24*$H24,0)","v":0},null,{"$f":"IF(SUM(DU$15:DU$21)>0,$E24*$H24,0)","v":0},null,{"$f":"IF(SUM(DW$15:DW$21)>0,$E24*$H24,0)","v":0},null,{"$f":"IF(SUM(DY$15:DY$21)>0,$E24*$H24,0)","v":0}]
[null,null,1,"Calça em microfibra na cor preta (masculina ou feminina)",{"$f":"G25/F25","v":{"$error":"#N/A"}},{"$f":"SUM(H16:H20)","v":{"$error":"#N/A"}},174,44.06,null,null,null,0,null,0,null,0,null,0,null,0,null,0,null,0,null,0,null,0,null,0,null,0,null,0,null,0,null,0,null,0,null,0,null,0,null,0,null,0,null,0,null,0,null,0,null,0,null,0,null,0,null,0,null,0,null,0,null,0,null,0,null,0,null,0,null,0,null,0,null,0,null,0,null,0,null,0,null,0,null,0,null,0,null,0,null,0,null,0,null,0,null,0,null,0,null,0,null,0,null,0,null,0,null,0,null,0,null,0,null,0,null,0,null,0,null,0,null,0,null,0]
[null,null,2,"Camisa social com manga comprida em poliéster cor cinza",{"$error":"#N/A"},{"$f":"F25","v":{"$error":"#N/A"}},174,50.5,null,null,null,0,null,0,null,0,null,0,null,0,null,0,null,0,null,0,null,0,null,0,null,0,null,0,null,0,null,0,null,0,null,0,null,0,null,0,null,0,null,0,null,0,null,0,null,0,null,0,null,0,null,0,null,0,null,0,null,0,null,0,null,0,null,0,null,0,null,0,null,0,null,0,null,0,null,0,null,0,null,0,null,0,null,0,null,0,null,0,null,0,null,0,null,0,null,0,null,0,null,0,null,0,null,0,null,0,null,0,null,0,null,0,null,0,null,0,null,0,null,0]
[null,null,3,"Gravata preta",{"$error":"#N/A"},{"$f":"F26","v":{"$error":"#N/A"}},58,14.44,null,null,null,0,null,0,null,0,null,0,null,0,null,0,null,0,null,0,null,0,null,0,null,0,null,0,null,0,null,0,null,0,null,0,null,0,null,0,null,0,null,0,null,0,null,0,null,0,null,0,null,0,null,0,null,0,null,0,null,0,null,0,null,0,null,0,null,0,null,0,null,0,null,0,null,0,null,0,null,0,null,0,null,0,null,0,null,0,null,0,null,0,null,0,null,0,null,0,null,0,null,0,null,0,null,0,null,0,null,0,null,0,null,0,null,0,null,0,null,0,null,0]
[null,null,4,"Guarda pó manga curta em poliéster na cor branca",{"$error":"#N/A"},{"$f":"F27","v":{"$error":"#N/A"}},116,73.62,null,null,null,0,null,0,null,0,null,0,null,0,null,0,null,0,null,0,null,0,null,0,null,0,null,0,null,0,null,0,null,0,null,0,null,0,null,0,null,0,null,0,null,0,null,0,null,0,null,0,null,0,null,0,null,0,null,0,null,0,null,0,null,0,null,0,null,0,null,0,null,0,null,0,null,0,null,0,null,0,null,0,null,0,null,0,null,0,null,0,null,0,null,0,null,0,null,0,null,0,null,0,null,0,null,0,null,0,null,0,null,0,null,0,null,0,null,0,null,0,null,0]
[null,null,5,"Meias na cor preta",{"$error":"#N/A"},{"$f":"F28","v":{"$error":"#N/A"}},174,6.56,null,null,null,0,null,0,null,0,null,0,null,0,null,0,null,0,null,0,null,0,null,0,null,0,null,0,null,0,null,0,null,0,null,0,null,0,null,0,null,0,null,0,null,0,null,0,null,0,null,0,null,0,null,0,null,0,null,0,null,0,null,0,null,0,null,0,null,0,null,0,null,0,null,0,null,0,null,0,null,0,null,0,null,0,null,0,null,0,null,0,null,0,null,0,null,0,null,0,null,0,null,0,null,0,null,0,null,0,null,0,null,0,null,0,null,0,null,0,null,0,null,0]
[null,null,6,"Cinto",{"$error":"#N/A"},{"$f":"F29","v":{"$error":"#N/A"}},58,56,null,null,null,0,null,0,null,0,null,0,null,0,null,0,null,0,null,0,null,0,null,0,null,0,null,0,null,0,null,0,null,0,null,0,null,0,null,0,null,0,null,0,null,0,null,0,null,0,null,0,null,0,null,0,null,0,null,0,null,0,null,0,null,0,null,0,null,0,null,0,null,0,null,0,null,0,null,0,null,0,null,0,null,0,null,0,null,0,null,0,null,0,null,0,null,0,null,0,null,0,null,0,null,0,null,0,null,0,null,0,null,0,null,0,null,0,null,0,null,0,null,0]
[null,null,null,null,null,null,null,null,null,null,null,0,null,0,null,0,null,0,null,0,null,0,null,0,null,0,null,0,null,0,null,0,null,0,null,0,null,0,null,0,null,0,null,0,null,0,null,0,null,0,null,0,null,0,null,0,null,0,null,0,null,0,null,0,null,0,null,0,null,0,null,0,null,0,null,0,null,0,null,0,null,0,null,0,null,0,null,0,null,0,null,0,null,0,null,0,null,0,null,0,null,0,null,0,null,0,null,0,null,0,null,0,null,0,null,0,null,0,null,0,null,0,null,0,null,0,null,0,null,0]
[]
[null,null,null,null,null,null,null,null,null,null,{"$f":"SUMPRODUCT($E$25:$E$30,$H$25:$H$30)","v":{"$error":"#N/A"}}]
[null,null,null,null,null,null,null,null,null,null,{"$f":"K33*($H$16+#REF!)","v":{"$error":"#N/A"}}]
[null,null,null,null,null,null,null,null,null,null,{"$f":"K34/12","v":{"$error":"#N/A"}}]
[null,null,null,null,null,null,null,null,null,null,{"$f":"K35/91","v":{"$error":"#N/A"}}]

{"sheet":"Mat Perm","index":15,"n_rows":113,"n_cols":136,"rows_kept":113,"cut":false,"hidden":true,"merged":[[9,1,9,3],[10,1,10,14]]}
[null,null,"CÂMARA DOS DEPUTADOS"]
[null,null,"DEPARTAMENTO TÉCNICO"]
[null,null,"Coordenação de Planejamento e Gestão"]
[]
[null,null,"Data:",{"$f":"'Dados Gerais'!#REF!","v":{"$error":"#REF!"}}]
[null,null,"Processo:",{"$f":"'Dados Gerais'!#REF!","v":{"$error":"#REF!"}}]
[null,null,"Objeto:",{"$f":"'Dados Gerais'!#REF!","v":{"$error":"#REF!"}}]
[]
[]
[]
[null,"MATERIAIS PERMANENTES RELACIONADOS AO POSTO - PAGAMENTO DA DEPRECIAÇÃO / MANUTENÇÃO",null,null,null,null,null,null,null,null,null,null,null,null,null,null,1,null,{"$f":"Q11+1","v":2},null,{"$f":"S11+1","v":3},null,{"$f":"U11+1","v":4},null,{"$f":"W11+1","v":5},null,{"$f":"Y11+1","v":6},null,{"$f":"AA11+1","v":7},null,{"$f":"AC11+1","v":8},null,{"$f":"AE11+1","v":9},null,{"$f":"AG11+1","v":10},null,{"$f":"AI11+1","v":11},null,{"$f":"AK11+1","v":12},null,{"$f":"AM11+1","v":13},null,{"$f":"AO11+1","v":14},null,{"$f":"AQ11+1","v":15},null,{"$f":"AS11+1","v":16},null,{"$f":"AU11+1","v":17},null,{"$f":"AW11+1","v":18},null,{"$f":"AY11+1","v":19},null,{"$f":"BA11+1","v":20},null,{"$f":"BC11+1","v":21},null,{"$f":"BE11+1","v":22},null,{"$f":"BG11+1","v":23},null,{"$f":"BI11+1","v":24},null,{"$f":"BK11+1","v":25},null,{"$f":"BM11+1","v":26},null,{"$f":"BO11+1","v":27},null,{"$f":"BQ11+1","v":28},null,{"$f":"BS11+1","v":29},null,{"$f":"BU11+1","v":30},null,{"$f":"BW11+1","v":31},null,{"$f":"BY11+1","v":32},null,{"$f":"CA11+1","v":33},null,{"$f":"CC11+1","v":34},null,{"$f":"CE11+1","v":35},null,{"$f":"CG11+1","v":36},null,{"$f":"CI11+1","v":37},null,{"$f":"CK11+1","v":38},null,{"$f":"CM11+1","v":39},null,{"$f":"CO11+1","v":40},null,{"$f":"CQ11+1","v":41},null,{"$f":"CS11+1","v":42},null,{"$f":"CU11+1","v":43},null,{"$f":"CW11+1","v":44},null,{"$f":"CY11+1","v":45},null,{"$f":"DA11+1","v":46},null,{"$f":"DC11+1","v":47},null,{"$f":"DE11+1","v":48},null,{"$f":"DG11+1","v":49},null,{"$f":"DI11+1","v":50},null,{"$f":"DK11+1","v":51},null,{"$f":"DM11+1","v":52},null,{"$f":"DO11+1","v":53},null,{"$f":"DQ11+1","v":54},null,{"$f":"DS11+1","v":55},null,{"$f":"DU11+1","v":56},null,{"$f":"DW11+1","v":57},null,{"$f":"DY11+1","v":58},null,{"$f":"EA11+1","v":59},null,{"$f":"EC11+1","v":60}]
[]
[null,null,null,null,null,null,null,null,null,null,null,null,null,null,null,null,{"$f":"SUM(R12:R94)","v":0},null,{"$f":"SUM(T12:T94)","v":0},null,{"$f":"SUM(V12:V94)","v":0},null,{"$f":"SUM(X12:X94)","v":0},null,{"$f":"SUM(Z12:Z94)","v":0},null,{"$f":"SUM(AB12:AB94)","v":0},null,{"$f":"SUM(AD12:AD94)","v":0},null,{"$f":"SUM(AF12:AF94)","v":0},null,{"$f":"SUM(AH12:AH94)","v":0},null,{"$f":"SUM(AJ12:AJ94)","v":0},null,{"$f":"SUM(AL12:AL94)","v":0},null,{"$f":"SUM(AN12:AN94)","v":0},null,{"$f":"SUM(AP12:AP94)","v":0},null,{"$f":"SUM(AR12:AR94)","v":0},null,{"$f":"SUM(AT12:AT94)","v":0},null,{"$f":"SUM(AV12:AV94)","v":0},null,{"$f":"SUM(AX12:AX94)","v":0},null,{"$f":"SUM(AZ12:AZ94)","v":0},null,{"$f":"SUM(BB12:BB94)","v":0},null,{"$f":"SUM(BD12:BD94)","v":0},null,{"$f":"SUM(BF12:BF94)","v":0},null,{"$f":"SUM(BH12:BH94)","v":0},null,{"$f":"SUM(BJ12:BJ94)","v":0},null,{"$f":"SUM(BL12:BL94)","v":0},null,{"$f":"SUM(BN12:BN94)","v":0},null,{"$f":"SUM(BP12:BP94)","v":0},null,{"$f":"SUM(BR12:BR94)","v":0},null,{"$f":"SUM(BT12:BT94)","v":0},null,{"$f":"SUM(BV12:BV94)","v":0},null,{"$f":"SUM(BX12:BX94)","v":0},null,{"$f":"SUM(BZ12:BZ94)","v":0},null,{"$f":"SUM(CB12:CB94)","v":0},null,{"$f":"SUM(CD12:CD94)","v":0},null,{"$f":"SUM(CF12:CF94)","v":0},null,{"$f":"SUM(CH12:CH94)","v":0},null,{"$f":"SUM(CJ12:CJ94)","v":0},null,{"$f":"SUM(CL12:CL94)","v":0},null,{"$f":"SUM(CN12:CN94)","v":0},null,{"$f":"SUM(CP12:CP94)","v":0},null,{"$f":"SUM(CR12:CR94)","v":0},null,{"$f":"SUM(CT12:CT94)","v":0},null,{"$f":"SUM(CV12:CV94)","v":0},null,{"$f":"SUM(CX12:CX94)","v":0},null,{"$f":"SUM(CZ12:CZ94)","v":0},null,{"$f":"SUM(DB12:DB94)","v":0},null,{"$f":"SUM(DD12:DD94)","v":0},null,{"$f":"SUM(DF12:DF94)","v":0},null,{"$f":"SUM(DH12:DH94)","v":0},null,{"$f":"SUM(DJ12:DJ94)","v":0},null,{"$f":"SUM(DL12:DL94)","v":0},null,{"$f":"SUM(DN12:DN94)","v":0},null,{"$f":"SUM(DP12:DP94)","v":0},null,{"$f":"SUM(DR12:DR94)","v":0},null,{"$f":"SUM(DT12:DT94)","v":0},null,{"$f":"SUM(DV12:DV94)","v":0},null,{"$f":"SUM(DX12:DX94)","v":0},null,{"$f":"SUM(DZ12:DZ94)","v":0},null,{"$f":"SUM(EB12:EB94)","v":0},null,{"$f":"SUM(ED12:ED94)","v":0},null,{"$f":"SUM(EF12:EF94)","v":0}]
[null,null,"CATEGORIAS",null,"QUANTIDADE"]
[null,null,null,null,null,null,null,null,null,null,null,null,null,null,null,null,{"$f":"IF($C15=Q$11,1,0)","v":0},null,{"$f":"IF($C15=S$11,1,0)","v":0},null,{"$f":"IF($C15=U$11,1,0)","v":0},null,{"$f":"IF($C15=W$11,1,0)","v":0},null,{"$f":"IF($C15=Y$11,1,0)","v":0},null,{"$f":"IF($C15=AA$11,1,0)","v":0},null,{"$f":"IF($C15=AC$11,1,0)","v":0},null,{"$f":"IF($C15=AE$11,1,0)","v":0},null,{"$f":"IF($C15=AG$11,1,0)","v":0},null,{"$f":"IF($C15=AI$11,1,0)","v":0},null,{"$f":"IF($C15=AK$11,1,0)","v":0},null,{"$f":"IF($C15=AM$11,1,0)","v":0},null,{"$f":"IF($C15=AO$11,1,0)","v":0},null,{"$f":"IF($C15=AQ$11,1,0)","v":0},null,{"$f":"IF($C15=AS$11,1,0)","v":0},null,{"$f":"IF($C15=AU$11,1,0)","v":0},null,{"$f":"IF($C15=AW$11,1,0)","v":0},null,{"$f":"IF($C15=AY$11,1,0)","v":0},null,{"$f":"IF($C15=BA$11,1,0)","v":0},null,{"$f":"IF($C15=BC$11,1,0)","v":0},null,{"$f":"IF($C15=BE$11,1,0)","v":0},null,{"$f":"IF($C15=BG$11,1,0)","v":0},null,{"$f":"IF($C15=BI$11,1,0)","v":0},null,{"$f":"IF($C15=BK$11,1,0)","v":0},null,{"$f":"IF($C15=BM$11,1,0)","v":0},null,{"$f":"IF($C15=BO$11,1,0)","v":0},null,{"$f":"IF($C15=BQ$11,1,0)","v":0},null,{"$f":"IF($C15=BS$11,1,0)","v":0},null,{"$f":"IF($C15=BU$11,1,0)","v":0},null,{"$f":"IF($C15=BW$11,1,0)","v":0},null,{"$f":"IF($C15=BY$11,1,0)","v":0},null,{"$f":"IF($C15=CA$11,1,0)","v":0},null,{"$f":"IF($C15=CC$11,1,0)","v":0},null,{"$f":"IF($C15=CE$11,1,0)","v":0},null,{"$f":"IF($C15=CG$11,1,0)","v":0},null,{"$f":"IF($C15=CI$11,1,0)","v":0},null,{"$f":"IF($C15=CK$11,1,0)","v":0},null,{"$f":"IF($C15=CM$11,1,0)","v":0},null,{"$f":"IF($C15=CO$11,1,0)","v":0},null,{"$f":"IF($C15=CQ$11,1,0)","v":0},null,{"$f":"IF($C15=CS$11,1,0)","v":0},null,{"$f":"IF($C15=CU$11,1,0)","v":0},null,{"$f":"IF($C15=CW$11,1,0)","v":0},null,{"$f":"IF($C15=CY$11,1,0)","v":0},null,{"$f":"IF($C15=DA$11,1,0)","v":0},null,{"$f":"IF($C15=DC$11,1,0)","v":0},null,{"$f":"IF($C15=DE$11,1,0)","v":0},null,{"$f":"IF($C15=DG$11,1,0)","v":0},null,{"$f":"IF($C15=DI$11,1,0)","v":0},null,{"$f":"IF($C15=DK$11,1,0)","v":0},null,{"$f":"IF($C15=DM$11,1,0)","v":0},null,{"$f":"IF($C15=DO$11,1,0)","v":0},null,{"$f":"IF($C15=DQ$11,1,0)","v":0},null,{"$f":"IF($C15=DS$11,1,0)","v":0},null,{"$f":"IF($C15=DU$11,1,0)","v":0},null,{"$f":"IF($C15=DW$11,1,0)","v":0},null,{"$f":"IF($C15=DY$11,1,0)","v":0},null,{"$f":"IF($C15=EA$11,1,0)","v":0},null,{"$f":"IF($C15=EC$11,1,0)","v":0},null,{"$f":"IF($C15=EE$11,1,0)","v":0}]
[null,null,1,{"$f":"HLOOKUP($C16,'Dados Gerais'!$D$5:$BH$10,6)","v":"Analista de TI - Agile Master - sênior"},{"$f":"HLOOKUP($C16,'Dados Gerais'!$D$5:$BH$14,10)","v":8},null,null,null,null,null,null,null,null,null,null,null,1,null,0,null,0,null,0,null,0,null,0,null,0,null,0,null,0,null,0,null,0,null,0,null,0,null,0,null,0,null,0,null,0,null,0,null,0,null,0,null,0,null,0,null,0,null,0,null,0,null,0,null,0,null,0,null,0,null,0,null,0,null,0,null,0,null,0,null,0,null,0,null,0,null,0,null,0,null,0,null,0,null,0,null,0,null,0,null,0,null,0,null,0,null,0,null,0,null,0,null,0,null,0,null,0,null,0,null,0,null,0,null,0,null,0,null,0,null,0]
[null,null,3,{"$f":"HLOOKUP($C17,'Dados Gerais'!$D$5:$BH$10,6)","v":"Analista de TI - Analista de Dados - sênior"},{"$f":"HLOOKUP($C17,'Dados Gerais'!$D$5:$BH$14,10)","v":9},null,null,null,null,null,null,null,null,null,null,null,0,null,0,null,1,null,0,null,0,null,0,null,0,null,0,null,0,null,0,null,0,null,0,null,0,null,0,null,0,null,0,null,0,null,0,null,0,null,0,null,0,null,0,null,0,null,0,null,0,null,0,null,0,null,0,null,0,null,0,null,0,null,0,null,0,null,0,null,0,null,0,null,0,null,0,null,0,null,0,null,0,null,0,null,0,null,0,null,0,null,0,null,0,null,0,null,0,null,0,null,0,null,0,null,0,null,0,null,0,null,0,null,0,null,0,null,0,null,0]
[null,null,4,{"$f":"HLOOKUP($C18,'Dados Gerais'!$D$5:$BH$10,6)","v":"Analista de TI - Arquiteto de Dados - sênior"},{"$f":"HLOOKUP($C18,'Dados Gerais'!$D$5:$BH$14,10)","v":6},null,null,null,null,null,null,null,null,null,null,null,0,null,0,null,0,null,1,null,0,null,0,null,0,null,0,null,0,null,0,null,0,null,0,null,0,null,0,null,0,null,0,null,0,null,0,null,0,null,0,null,0,null,0,null,0,null,0,null,0,null,0,null,0,null,0,null,0,null,0,null,0,null,0,null,0,null,0,null,0,null,0,null,0,null,0,null,0,null,0,null,0,null,0,null,0,null,0,null,0,null,0,null,0,null,0,null,0,null,0,null,0,null,0,null,0,null,0,null,0,null,0,null,0,null,0,null,0,null,0]
[null,null,5,{"$f":"HLOOKUP($C19,'Dados Gerais'!$D$5:$BH$10,6)","v":"Analista de TI - Planejamento e Processos Digitais - sênior"},{"$f":"HLOOKUP($C19,'Dados Gerais'!$D$5:$BH$14,10)","v":4},null,null,null,null,null,null,null,null,null,null,null,0,null,0,null,0,null,0,null,1,null,0,null,0,null,0,null,0,null,0,null,0,null,0,null,0,null,0,null,0,null,0,null,0,null,0,null,0,null,0,null,0,null,0,null,0,null,0,null,0,null,0,null,0,null,0,null,0,null,0,null,0,null,0,null,0,null,0,null,0,null,0,null,0,null,0,null,0,null,0,null,0,null,0,null,0,null,0,null,0,null,0,null,0,null,0,null,0,null,0,null,0,null,0,null,0,null,0,null,0,null,0,null,0,null,0,null,0,null,0]
[null,null,6,{"$f":"HLOOKUP($C20,'Dados Gerais'!$D$5:$BH$10,6)","v":"Analista de Design e Cultura Digital - sênior"},{"$f":"HLOOKUP($C20,'Dados Gerais'!$D$5:$BH$14,10)","v":2},null,null,null,null,null,null,null,null,null,null,null,0,null,0,null,0,null,0,null,0,null,1,null,0,null,0,null,0,null,0,null,0,null,0,null,0,null,0,null,0,null,0,null,0,null,0,null,0,null,0,null,0,null,0,null,0,null,0,null,0,null,0,null,0,null,0,null,0,null,0,null,0,null,0,null,0,null,0,null,0,null,0,null,0,null,0,null,0,null,0,null,0,null,0,null,0,null,0,null,0,null,0,null,0,null,0,null,0,null,0,null,0,null,0,null,0,null,0,null,0,null,0,null,0,null,0,null,0,null,0]
[null,null,7,{"$f":"HLOOKUP($C21,'Dados Gerais'!$D$5:$BH$10,6)","v":"Analista de Design e Cultura Digital - sênior"},{"$f":"HLOOKUP($C21,'Dados Gerais'!$D$5:$BH$14,10)","v":2},null,null,null,null,null,null,null,null,null,null,null,0,null,0,null,0,null,0,null,0,null,0,null,1,null,0,null,0,null,0,null,0,null,0,null,0,null,0,null,0,null,0,null,0,null,0,null,0,null,0,null,0,null,0,null,0,null,0,null,0,null,0,null,0,null,0,null,0,null,0,null,0,null,0,null,0,null,0,null,0,null,0,null,0,null,0,null,0,null,0,null,0,null,0,null,0,null,0,null,0,null,0,null,0,null,0,null,0,null,0,null,0,null,0,null,0,null,0,null,0,null,0,null,0,null,0,null,0,null,0]
[null,null,null,null,null,null,null,null,null,null,null,null,null,null,null,null,0,null,0,null,0,null,0,null,0,null,0,null,0,null,0,null,0,null,0,null,0,null,0,null,0,null,0,null,0,null,0,null,0,null,0,null,0,null,0,null,0,null,0,null,0,null,0,null,0,null,0,null,0,null,0,null,0,null,0,null,0,null,0,null,0,null,0,null,0,null,0,null,0,null,0,null,0,null,0,null,0,null,0,null,0,null,0,null,0,null,0,null,0,null,0,null,0,null,0,null,0,null,0,null,0,null,0,null,0,null,0,null,0,null,0,null,0,null,0]
[]
[null,null,"PAGAMENTO DA DEPRECIAÇÃO"]
[null,null,"ITEM","DESCRIÇÃO","QUANT ANUAL","CONTA SIAFI","VALOR DE AQ.","% RESIDUAL","VIDA ÚTIL","DEP. MENSAL","CUSTO TOTAL","BDI (%)","PREÇO TOTAL","FONTE","REFERÊNCIA"]
[]
[null,null,null,null,null,null,0,0.1,10,{"$f":"G27*(1-H27)/(I27*12)","v":0},{"$f":"J27*E27","v":0},{"$f":"BDI!$E$26","v":0.26629999999999998},{"$f":"ROUND(K27*(1+L27),2)","v":0},"COTAÇÃO"]
[null,null,null,null,null,null,0,0.1,10,{"$f":"G28*(1-H28)/(I28*12)","v":0},{"$f":"J28*E28","v":0},{"$f":"BDI!$E$26","v":0.26629999999999998},{"$f":"ROUND(K28*(1+L28),2)","v":0},"COTAÇÃO"]
[null,null,null,null,null,null,0,0.1,10,0,0,{"$f":"BDI!$E$26","v":0.26629999999999998},0,"COTAÇÃO"]
[null,null,null,null,null,null,0,0.1,10,0,0,{"$f":"BDI!$E$26","v":0.26629999999999998},0,"COTAÇÃO"]
[null,null,null,null,null,null,0,0.1,10,0,0,{"$f":"BDI!$E$26","v":0.26629999999999998},0,"COTAÇÃO"]
[null,null,null,null,null,null,0,0.1,10,0,0,{"$f":"BDI!$E$26","v":0.26629999999999998},0,"COTAÇÃO"]
[null,null,null,null,null,null,0,0.1,10,0,0,{"$f":"BDI!$E$26","v":0.26629999999999998},0,"COTAÇÃO"]
[null,null,null,null,null,null,0,0.1,10,0,0,{"$f":"BDI!$E$26","v":0.26629999999999998},0,"COTAÇÃO"]
[null,null,null,null,null,null,0,0.1,10,0,0,{"$f":"BDI!$E$26","v":0.26629999999999998},0,"COTAÇÃO"]
[null,null,null,null,null,null,0,0.1,10,0,0,{"$f":"BDI!$E$26","v":0.26629999999999998},0,"COTAÇÃO"]
[null,null,null,null,null,null,0,0.1,10,0,0,{"$f":"BDI!$E$26","v":0.26629999999999998},0,"COTAÇÃO"]
[null,null,null,null,null,null,0,0.1,10,0,0,{"$f":"BDI!$E$26","v":0.26629999999999998},0,"COTAÇÃO"]
[null,null,null,null,null,null,0,0.1,10,0,0,{"$f":"BDI!$E$26","v":0.26629999999999998},0,"COTAÇÃO"]
[null,null,null,null,null,null,0,0.1,10,0,0,{"$f":"BDI!$E$26","v":0.26629999999999998},0,"COTAÇÃO"]
[null,null,null,null,null,null,0,0.1,10,0,0,{"$f":"BDI!$E$26","v":0.26629999999999998},0,"COTAÇÃO"]
[null,null,null,null,null,null,0,0.1,10,0,0,{"$f":"BDI!$E$26","v":0.26629999999999998},0,"COTAÇÃO"]
[null,null,null,null,null,null,0,0.1,10,0,0,{"$f":"BDI!$E$26","v":0.26629999999999998},0,"COTAÇÃO"]
[null,null,null,null,null,null,0,0.1,10,0,0,{"$f":"BDI!$E$26","v":0.26629999999999998},0,"COTAÇÃO"]
[null,null,null,null,null,null,0,0.1,10,0,0,{"$f":"BDI!$E$26","v":0.26629999999999998},0,"COTAÇÃO"]
[null,null,null,null,null,null,0,0.1,10,0,0,{"$f":"BDI!$E$26","v":0.26629999999999998},0,"COTAÇÃO"]
[null,null,null,null,null,null,0,0.1,10,0,0,{"$f":"BDI!$E$26","v":0.26629999999999998},0,"COTAÇÃO"]
[null,null,null,null,null,null,0,0.1,10,0,0,{"$f":"BDI!$E$26","v":0.26629999999999998},0,"COTAÇÃO"]
[null,null,null,null,null,null,0,0.1,10,0,0,{"$f":"BDI!$E$26","v":0.26629999999999998},0,"COTAÇÃO"]
[null,null,null,null,null,null,0,0.1,10,0,0,{"$f":"BDI!$E$26","v":0.26629999999999998},0,"COTAÇÃO"]
[null,null,null,null,null,null,0,0.1,10,0,0,{"$f":"BDI!$E$26","v":0.26629999999999998},0,"COTAÇÃO"]
[null,null,null,null,null,null,0,0.1,10,0,0,{"$f":"BDI!$E$26","v":0.26629999999999998},0,"COTAÇÃO"]
[null,null,null,null,null,null,0,0.1,10,0,0,{"$f":"BDI!$E$26","v":0.26629999999999998},0,"COTAÇÃO"]
[null,null,null,null,null,null,0,0.1,10,0,0,{"$f":"BDI!$E$26","v":0.26629999999999998},0,"COTAÇÃO"]
[null,null,null,null,null,null,0,0.1,10,0,0,{"$f":"BDI!$E$26","v":0.26629999999999998},0,"COTAÇÃO"]
[]
[]
[null,null,"PAGAMENTO DA MANUTENÇÃO"]
[null,null,"ITEM","DESCRIÇÃO",null,null,null,"K (calculado)","MENSAL DEPR.","% MAN X DEP","MENSAL MAN.","BDI (%)","PREÇO TOTAL"]
[]
[null,null,null,null,null,null,null,{"$f":"H68","v":0.59376239999999991},{"$f":"SUM(M27:M55)","v":0},{"$f":"H61","v":0.59376239999999991},{"$f":"I61*H61","v":0},{"$f":"L27","v":0.26629999999999998},{"$f":"ROUND(K61*(1+L61),2)","v":0}]
[]
[null,null,null,null,"K1","K2","K3","K4"]
[null,null,null,null,0.85,1,0.8,1.4]
[null,null,null,null,"K5","K6","K7","K8"]
[null,null,null,null,1,0.6,0.5,1.1000000000000001]
[null,null,null,null,"K9","K10","K11","RESULTADO"]
[null,null,null,"* a descrição de cada coeficiente segue abaixo",1.5,0.9,1.4,{"$f":"E64*F64*G64*H64*E66*F66*G66*H66*E68*F68*G68","v":0.59376239999999991}]
[]
[]
[null,null,"MATERIAL DE CONSUMO ASSOCIADO"]
[null,null,"ITEM","DESCRIÇÃO",null,null,null,"QUANTID/ANO","UNIDADE","VALOR DE AQ.","MENSAL MAT","BDI (%)","PREÇO TOTAL"]
[]
[null,null,null,null,null,null,null,null,null,null,{"$f":"J74*H74/12","v":0},{"$f":"L61","v":0.26629999999999998},{"$f":"ROUND(K74*(1+L74),2)","v":0}]
[]
[]
[null,null,"MATERIAL DE CONSUMO ASSOCIADO"]
[null,null,"ITEM","DESCRIÇÃO",null,null,null,null,null,null,null,null,"PREÇO TOTAL"]
[]
[null,null,1,"Componente DEPRECIAÇÃO - POR POSTO",null,null,null,null,null,null,null,null,{"$f":"I61","v":0}]
[null,null,2,"Componente MANUTENÇÃO - POR POSTO",null,null,null,null,null,null,null,null,{"$f":"M61","v":0}]
[null,null,3,"Componente MATERIAL DE CONSUMO ASSOCIADO - POR POSTO",null,null,null,null,null,null,null,null,{"$f":"M74","v":0}]
[]
[null,null,null,null,null,null,null,null,null,null,null,"SOMATÓRIO TOTAL MENSAL - POR POSTO",{"$f":"SUM(M79:M83)","v":0},null,null,null,null,{"$f":"IF(SUM(Q$15:Q$22)>0,$M84,0)","v":0},null,{"$f":"IF(SUM(S$15:S$22)>0,$M84,0)","v":0},null,{"$f":"IF(SUM(U$15:U$22)>0,$M84,0)","v":0},null,{"$f":"IF(SUM(W$15:W$22)>0,$M84,0)","v":0},null,{"$f":"IF(SUM(Y$15:Y$22)>0,$M84,0)","v":0},null,{"$f":"IF(SUM(AA$15:AA$22)>0,$M84,0)","v":0},null,{"$f":"IF(SUM(AC$15:AC$22)>0,$M84,0)","v":0},null,{"$f":"IF(SUM(AE$15:AE$22)>0,$M84,0)","v":0},null,{"$f":"IF(SUM(AG$15:AG$22)>0,$M84,0)","v":0},null,{"$f":"IF(SUM(AI$15:AI$22)>0,$M84,0)","v":0},null,{"$f":"IF(SUM(AK$15:AK$22)>0,$M84,0)","v":0},null,{"$f":"IF(SUM(AM$15:AM$22)>0,$M84,0)","v":0},null,{"$f":"IF(SUM(AO$15:AO$22)>0,$M84,0)","v":0},null,{"$f":"IF(SUM(AQ$15:AQ$22)>0,$M84,0)","v":0},null,{"$f":"IF(SUM(AS$15:AS$22)>0,$M84,0)","v":0},null,{"$f":"IF(SUM(AU$15:AU$22)>0,$M84,0)","v":0},null,{"$f":"IF(SUM(AW$15:AW$22)>0,$M84,0)","v":0},null,{"$f":"IF(SUM(AY$15:AY$22)>0,$M84,0)","v":0},null,{"$f":"IF(SUM(BA$15:BA$22)>0,$M84,0)","v":0},null,{"$f":"IF(SUM(BC$15:BC$22)>0,$M84,0)","v":0},null,{"$f":"IF(SUM(BE$15:BE$22)>0,$M84,0)","v":0},null,{"$f":"IF(SUM(BG$15:BG$22)>0,$M84,0)","v":0},null,{"$f":"IF(SUM(BI$15:BI$22)>0,$M84,0)","v":0},null,{"$f":"IF(SUM(BK$15:BK$22)>0,$M84,0)","v":0},null,{"$f":"IF(SUM(BM$15:BM$22)>0,$M84,0)","v":0},null,{"$f":"IF(SUM(BO$15:BO$22)>0,$M84,0)","v":0},null,{"$f":"IF(SUM(BQ$15:BQ$22)>0,$M84,0)","v":0},null,{"$f":"IF(SUM(BS$15:BS$22)>0,$M84,0)","v":0},null,{"$f":"IF(SUM(BU$15:BU$22)>0,$M84,0)","v":0},null,{"$f":"IF(SUM(BW$15:BW$22)>0,$M84,0)","v":0},null,{"$f":"IF(SUM(BY$15:BY$22)>0,$M84,0)","v":0},null,{"$f":"IF(SUM(CA$15:CA$22)>0,$M84,0)","v":0},null,{"$f":"IF(SUM(CC$15:CC$22)>0,$M84,0)","v":0},null,{"$f":"IF(SUM(CE$15:CE$22)>0,$M84,0)","v":0},null,{"$f":"IF(SUM(CG$15:CG$22)>0,$M84,0)","v":0},null,{"$f":"IF(SUM(CI$15:CI$22)>0,$M84,0)","v":0},null,{"$f":"IF(SUM(CK$15:CK$22)>0,$M84,0)","v":0},null,{"$f":"IF(SUM(CM$15:CM$22)>0,$M84,0)","v":0},null,{"$f":"IF(SUM(CO$15:CO$22)>0,$M84,0)","v":0},null,{"$f":"IF(SUM(CQ$15:CQ$22)>0,$M84,0)","v":0},null,{"$f":"IF(SUM(CS$15:CS$22)>0,$M84,0)","v":0},null,{"$f":"IF(SUM(CU$15:CU$22)>0,$M84,0)","v":0},null,{"$f":"IF(SUM(CW$15:CW$22)>0,$M84,0)","v":0},null,{"$f":"IF(SUM(CY$15:CY$22)>0,$M84,0)","v":0},null,{"$f":"IF(SUM(DA$15:DA$22)>0,$M84,0)","v":0},null,{"$f":"IF(SUM(DC$15:DC$22)>0,$M84,0)","v":0},null,{"$f":"IF(SUM(DE$15:DE$22)>0,$M84,0)","v":0},null,{"$f":"IF(SUM(DG$15:DG$22)>0,$M84,0)","v":0},null,{"$f":"IF(SUM(DI$15:DI$22)>0,$M84,0)","v":0},null,{"$f":"IF(SUM(DK$15:DK$22)>0,$M84,0)","v":0},null,{"$f":"IF(SUM(DM$15:DM$22)>0,$M84,0)","v":0},null,{"$f":"IF(SUM(DO$15:DO$22)>0,$M84,0)","v":0},null,{"$f":"IF(SUM(DQ$15:DQ$22)>0,$M84,0)","v":0},null,{"$f":"IF(SUM(DS$15:DS$22)>0,$M84,0)","v":0},null,{"$f":"IF(SUM(DU$15:DU$22)>0,$M84,0)","v":0},null,{"$f":"IF(SUM(DW$15:DW$22)>0,$M84,0)","v":0},null,{"$f":"IF(SUM(DY$15:DY$22)>0,$M84,0)","v":0},null,{"$f":"IF(SUM(EA$15:EA$22)>0,$M84,0)","v":0},null,{"$f":"IF(SUM(EC$15:EC$22)>0,$M84,0)","v":0},null,{"$f":"IF(SUM(EE$15:EE$22)>0,$M84,0)","v":0}]
[null,null,null,null,null,null,null,null,null,null,null,"SOMATÓRIO TOTAL ANUAL - POR POSTO",{"$f":"M84*12","v":0}]
[]
[]
[null,null,"MATERIAL DE CONSUMO ASSOCIADO"]
[null,null,"MEMÓRIA DE CÁLCULO DO COEFICIENTE DE CORRELAÇÃO MANUTENÇÃO X DEPRECIAÇÃO (K)"]
[]
[null,null,"JUSTIFICATIVAS",null,"TIPO","K1",null,"Condições de Trab","K4",null,"Tempo Vida (anos)","K6",null,"Temperatura","K8"]
[null,null,null,null,"Guindaste",0.5,null,"Em espera",0.4,null,1,0.6,null,"Muito quente (> 40º C)",1.3]
[null,null,"K1","Considerado o valor médio de 0,85","Caminhão-comum",0.8,null,"Leves",0.8,null,2,0.7,null,"Quente (30º a 40º C)",1.1000000000000001]
[null,null,"K2","Considerado o operador médio","Fora-de-estrada",1,null,"Médias",1,null,3,0.8,null,"Médio (10º a 30º C)",1]
[null,null,"K3","Consideradas ferramentas de primeira qualidade","Carregadeira",1,null,"Pesadas",1.4,null,4,0.9,null,"Frio (< 10º C)",1.2]
[null,null,"K4","Há todo o tipo de trabalho, foi considerado o valor médio","Escavadeira",1.4,null,"Severas",2,null,5,1]
[null,null,"K5","Considerando manutenção normal","Motoescrêiper",1.1000000000000001,null,null,null,null,6,1,null,"Ritmo de Trabalho","K9"]
[null,null,"K6","Equipamentos novos","Trator de esteira",1.2,null,"Manutenção","K5",null,7,1,null,"Folgado",0.9]
[null,null,"K7","220h por mês, 252 dias por ano",null,null,null,"Excelente",0.6,null,8,1.2,null,"Médio ",1]
[null,null,"K8","Clima quente, acima de 30º C","Qualid do Operador","K2",null,"Boa",0.8,null,9,1.3,null,"Com pressa",1.5]
[null,null,"K9","Ritmo de trabalho usualmente com pressa","Excelente",0.8,null,"Média",1,null,10,1.4]
[null,null,"K10","Considerado o operador médio","Boa",0.9,null,"Ruim ",1.5,null,11,2,null,"Conh do Serviço","K10"]
[null,null,"K11","Foi considerada a opção de aluguel a terceiros, ainda que a simulação seja dos custos do contratado, contudo a execução dos serviços é em local de terceiros","Média",1,null,"Inexistente",3,null,15,2,null,"Grande ",0.8]
[null,null,null,null,"Ruim",1.2,null,null,null,null,null,null,null,"Médio     ",0.9]
[null,null,null,null,"Péssima",2,null,"Horas de Uso ","K7",6000,1,null,null,"Pouco ",1]
[null,null,null,null,null,null,null,1000,0.5,8000,1.3]
[null,null,null,null,"Qualidade do Equip","K3",null,2000,0.5,10000,1.6,null,null,"Tipo do Serviço","K11"]
[null,null,null,null,"De primeira",0.8,null,3000,0.6,12000,1.9,null,null,"Mina ou Pedreira",0.8]
[null,null,null,null,"Média",1,null,4000,0.7,15000,2.2999999999999998,null,null,"Construção Geral",1]
[null,null,null,null,"Ruim",1.5,null,5000,0.9,20000,3,null,null,"Aluguel a Terceiros",1.4]
[]
[null,null,null,null,"Fonte: "]
[null,null,null,null,"MATTOS, Aldo Dórea. Como preparar orçamentos de obras. São Paulo: Pini, 2006. 281 p., il"]

{"sheet":"EPI","index":16,"n_rows":32,"n_cols":128,"rows_kept":32,"cut":false,"hidden":true,"merged":[[9,1,9,3],[10,1,10,5]]}
[null,null,"CÂMARA DOS DEPUTADOS"]
[null,null,"DEPARTAMENTO TÉCNICO"]
[null,null,"Coordenação de Planejamento e Gestão"]
[]
[null,null,"Data:",{"$f":"'Dados Gerais'!#REF!","v":{"$error":"#REF!"}}]
[null,null,"Processo:",{"$f":"'Dados Gerais'!#REF!","v":{"$error":"#REF!"}}]
[null,null,"Objeto:",{"$f":"'Dados Gerais'!#REF!","v":{"$error":"#REF!"}}]
[]
[]
[]
[null,"EQUIPAMENTOS DE PROTEÇÃO INDIVIDUAL - AQUISIÇÃO",null,null,null,null,null,null,1,null,{"$f":"I11+1","v":2},null,{"$f":"K11+1","v":3},null,{"$f":"M11+1","v":4},null,{"$f":"O11+1","v":5},null,{"$f":"Q11+1","v":6},null,{"$f":"S11+1","v":7},null,{"$f":"U11+1","v":8},null,{"$f":"W11+1","v":9},null,{"$f":"Y11+1","v":10},null,{"$f":"AA11+1","v":11},null,{"$f":"AC11+1","v":12},null,{"$f":"AE11+1","v":13},null,{"$f":"AG11+1","v":14},null,{"$f":"AI11+1","v":15},null,{"$f":"AK11+1","v":16},null,{"$f":"AM11+1","v":17},null,{"$f":"AO11+1","v":18},null,{"$f":"AQ11+1","v":19},null,{"$f":"AS11+1","v":20},null,{"$f":"AU11+1","v":21},null,{"$f":"AW11+1","v":22},null,{"$f":"AY11+1","v":23},null,{"$f":"BA11+1","v":24},null,{"$f":"BC11+1","v":25},null,{"$f":"BE11+1","v":26},null,{"$f":"BG11+1","v":27},null,{"$f":"BI11+1","v":28},null,{"$f":"BK11+1","v":29},null,{"$f":"BM11+1","v":30},null,{"$f":"BO11+1","v":31},null,{"$f":"BQ11+1","v":32},null,{"$f":"BS11+1","v":33},null,{"$f":"BU11+1","v":34},null,{"$f":"BW11+1","v":35},null,{"$f":"BY11+1","v":36},null,{"$f":"CA11+1","v":37},null,{"$f":"CC11+1","v":38},null,{"$f":"CE11+1","v":39},null,{"$f":"CG11+1","v":40},null,{"$f":"CI11+1","v":41},null,{"$f":"CK11+1","v":42},null,{"$f":"CM11+1","v":43},null,{"$f":"CO11+1","v":44},null,{"$f":"CQ11+1","v":45},null,{"$f":"CS11+1","v":46},null,{"$f":"CU11+1","v":47},null,{"$f":"CW11+1","v":48},null,{"$f":"CY11+1","v":49},null,{"$f":"DA11+1","v":50},null,{"$f":"DC11+1","v":51},null,{"$f":"DE11+1","v":52},null,{"$f":"DG11+1","v":53},null,{"$f":"DI11+1","v":54},null,{"$f":"DK11+1","v":55},null,{"$f":"DM11+1","v":56},null,{"$f":"DO11+1","v":57},null,{"$f":"DQ11+1","v":58},null,{"$f":"DS11+1","v":59},null,{"$f":"DU11+1","v":60}]
[]
[null,null,null,null,null,null,null,null,{"$f":"ROUND(SUM(J12:J66),2)","v":0},null,{"$f":"ROUND(SUM(L12:L66),2)","v":0},null,{"$f":"ROUND(SUM(N12:N66),2)","v":0},null,{"$f":"ROUND(SUM(P12:P66),2)","v":0},null,{"$f":"ROUND(SUM(R12:R66),2)","v":0},null,{"$f":"ROUND(SUM(T12:T66),2)","v":0},null,{"$f":"ROUND(SUM(V12:V66),2)","v":0},null,{"$f":"ROUND(SUM(X12:X66),2)","v":0},null,{"$f":"ROUND(SUM(Z12:Z66),2)","v":0},null,{"$f":"ROUND(SUM(AB12:AB66),2)","v":0},null,{"$f":"ROUND(SUM(AD12:AD66),2)","v":0},null,{"$f":"ROUND(SUM(AF12:AF66),2)","v":0},null,{"$f":"ROUND(SUM(AH12:AH66),2)","v":0},null,{"$f":"ROUND(SUM(AJ12:AJ66),2)","v":0},null,{"$f":"ROUND(SUM(AL12:AL66),2)","v":0},null,{"$f":"ROUND(SUM(AN12:AN66),2)","v":0},null,{"$f":"ROUND(SUM(AP12:AP66),2)","v":0},null,{"$f":"ROUND(SUM(AR12:AR66),2)","v":0},null,{"$f":"ROUND(SUM(AT12:AT66),2)","v":0},null,{"$f":"ROUND(SUM(AV12:AV66),2)","v":0},null,{"$f":"ROUND(SUM(AX12:AX66),2)","v":0},null,{"$f":"ROUND(SUM(AZ12:AZ66),2)","v":0},null,{"$f":"ROUND(SUM(BB12:BB66),2)","v":0},null,{"$f":"ROUND(SUM(BD12:BD66),2)","v":0},null,{"$f":"ROUND(SUM(BF12:BF66),2)","v":0},null,{"$f":"ROUND(SUM(BH12:BH66),2)","v":0},null,{"$f":"ROUND(SUM(BJ12:BJ66),2)","v":0},null,{"$f":"ROUND(SUM(BL12:BL66),2)","v":0},null,{"$f":"ROUND(SUM(BN12:BN66),2)","v":0},null,{"$f":"ROUND(SUM(BP12:BP66),2)","v":0},null,{"$f":"ROUND(SUM(BR12:BR66),2)","v":0},null,{"$f":"ROUND(SUM(BT12:BT66),2)","v":0},null,{"$f":"ROUND(SUM(BV12:BV66),2)","v":0},null,{"$f":"ROUND(SUM(BX12:BX66),2)","v":0},null,{"$f":"ROUND(SUM(BZ12:BZ66),2)","v":0},null,{"$f":"ROUND(SUM(CB12:CB66),2)","v":0},null,{"$f":"ROUND(SUM(CD12:CD66),2)","v":0},null,{"$f":"ROUND(SUM(CF12:CF66),2)","v":0},null,{"$f":"ROUND(SUM(CH12:CH66),2)","v":0},null,{"$f":"ROUND(SUM(CJ12:CJ66),2)","v":0},null,{"$f":"ROUND(SUM(CL12:CL66),2)","v":0},null,{"$f":"ROUND(SUM(CN12:CN66),2)","v":0},null,{"$f":"ROUND(SUM(CP12:CP66),2)","v":0},null,{"$f":"ROUND(SUM(CR12:CR66),2)","v":0},null,{"$f":"ROUND(SUM(CT12:CT66),2)","v":0},null,{"$f":"ROUND(SUM(CV12:CV66),2)","v":0},null,{"$f":"ROUND(SUM(CX12:CX66),2)","v":0},null,{"$f":"ROUND(SUM(CZ12:CZ66),2)","v":0},null,{"$f":"ROUND(SUM(DB12:DB66),2)","v":0},null,{"$f":"ROUND(SUM(DD12:DD66),2)","v":0},null,{"$f":"ROUND(SUM(DF12:DF66),2)","v":0},null,{"$f":"ROUND(SUM(DH12:DH66),2)","v":0},null,{"$f":"ROUND(SUM(DJ12:DJ66),2)","v":0},null,{"$f":"ROUND(SUM(DL12:DL66),2)","v":0},null,{"$f":"ROUND(SUM(DN12:DN66),2)","v":0},null,{"$f":"ROUND(SUM(DP12:DP66),2)","v":0},null,{"$f":"ROUND(SUM(DR12:DR66),2)","v":0},null,{"$f":"ROUND(SUM(DT12:DT66),2)","v":0},null,{"$f":"ROUND(SUM(DV12:DV66),2)","v":0},null,{"$f":"ROUND(SUM(DX12:DX66),2)","v":0}]
[null,null,"CATEGORIAS",null,null,"QUANTIDADE"]
[null,null,null,null,null,null,null,null,{"$f":"IF($C15=I$11,1,0)","v":0}]
[null,null,0,{"$f":"HLOOKUP($C16,'Dados Gerais'!$D$5:$BH$10,6)","v":{"$error":"#N/A"}},null,{"$f":"HLOOKUP($C16,'Dados Gerais'!$D$5:$BH$14,10)","v":{"$error":"#N/A"}},null,null,0,null,{"$f":"IF($C16=K$11,1,0)","v":0},null,{"$f":"IF($C16=M$11,1,0)","v":0},null,{"$f":"IF($C16=O$11,1,0)","v":0},null,{"$f":"IF($C16=Q$11,1,0)","v":0},null,{"$f":"IF($C16=S$11,1,0)","v":0},null,{"$f":"IF($C16=U$11,1,0)","v":0},null,{"$f":"IF($C16=W$11,1,0)","v":0},null,{"$f":"IF($C16=Y$11,1,0)","v":0},null,{"$f":"IF($C16=AA$11,1,0)","v":0},null,{"$f":"IF($C16=AC$11,1,0)","v":0},null,{"$f":"IF($C16=AE$11,1,0)","v":0},null,{"$f":"IF($C16=AG$11,1,0)","v":0},null,{"$f":"IF($C16=AI$11,1,0)","v":0},null,{"$f":"IF($C16=AK$11,1,0)","v":0},null,{"$f":"IF($C16=AM$11,1,0)","v":0},null,{"$f":"IF($C16=AO$11,1,0)","v":0},null,{"$f":"IF($C16=AQ$11,1,0)","v":0},null,{"$f":"IF($C16=AS$11,1,0)","v":0},null,{"$f":"IF($C16=AU$11,1,0)","v":0},null,{"$f":"IF($C16=AW$11,1,0)","v":0},null,{"$f":"IF($C16=AY$11,1,0)","v":0},null,{"$f":"IF($C16=BA$11,1,0)","v":0},null,{"$f":"IF($C16=BC$11,1,0)","v":0},null,{"$f":"IF($C16=BE$11,1,0)","v":0},null,{"$f":"IF($C16=BG$11,1,0)","v":0},null,{"$f":"IF($C16=BI$11,1,0)","v":0},null,{"$f":"IF($C16=BK$11,1,0)","v":0},null,{"$f":"IF($C16=BM$11,1,0)","v":0},null,{"$f":"IF($C16=BO$11,1,0)","v":0},null,{"$f":"IF($C16=BQ$11,1,0)","v":0},null,{"$f":"IF($C16=BS$11,1,0)","v":0},null,{"$f":"IF($C16=BU$11,1,0)","v":0},null,{"$f":"IF($C16=BW$11,1,0)","v":0},null,{"$f":"IF($C16=BY$11,1,0)","v":0},null,{"$f":"IF($C16=CA$11,1,0)","v":0},null,{"$f":"IF($C16=CC$11,1,0)","v":0},null,{"$f":"IF($C16=CE$11,1,0)","v":0},null,{"$f":"IF($C16=CG$11,1,0)","v":0},null,{"$f":"IF($C16=CI$11,1,0)","v":0},null,{"$f":"IF($C16=CK$11,1,0)","v":0},null,{"$f":"IF($C16=CM$11,1,0)","v":0},null,{"$f":"IF($C16=CO$11,1,0)","v":0},null,{"$f":"IF($C16=CQ$11,1,0)","v":0},null,{"$f":"IF($C16=CS$11,1,0)","v":0},null,{"$f":"IF($C16=CU$11,1,0)","v":0},null,{"$f":"IF($C16=CW$11,1,0)","v":0},null,{"$f":"IF($C16=CY$11,1,0)","v":0},null,{"$f":"IF($C16=DA$11,1,0)","v":0},null,{"$f":"IF($C16=DC$11,1,0)","v":0},null,{"$f":"IF($C16=DE$11,1,0)","v":0},null,{"$f":"IF($C16=DG$11,1,0)","v":0},null,{"$f":"IF($C16=DI$11,1,0)","v":0},null,{"$f":"IF($C16=DK$11,1,0)","v":0},null,{"$f":"IF($C16=DM$11,1,0)","v":0},null,{"$f":"IF($C16=DO$11,1,0)","v":0},null,{"$f":"IF($C16=DQ$11,1,0)","v":0},null,{"$f":"IF($C16=DS$11,1,0)","v":0},null,{"$f":"IF($C16=DU$11,1,0)","v":0},null,{"$f":"IF($C16=DW$11,1,0)","v":0}]
[null,null,0,{"$f":"HLOOKUP($C17,'Dados Gerais'!$D$5:$BH$10,6)","v":{"$error":"#N/A"}},null,{"$f":"HLOOKUP($C17,'Dados Gerais'!$D$5:$BH$14,10)","v":{"$error":"#N/A"}},null,null,0,null,{"$f":"IF($C17=K$11,1,0)","v":0},null,0,null,{"$f":"IF($C17=O$11,1,0)","v":0},null,0]
[null,null,0,{"$f":"HLOOKUP($C18,'Dados Gerais'!$D$5:$BH$10,6)","v":{"$error":"#N/A"}},null,{"$f":"HLOOKUP($C18,'Dados Gerais'!$D$5:$BH$14,10)","v":{"$error":"#N/A"}},null,null,0,null,{"$f":"IF($C18=K$11,1,0)","v":0},null,0,null,0,null,0]
[null,null,0,{"$f":"HLOOKUP($C19,'Dados Gerais'!$D$5:$BH$10,6)","v":{"$error":"#N/A"}},null,{"$f":"HLOOKUP($C19,'Dados Gerais'!$D$5:$BH$14,10)","v":{"$error":"#N/A"}},null,null,0,null,{"$f":"IF($C19=K$11,1,0)","v":0},null,0,null,0,null,0]
[null,null,0,{"$f":"HLOOKUP($C20,'Dados Gerais'!$D$5:$BH$10,6)","v":{"$error":"#N/A"}},null,{"$f":"HLOOKUP($C20,'Dados Gerais'!$D$5:$BH$14,10)","v":{"$error":"#N/A"}},null,null,0,null,{"$f":"IF($C20=K$11,1,0)","v":0},null,0,null,0,null,0]
[null,null,null,null,null,null,null,null,0,null,null,null,0,null,0,null,0]
[null,null,null,null,null,null,null,null,null,null,null,null,null,null,0]
[null,null,"ITEM","DESCRIÇÃO","QUANT ANUAL","VALOR"]
[null,null,null,null,null,null,null,null,null,{"$f":"IF(SUM(I$15:I$21)>0,$E24*$F24,0)","v":0},null,{"$f":"IF(SUM(K$15:K$21)>0,$E24*$F24,0)","v":0},null,{"$f":"IF(SUM(M$15:M$21)>0,$E24*$F24,0)","v":0},null,{"$f":"IF(SUM(O$15:O$21)>0,$E24*$F24,0)","v":0},null,{"$f":"IF(SUM(Q$15:Q$21)>0,$E24*$F24,0)","v":0},null,{"$f":"IF(SUM(S$15:S$21)>0,$E24*$F24,0)","v":0},null,{"$f":"IF(SUM(U$15:U$21)>0,$E24*$F24,0)","v":0},null,{"$f":"IF(SUM(W$15:W$21)>0,$E24*$F24,0)","v":0},null,{"$f":"IF(SUM(Y$15:Y$21)>0,$E24*$F24,0)","v":0},null,{"$f":"IF(SUM(AA$15:AA$21)>0,$E24*$F24,0)","v":0},null,{"$f":"IF(SUM(AC$15:AC$21)>0,$E24*$F24,0)","v":0},null,{"$f":"IF(SUM(AE$15:AE$21)>0,$E24*$F24,0)","v":0},null,{"$f":"IF(SUM(AG$15:AG$21)>0,$E24*$F24,0)","v":0},null,{"$f":"IF(SUM(AI$15:AI$21)>0,$E24*$F24,0)","v":0},null,{"$f":"IF(SUM(AK$15:AK$21)>0,$E24*$F24,0)","v":0},null,{"$f":"IF(SUM(AM$15:AM$21)>0,$E24*$F24,0)","v":0},null,{"$f":"IF(SUM(AO$15:AO$21)>0,$E24*$F24,0)","v":0},null,{"$f":"IF(SUM(AQ$15:AQ$21)>0,$E24*$F24,0)","v":0},null,{"$f":"IF(SUM(AS$15:AS$21)>0,$E24*$F24,0)","v":0},null,{"$f":"IF(SUM(AU$15:AU$21)>0,$E24*$F24,0)","v":0},null,{"$f":"IF(SUM(AW$15:AW$21)>0,$E24*$F24,0)","v":0},null,{"$f":"IF(SUM(AY$15:AY$21)>0,$E24*$F24,0)","v":0},null,{"$f":"IF(SUM(BA$15:BA$21)>0,$E24*$F24,0)","v":0},null,{"$f":"IF(SUM(BC$15:BC$21)>0,$E24*$F24,0)","v":0},null,{"$f":"IF(SUM(BE$15:BE$21)>0,$E24*$F24,0)","v":0},null,{"$f":"IF(SUM(BG$15:BG$21)>0,$E24*$F24,0)","v":0},null,{"$f":"IF(SUM(BI$15:BI$21)>0,$E24*$F24,0)","v":0},null,{"$f":"IF(SUM(BK$15:BK$21)>0,$E24*$F24,0)","v":0},null,{"$f":"IF(SUM(BM$15:BM$21)>0,$E24*$F24,0)","v":0},null,{"$f":"IF(SUM(BO$15:BO$21)>0,$E24*$F24,0)","v":0},null,{"$f":"IF(SUM(BQ$15:BQ$21)>0,$E24*$F24,0)","v":0},null,{"$f":"IF(SUM(BS$15:BS$21)>0,$E24*$F24,0)","v":0},null,{"$f":"IF(SUM(BU$15:BU$21)>0,$E24*$F24,0)","v":0},null,{"$f":"IF(SUM(BW$15:BW$21)>0,$E24*$F24,0)","v":0},null,{"$f":"IF(SUM(BY$15:BY$21)>0,$E24*$F24,0)","v":0},null,{"$f":"IF(SUM(CA$15:CA$21)>0,$E24*$F24,0)","v":0},null,{"$f":"IF(SUM(CC$15:CC$21)>0,$E24*$F24,0)","v":0},null,{"$f":"IF(SUM(CE$15:CE$21)>0,$E24*$F24,0)","v":0},null,{"$f":"IF(SUM(CG$15:CG$21)>0,$E24*$F24,0)","v":0},null,{"$f":"IF(SUM(CI$15:CI$21)>0,$E24*$F24,0)","v":0},null,{"$f":"IF(SUM(CK$15:CK$21)>0,$E24*$F24,0)","v":0},null,{"$f":"IF(SUM(CM$15:CM$21)>0,$E24*$F24,0)","v":0},null,{"$f":"IF(SUM(CO$15:CO$21)>0,$E24*$F24,0)","v":0},null,{"$f":"IF(SUM(CQ$15:CQ$21)>0,$E24*$F24,0)","v":0},null,{"$f":"IF(SUM(CS$15:CS$21)>0,$E24*$F24,0)","v":0},null,{"$f":"IF(SUM(CU$15:CU$21)>0,$E24*$F24,0)","v":0},null,{"$f":"IF(SUM(CW$15:CW$21)>0,$E24*$F24,0)","v":0},null,{"$f":"IF(SUM(CY$15:CY$21)>0,$E24*$F24,0)","v":0},null,{"$f":"IF(SUM(DA$15:DA$21)>0,$E24*$F24,0)","v":0},null,{"$f":"IF(SUM(DC$15:DC$21)>0,$E24*$F24,0)","v":0},null,{"$f":"IF(SUM(DE$15:DE$21)>0,$E24*$F24,0)","v":0},null,{"$f":"IF(SUM(DG$15:DG$21)>0,$E24*$F24,0)","v":0},null,{"$f":"IF(SUM(DI$15:DI$21)>0,$E24*$F24,0)","v":0},null,{"$f":"IF(SUM(DK$15:DK$21)>0,$E24*$F24,0)","v":0},null,{"$f":"IF(SUM(DM$15:DM$21)>0,$E24*$F24,0)","v":0},null,{"$f":"IF(SUM(DO$15:DO$21)>0,$E24*$F24,0)","v":0},null,{"$f":"IF(SUM(DQ$15:DQ$21)>0,$E24*$F24,0)","v":0},null,{"$f":"IF(SUM(DS$15:DS$21)>0,$E24*$F24,0)","v":0},null,{"$f":"IF(SUM(DU$15:DU$21)>0,$E24*$F24,0)","v":0},null,{"$f":"IF(SUM(DW$15:DW$21)>0,$E24*$F24,0)","v":0}]
[null,null,1,"Protetor auricular tipo plug em silicone, lavável, com proteção de 16 dB(A) de atenuação, marca de Ref. 3M",2,1.25,null,null,null,0,null,0,null,0,null,0,null,0,null,0,null,0,null,0,null,0,null,0,null,0,null,0,null,0,null,0,null,0,null,0,null,0,null,0,null,0,null,0,null,0,null,0,null,0,null,0,null,0,null,0,null,0,null,0,null,0,null,0,null,0,null,0,null,0,null,0,null,0,null,0,null,0,null,0,null,0,null,0,null,0,null,0,null,0,null,0,null,0,null,0,null,0,null,0,null,0,null,0,null,0,null,0,null,0,null,0,null,0,null,0,null,0,null,0,null,0,null,0]
[null,null,2,"Respirador purificador de ar tipo, peça semifacial filtrante para partículas (PFF2), com formato dobrável, solda ultra-sônica em todo o seu perímetro. Fita elástica branca fixada nas laterais externas do respirador, perfazendo uma alça na para fixação na parte superior da cabeça e a outra na parte inferior, para fixação na altura da nuca do usuário. A parte superior externa da peça possui tira de material metálico moldável, utilizada para ajuste no septo nasal. Na face lateral do respirador existe um dispositivo de material plástico, dotado internamente de uma válvula de exalação. DEVERÁ APRESENTAR O SELO DE APROVAÇÃO DO INMETRO. Ref. 3M",10,4.0999999999999996,null,null,null,0,null,0,null,0,null,0,null,0,null,0,null,0,null,0,null,0,null,0,null,0,null,0,null,0,null,0,null,0,null,0,null,0,null,0,null,0,null,0,null,0,null,0,null,0,null,0,null,0,null,0,null,0,null,0,null,0,null,0,null,0,null,0,null,0,null,0,null,0,null,0,null,0,null,0,null,0,null,0,null,0,null,0,null,0,null,0,null,0,null,0,null,0,null,0,null,0,null,0,null,0,null,0,null,0,null,0,null,0,null,0,null,0,null,0,null,0,null,0]
[null,null,3,"Calçado ocupacional tipo sapato, fechamento em cadarço, confeccionado em couro curtido ao cromo, palmilha de montagem em material sintético, solado em poliuretano monodensidade injetado ao cabedal, sem biqueira de aço. Ref. Marluvas mod. 20S29 SOC P CA: 33698",2,74.45,null,null,null,0,null,0,null,0,null,0,null,0,null,0,null,0,null,0,null,0,null,0,null,0,null,0,null,0,null,0,null,0,null,0,null,0,null,0,null,0,null,0,null,0,null,0,null,0,null,0,null,0,null,0,null,0,null,0,null,0,null,0,null,0,null,0,null,0,null,0,null,0,null,0,null,0,null,0,null,0,null,0,null,0,null,0,null,0,null,0,null,0,null,0,null,0,null,0,null,0,null,0,null,0,null,0,null,0,null,0,null,0,null,0,null,0,null,0,null,0,null,0]
[null,null,4,"Boné tipo Touca Árabe confeccionado em helanca com viés na aba, elástico interno traseiro para ajuste de tamanho, fechamento da saia em velcro. MARCA(S) DE REFERÊNCIA:Nexus",1,11.35,null,null,null,0,null,0,null,0,null,0,null,0,null,0,null,0,null,0,null,0,null,0,null,0,null,0,null,0,null,0,null,0,null,0,null,0,null,0,null,0,null,0,null,0,null,0,null,0,null,0,null,0,null,0,null,0,null,0,null,0,null,0,null,0,null,0,null,0,null,0,null,0,null,0,null,0,null,0,null,0,null,0,null,0,null,0,null,0,null,0,null,0,null,0,null,0,null,0,null,0,null,0,null,0,null,0,null,0,null,0,null,0,null,0,null,0,null,0,null,0,null,0]
[null,null,5,"Bisnagas (120g) de bloqueador solar com fator de proteção solar no mínimo de 30 (UV FPS 30) com propriedade repelente a insetos. Inodoro MARCA(S) DE REFERÊNCIA: LUVEX.",1,14.87,null,null,null,0,null,0,null,0,null,0,null,0,null,0,null,0,null,0,null,0,null,0,null,0,null,0,null,0,null,0,null,0,null,0,null,0,null,0,null,0,null,0,null,0,null,0,null,0,null,0,null,0,null,0,null,0,null,0,null,0,null,0,null,0,null,0,null,0,null,0,null,0,null,0,null,0,null,0,null,0,null,0,null,0,null,0,null,0,null,0,null,0,null,0,null,0,null,0,null,0,null,0,null,0,null,0,null,0,null,0,null,0,null,0,null,0,null,0,null,0,null,0]
[null,null,null,null,null,null,null,null,{"$f":"SUMPRODUCT($E$25:$E$29,$F$25:$F$29)*F16","v":{"$error":"#N/A"}},"anual",null,"anual",null,"anual",null,"anual",null,"anual",null,"anual",null,"anual",null,"anual",null,"anual",null,"anual",null,"anual",null,"anual",null,"anual",null,"anual",null,"anual",null,"anual",null,"anual",null,"anual",null,"anual",null,"anual",null,"anual",null,"anual",null,"anual",null,"anual",null,"anual",null,"anual",null,"anual",null,"anual",null,"anual",null,"anual",null,"anual",null,"anual",null,"anual",null,"anual",null,"anual",null,"anual",null,"anual",null,"anual",null,"anual",null,"anual",null,"anual",null,"anual",null,"anual",null,"anual",null,"anual",null,"anual",null,"anual",null,"anual",null,"anual",null,"anual",null,"anual",null,"anual",null,"anual",null,"anual",null,"anual",null,"anual",null,"anual",null,"anual",null,"anual",null,"anual"]
[null,null,null,null,null,null,null,null,{"$f":"I30/12","v":{"$error":"#N/A"}},"mensal",null,"mensal",null,"mensal",null,"mensal",null,"mensal",null,"mensal",null,"mensal",null,"mensal",null,"mensal",null,"mensal",null,"mensal",null,"mensal",null,"mensal",null,"mensal",null,"mensal",null,"mensal",null,"mensal",null,"mensal",null,"mensal",null,"mensal",null,"mensal",null,"mensal",null,"mensal",null,"mensal",null,"mensal",null,"mensal",null,"mensal",null,"mensal",null,"mensal",null,"mensal",null,"mensal",null,"mensal",null,"mensal",null,"mensal",null,"mensal",null,"mensal",null,"mensal",null,"mensal",null,"mensal",null,"mensal",null,"mensal",null,"mensal",null,"mensal",null,"mensal",null,"mensal",null,"mensal",null,"mensal",null,"mensal",null,"mensal",null,"mensal",null,"mensal",null,"mensal",null,"mensal",null,"mensal",null,"mensal",null,"mensal",null,"mensal",null,"mensal",null,"mensal",null,"mensal"]
[null,null,null,null,null,null,null,null,{"$f":"I31/11","v":{"$error":"#N/A"}},"por posto",null,"por posto",null,"por posto",null,"por posto",null,"por posto",null,"por posto",null,"por posto",null,"por posto",null,"por posto",null,"por posto",null,"por posto",null,"por posto",null,"por posto",null,"por posto",null,"por posto",null,"por posto",null,"por posto",null,"por posto",null,"por posto",null,"por posto",null,"por posto",null,"por posto",null,"por posto",null,"por posto",null,"por posto",null,"por posto",null,"por posto",null,"por posto",null,"por posto",null,"por posto",null,"por posto",null,"por posto",null,"por posto",null,"por posto",null,"por posto",null,"por posto",null,"por posto",null,"por posto",null,"por posto",null,"por posto",null,"por posto",null,"por posto",null,"por posto",null,"por posto",null,"por posto",null,"por posto",null,"por posto",null,"por posto",null,"por posto",null,"por posto",null,"por posto",null,"por posto",null,"por posto",null,"por posto",null,"por posto",null,"por posto",null,"por posto",null,"por posto",null,"por posto",null,"por posto"]

{"sheet":"Mat Cons","index":17,"n_rows":28,"n_cols":128,"rows_kept":28,"cut":false,"hidden":true,"merged":[[9,1,9,3],[10,1,10,5]]}
[null,null,"CÂMARA DOS DEPUTADOS"]
[null,null,"DEPARTAMENTO TÉCNICO"]
[null,null,"Coordenação de Planejamento e Gestão"]
[]
[null,null,"Data:",{"$f":"'Dados Gerais'!#REF!","v":{"$error":"#REF!"}}]
[null,null,"Processo:",{"$f":"'Dados Gerais'!#REF!","v":{"$error":"#REF!"}}]
[null,null,"Objeto:",{"$f":"'Dados Gerais'!#REF!","v":{"$error":"#REF!"}}]
[]
[]
[]
[null,"MATERIAIS DE CONSUMO RELACIONADOS AO POSTO - AQUISIÇÃO",null,null,null,null,null,null,1,null,{"$f":"I11+1","v":2},null,{"$f":"K11+1","v":3},null,{"$f":"M11+1","v":4},null,{"$f":"O11+1","v":5},null,{"$f":"Q11+1","v":6},null,{"$f":"S11+1","v":7},null,{"$f":"U11+1","v":8},null,{"$f":"W11+1","v":9},null,{"$f":"Y11+1","v":10},null,{"$f":"AA11+1","v":11},null,{"$f":"AC11+1","v":12},null,{"$f":"AE11+1","v":13},null,{"$f":"AG11+1","v":14},null,{"$f":"AI11+1","v":15},null,{"$f":"AK11+1","v":16},null,{"$f":"AM11+1","v":17},null,{"$f":"AO11+1","v":18},null,{"$f":"AQ11+1","v":19},null,{"$f":"AS11+1","v":20},null,{"$f":"AU11+1","v":21},null,{"$f":"AW11+1","v":22},null,{"$f":"AY11+1","v":23},null,{"$f":"BA11+1","v":24},null,{"$f":"BC11+1","v":25},null,{"$f":"BE11+1","v":26},null,{"$f":"BG11+1","v":27},null,{"$f":"BI11+1","v":28},null,{"$f":"BK11+1","v":29},null,{"$f":"BM11+1","v":30},null,{"$f":"BO11+1","v":31},null,{"$f":"BQ11+1","v":32},null,{"$f":"BS11+1","v":33},null,{"$f":"BU11+1","v":34},null,{"$f":"BW11+1","v":35},null,{"$f":"BY11+1","v":36},null,{"$f":"CA11+1","v":37},null,{"$f":"CC11+1","v":38},null,{"$f":"CE11+1","v":39},null,{"$f":"CG11+1","v":40},null,{"$f":"CI11+1","v":41},null,{"$f":"CK11+1","v":42},null,{"$f":"CM11+1","v":43},null,{"$f":"CO11+1","v":44},null,{"$f":"CQ11+1","v":45},null,{"$f":"CS11+1","v":46},null,{"$f":"CU11+1","v":47},null,{"$f":"CW11+1","v":48},null,{"$f":"CY11+1","v":49},null,{"$f":"DA11+1","v":50},null,{"$f":"DC11+1","v":51},null,{"$f":"DE11+1","v":52},null,{"$f":"DG11+1","v":53},null,{"$f":"DI11+1","v":54},null,{"$f":"DK11+1","v":55},null,{"$f":"DM11+1","v":56},null,{"$f":"DO11+1","v":57},null,{"$f":"DQ11+1","v":58},null,{"$f":"DS11+1","v":59},null,{"$f":"DU11+1","v":60}]
[]
[null,null,null,null,null,null,null,null,{"$f":"ROUND(SUM(J12:J65),2)","v":0},null,{"$f":"ROUND(SUM(L12:L65),2)","v":0},null,{"$f":"ROUND(SUM(N12:N65),2)","v":0},null,{"$f":"ROUND(SUM(P12:P65),2)","v":0},null,{"$f":"ROUND(SUM(R12:R65),2)","v":0},null,{"$f":"ROUND(SUM(T12:T65),2)","v":0},null,{"$f":"ROUND(SUM(V12:V65),2)","v":0},null,{"$f":"ROUND(SUM(X12:X65),2)","v":0},null,{"$f":"ROUND(SUM(Z12:Z65),2)","v":0},null,{"$f":"ROUND(SUM(AB12:AB65),2)","v":0},null,{"$f":"ROUND(SUM(AD12:AD65),2)","v":0},null,{"$f":"ROUND(SUM(AF12:AF65),2)","v":0},null,{"$f":"ROUND(SUM(AH12:AH65),2)","v":0},null,{"$f":"ROUND(SUM(AJ12:AJ65),2)","v":0},null,{"$f":"ROUND(SUM(AL12:AL65),2)","v":0},null,{"$f":"ROUND(SUM(AN12:AN65),2)","v":0},null,{"$f":"ROUND(SUM(AP12:AP65),2)","v":0},null,{"$f":"ROUND(SUM(AR12:AR65),2)","v":0},null,{"$f":"ROUND(SUM(AT12:AT65),2)","v":0},null,{"$f":"ROUND(SUM(AV12:AV65),2)","v":0},null,{"$f":"ROUND(SUM(AX12:AX65),2)","v":0},null,{"$f":"ROUND(SUM(AZ12:AZ65),2)","v":0},null,{"$f":"ROUND(SUM(BB12:BB65),2)","v":0},null,{"$f":"ROUND(SUM(BD12:BD65),2)","v":0},null,{"$f":"ROUND(SUM(BF12:BF65),2)","v":0},null,{"$f":"ROUND(SUM(BH12:BH65),2)","v":0},null,{"$f":"ROUND(SUM(BJ12:BJ65),2)","v":0},null,{"$f":"ROUND(SUM(BL12:BL65),2)","v":0},null,{"$f":"ROUND(SUM(BN12:BN65),2)","v":0},null,{"$f":"ROUND(SUM(BP12:BP65),2)","v":0},null,{"$f":"ROUND(SUM(BR12:BR65),2)","v":0},null,{"$f":"ROUND(SUM(BT12:BT65),2)","v":0},null,{"$f":"ROUND(SUM(BV12:BV65),2)","v":0},null,{"$f":"ROUND(SUM(BX12:BX65),2)","v":0},null,{"$f":"ROUND(SUM(BZ12:BZ65),2)","v":0},null,{"$f":"ROUND(SUM(CB12:CB65),2)","v":0},null,{"$f":"ROUND(SUM(CD12:CD65),2)","v":0},null,{"$f":"ROUND(SUM(CF12:CF65),2)","v":0},null,{"$f":"ROUND(SUM(CH12:CH65),2)","v":0},null,{"$f":"ROUND(SUM(CJ12:CJ65),2)","v":0},null,{"$f":"ROUND(SUM(CL12:CL65),2)","v":0},null,{"$f":"ROUND(SUM(CN12:CN65),2)","v":0},null,{"$f":"ROUND(SUM(CP12:CP65),2)","v":0},null,{"$f":"ROUND(SUM(CR12:CR65),2)","v":0},null,{"$f":"ROUND(SUM(CT12:CT65),2)","v":0},null,{"$f":"ROUND(SUM(CV12:CV65),2)","v":0},null,{"$f":"ROUND(SUM(CX12:CX65),2)","v":0},null,{"$f":"ROUND(SUM(CZ12:CZ65),2)","v":0},null,{"$f":"ROUND(SUM(DB12:DB65),2)","v":0},null,{"$f":"ROUND(SUM(DD12:DD65),2)","v":0},null,{"$f":"ROUND(SUM(DF12:DF65),2)","v":0},null,{"$f":"ROUND(SUM(DH12:DH65),2)","v":0},null,{"$f":"ROUND(SUM(DJ12:DJ65),2)","v":0},null,{"$f":"ROUND(SUM(DL12:DL65),2)","v":0},null,{"$f":"ROUND(SUM(DN12:DN65),2)","v":0},null,{"$f":"ROUND(SUM(DP12:DP65),2)","v":0},null,{"$f":"ROUND(SUM(DR12:DR65),2)","v":0},null,{"$f":"ROUND(SUM(DT12:DT65),2)","v":0},null,{"$f":"ROUND(SUM(DV12:DV65),2)","v":0},null,{"$f":"ROUND(SUM(DX12:DX65),2)","v":0}]
[null,null,"CATEGORIAS",null,null,"QUANTIDADE"]
[null,null,null,null,null,null,null,null,{"$f":"IF($C15=I$11,1,0)","v":0}]
[null,null,null,null,null,null,null,null,0,null,{"$f":"IF($C16=K$11,1,0)","v":0},null,{"$f":"IF($C16=M$11,1,0)","v":0},null,{"$f":"IF($C16=O$11,1,0)","v":0},null,{"$f":"IF($C16=Q$11,1,0)","v":0},null,{"$f":"IF($C16=S$11,1,0)","v":0},null,{"$f":"IF($C16=U$11,1,0)","v":0},null,{"$f":"IF($C16=W$11,1,0)","v":0},null,{"$f":"IF($C16=Y$11,1,0)","v":0},null,{"$f":"IF($C16=AA$11,1,0)","v":0},null,{"$f":"IF($C16=AC$11,1,0)","v":0},null,{"$f":"IF($C16=AE$11,1,0)","v":0},null,{"$f":"IF($C16=AG$11,1,0)","v":0},null,{"$f":"IF($C16=AI$11,1,0)","v":0},null,{"$f":"IF($C16=AK$11,1,0)","v":0},null,{"$f":"IF($C16=AM$11,1,0)","v":0},null,{"$f":"IF($C16=AO$11,1,0)","v":0},null,{"$f":"IF($C16=AQ$11,1,0)","v":0},null,{"$f":"IF($C16=AS$11,1,0)","v":0},null,{"$f":"IF($C16=AU$11,1,0)","v":0},null,{"$f":"IF($C16=AW$11,1,0)","v":0},null,{"$f":"IF($C16=AY$11,1,0)","v":0},null,{"$f":"IF($C16=BA$11,1,0)","v":0},null,{"$f":"IF($C16=BC$11,1,0)","v":0},null,{"$f":"IF($C16=BE$11,1,0)","v":0},null,{"$f":"IF($C16=BG$11,1,0)","v":0},null,{"$f":"IF($C16=BI$11,1,0)","v":0},null,{"$f":"IF($C16=BK$11,1,0)","v":0},null,{"$f":"IF($C16=BM$11,1,0)","v":0},null,{"$f":"IF($C16=BO$11,1,0)","v":0},null,{"$f":"IF($C16=BQ$11,1,0)","v":0},null,{"$f":"IF($C16=BS$11,1,0)","v":0},null,{"$f":"IF($C16=BU$11,1,0)","v":0},null,{"$f":"IF($C16=BW$11,1,0)","v":0},null,{"$f":"IF($C16=BY$11,1,0)","v":0},null,{"$f":"IF($C16=CA$11,1,0)","v":0},null,{"$f":"IF($C16=CC$11,1,0)","v":0},null,{"$f":"IF($C16=CE$11,1,0)","v":0},null,{"$f":"IF($C16=CG$11,1,0)","v":0},null,{"$f":"IF($C16=CI$11,1,0)","v":0},null,{"$f":"IF($C16=CK$11,1,0)","v":0},null,{"$f":"IF($C16=CM$11,1,0)","v":0},null,{"$f":"IF($C16=CO$11,1,0)","v":0},null,{"$f":"IF($C16=CQ$11,1,0)","v":0},null,{"$f":"IF($C16=CS$11,1,0)","v":0},null,{"$f":"IF($C16=CU$11,1,0)","v":0},null,{"$f":"IF($C16=CW$11,1,0)","v":0},null,{"$f":"IF($C16=CY$11,1,0)","v":0},null,{"$f":"IF($C16=DA$11,1,0)","v":0},null,{"$f":"IF($C16=DC$11,1,0)","v":0},null,{"$f":"IF($C16=DE$11,1,0)","v":0},null,{"$f":"IF($C16=DG$11,1,0)","v":0},null,{"$f":"IF($C16=DI$11,1,0)","v":0},null,{"$f":"IF($C16=DK$11,1,0)","v":0},null,{"$f":"IF($C16=DM$11,1,0)","v":0},null,{"$f":"IF($C16=DO$11,1,0)","v":0},null,{"$f":"IF($C16=DQ$11,1,0)","v":0},null,{"$f":"IF($C16=DS$11,1,0)","v":0},null,{"$f":"IF($C16=DU$11,1,0)","v":0},null,{"$f":"IF($C16=DW$11,1,0)","v":0}]
[null,null,null,null,null,null,null,null,0,null,0,null,0,null,0,null,0,null,0,null,0,null,0,null,0,null,0,null,0,null,0,null,0,null,0,null,0,null,0,null,0,null,0,null,0,null,0,null,0,null,0,null,0,null,0,null,0,null,0,null,0,null,0,null,0,null,0,null,0,null,0,null,0,null,0,null,0,null,0,null,0,null,0,null,0,null,0,null,0,null,0,null,0,null,0,null,0,null,0,null,0,null,0,null,0,null,0,null,0,null,0,null,0,null,0,null,0,null,0,null,0,null,0,null,0,null,0]
[null,null,null,null,null,null,null,null,0,null,0,null,0,null,0,null,0,null,0,null,0,null,0,null,0,null,0,null,0,null,0,null,0,null,0,null,0,null,0,null,0,null,0,null,0,null,0,null,0,null,0,null,0,null,0,null,0,null,0,null,0,null,0,null,0,null,0,null,0,null,0,null,0,null,0,null,0,null,0,null,0,null,0,null,0,null,0,null,0,null,0,null,0,null,0,null,0,null,0,null,0,null,0,null,0,null,0,null,0,null,0,null,0,null,0,null,0,null,0,null,0,null,0,null,0,null,0]
[null,null,null,null,null,null,null,null,0,null,0,null,0,null,0,null,0,null,0,null,0,null,0,null,0,null,0,null,0,null,0,null,0,null,0,null,0,null,0,null,0,null,0,null,0,null,0,null,0,null,0,null,0,null,0,null,0,null,0,null,0,null,0,null,0,null,0,null,0,null,0,null,0,null,0,null,0,null,0,null,0,null,0,null,0,null,0,null,0,null,0,null,0,null,0,null,0,null,0,null,0,null,0,null,0,null,0,null,0,null,0,null,0,null,0,null,0,null,0,null,0,null,0,null,0,null,0]
[null,null,null,null,null,null,null,null,0,null,0,null,0,null,0,null,0,null,0,null,0,null,0,null,0,null,0,null,0,null,0,null,0,null,0,null,0,null,0,null,0,null,0,null,0,null,0,null,0,null,0,null,0,null,0,null,0,null,0,null,0,null,0,null,0,null,0,null,0,null,0,null,0,null,0,null,0,null,0,null,0,null,0,null,0,null,0,null,0,null,0,null,0,null,0,null,0,null,0,null,0,null,0,null,0,null,0,null,0,null,0,null,0,null,0,null,0,null,0,null,0,null,0,null,0,null,0]
[null,null,null,null,null,null,null,null,0,null,0,null,0,null,0,null,0,null,0,null,0,null,0,null,0,null,0,null,0,null,0,null,0,null,0,null,0,null,0,null,0,null,0,null,0,null,0,null,0,null,0,null,0,null,0,null,0,null,0,null,0,null,0,null,0,null,0,null,0,null,0,null,0,null,0,null,0,null,0,null,0,null,0,null,0,null,0,null,0,null,0,null,0,null,0,null,0,null,0,null,0,null,0,null,0,null,0,null,0,null,0,null,0,null,0,null,0,null,0,null,0,null,0,null,0,null,0]
[null,null,null,null,null,null,null,null,0]
[]
[null,null,"ITEM","DESCRIÇÃO","QUANT ANUAL","VALOR"]
[null,null,null,null,null,null,null,null,null,{"$f":"IF(SUM(I$15:I$22)>0,$E25*$F25,0)","v":0},null,{"$f":"IF(SUM(K$15:K$22)>0,$E25*$F25,0)","v":0},null,{"$f":"IF(SUM(M$15:M$22)>0,$E25*$F25,0)","v":0},null,{"$f":"IF(SUM(O$15:O$22)>0,$E25*$F25,0)","v":0},null,{"$f":"IF(SUM(Q$15:Q$22)>0,$E25*$F25,0)","v":0},null,{"$f":"IF(SUM(S$15:S$22)>0,$E25*$F25,0)","v":0},null,{"$f":"IF(SUM(U$15:U$22)>0,$E25*$F25,0)","v":0},null,{"$f":"IF(SUM(W$15:W$22)>0,$E25*$F25,0)","v":0},null,{"$f":"IF(SUM(Y$15:Y$22)>0,$E25*$F25,0)","v":0},null,{"$f":"IF(SUM(AA$15:AA$22)>0,$E25*$F25,0)","v":0},null,{"$f":"IF(SUM(AC$15:AC$22)>0,$E25*$F25,0)","v":0},null,{"$f":"IF(SUM(AE$15:AE$22)>0,$E25*$F25,0)","v":0},null,{"$f":"IF(SUM(AG$15:AG$22)>0,$E25*$F25,0)","v":0},null,{"$f":"IF(SUM(AI$15:AI$22)>0,$E25*$F25,0)","v":0},null,{"$f":"IF(SUM(AK$15:AK$22)>0,$E25*$F25,0)","v":0},null,{"$f":"IF(SUM(AM$15:AM$22)>0,$E25*$F25,0)","v":0},null,{"$f":"IF(SUM(AO$15:AO$22)>0,$E25*$F25,0)","v":0},null,{"$f":"IF(SUM(AQ$15:AQ$22)>0,$E25*$F25,0)","v":0},null,{"$f":"IF(SUM(AS$15:AS$22)>0,$E25*$F25,0)","v":0},null,{"$f":"IF(SUM(AU$15:AU$22)>0,$E25*$F25,0)","v":0},null,{"$f":"IF(SUM(AW$15:AW$22)>0,$E25*$F25,0)","v":0},null,{"$f":"IF(SUM(AY$15:AY$22)>0,$E25*$F25,0)","v":0},null,{"$f":"IF(SUM(BA$15:BA$22)>0,$E25*$F25,0)","v":0},null,{"$f":"IF(SUM(BC$15:BC$22)>0,$E25*$F25,0)","v":0},null,{"$f":"IF(SUM(BE$15:BE$22)>0,$E25*$F25,0)","v":0},null,{"$f":"IF(SUM(BG$15:BG$22)>0,$E25*$F25,0)","v":0},null,{"$f":"IF(SUM(BI$15:BI$22)>0,$E25*$F25,0)","v":0},null,{"$f":"IF(SUM(BK$15:BK$22)>0,$E25*$F25,0)","v":0},null,{"$f":"IF(SUM(BM$15:BM$22)>0,$E25*$F25,0)","v":0},null,{"$f":"IF(SUM(BO$15:BO$22)>0,$E25*$F25,0)","v":0},null,{"$f":"IF(SUM(BQ$15:BQ$22)>0,$E25*$F25,0)","v":0},null,{"$f":"IF(SUM(BS$15:BS$22)>0,$E25*$F25,0)","v":0},null,{"$f":"IF(SUM(BU$15:BU$22)>0,$E25*$F25,0)","v":0},null,{"$f":"IF(SUM(BW$15:BW$22)>0,$E25*$F25,0)","v":0},null,{"$f":"IF(SUM(BY$15:BY$22)>0,$E25*$F25,0)","v":0},null,{"$f":"IF(SUM(CA$15:CA$22)>0,$E25*$F25,0)","v":0},null,{"$f":"IF(SUM(CC$15:CC$22)>0,$E25*$F25,0)","v":0},null,{"$f":"IF(SUM(CE$15:CE$22)>0,$E25*$F25,0)","v":0},null,{"$f":"IF(SUM(CG$15:CG$22)>0,$E25*$F25,0)","v":0},null,{"$f":"IF(SUM(CI$15:CI$22)>0,$E25*$F25,0)","v":0},null,{"$f":"IF(SUM(CK$15:CK$22)>0,$E25*$F25,0)","v":0},null,{"$f":"IF(SUM(CM$15:CM$22)>0,$E25*$F25,0)","v":0},null,{"$f":"IF(SUM(CO$15:CO$22)>0,$E25*$F25,0)","v":0},null,{"$f":"IF(SUM(CQ$15:CQ$22)>0,$E25*$F25,0)","v":0},null,{"$f":"IF(SUM(CS$15:CS$22)>0,$E25*$F25,0)","v":0},null,{"$f":"IF(SUM(CU$15:CU$22)>0,$E25*$F25,0)","v":0},null,{"$f":"IF(SUM(CW$15:CW$22)>0,$E25*$F25,0)","v":0},null,{"$f":"IF(SUM(CY$15:CY$22)>0,$E25*$F25,0)","v":0},null,{"$f":"IF(SUM(DA$15:DA$22)>0,$E25*$F25,0)","v":0},null,{"$f":"IF(SUM(DC$15:DC$22)>0,$E25*$F25,0)","v":0},null,{"$f":"IF(SUM(DE$15:DE$22)>0,$E25*$F25,0)","v":0},null,{"$f":"IF(SUM(DG$15:DG$22)>0,$E25*$F25,0)","v":0},null,{"$f":"IF(SUM(DI$15:DI$22)>0,$E25*$F25,0)","v":0},null,{"$f":"IF(SUM(DK$15:DK$22)>0,$E25*$F25,0)","v":0},null,{"$f":"IF(SUM(DM$15:DM$22)>0,$E25*$F25,0)","v":0},null,{"$f":"IF(SUM(DO$15:DO$22)>0,$E25*$F25,0)","v":0},null,{"$f":"IF(SUM(DQ$15:DQ$22)>0,$E25*$F25,0)","v":0},null,{"$f":"IF(SUM(DS$15:DS$22)>0,$E25*$F25,0)","v":0},null,{"$f":"IF(SUM(DU$15:DU$22)>0,$E25*$F25,0)","v":0},null,{"$f":"IF(SUM(DW$15:DW$22)>0,$E25*$F25,0)","v":0}]
[null,null,null,null,null,null,null,null,null,{"$f":"IF(SUM(I$15:I$22)>0,$E26*$F26,0)","v":0},null,{"$f":"IF(SUM(K$15:K$22)>0,$E26*$F26,0)","v":0},null,{"$f":"IF(SUM(M$15:M$22)>0,$E26*$F26,0)","v":0},null,{"$f":"IF(SUM(O$15:O$22)>0,$E26*$F26,0)","v":0},null,{"$f":"IF(SUM(Q$15:Q$22)>0,$E26*$F26,0)","v":0},null,{"$f":"IF(SUM(S$15:S$22)>0,$E26*$F26,0)","v":0},null,{"$f":"IF(SUM(U$15:U$22)>0,$E26*$F26,0)","v":0},null,{"$f":"IF(SUM(W$15:W$22)>0,$E26*$F26,0)","v":0},null,{"$f":"IF(SUM(Y$15:Y$22)>0,$E26*$F26,0)","v":0},null,{"$f":"IF(SUM(AA$15:AA$22)>0,$E26*$F26,0)","v":0},null,{"$f":"IF(SUM(AC$15:AC$22)>0,$E26*$F26,0)","v":0},null,{"$f":"IF(SUM(AE$15:AE$22)>0,$E26*$F26,0)","v":0},null,{"$f":"IF(SUM(AG$15:AG$22)>0,$E26*$F26,0)","v":0},null,{"$f":"IF(SUM(AI$15:AI$22)>0,$E26*$F26,0)","v":0},null,{"$f":"IF(SUM(AK$15:AK$22)>0,$E26*$F26,0)","v":0},null,{"$f":"IF(SUM(AM$15:AM$22)>0,$E26*$F26,0)","v":0},null,{"$f":"IF(SUM(AO$15:AO$22)>0,$E26*$F26,0)","v":0},null,{"$f":"IF(SUM(AQ$15:AQ$22)>0,$E26*$F26,0)","v":0},null,{"$f":"IF(SUM(AS$15:AS$22)>0,$E26*$F26,0)","v":0},null,{"$f":"IF(SUM(AU$15:AU$22)>0,$E26*$F26,0)","v":0},null,{"$f":"IF(SUM(AW$15:AW$22)>0,$E26*$F26,0)","v":0},null,{"$f":"IF(SUM(AY$15:AY$22)>0,$E26*$F26,0)","v":0},null,{"$f":"IF(SUM(BA$15:BA$22)>0,$E26*$F26,0)","v":0},null,{"$f":"IF(SUM(BC$15:BC$22)>0,$E26*$F26,0)","v":0},null,{"$f":"IF(SUM(BE$15:BE$22)>0,$E26*$F26,0)","v":0},null,{"$f":"IF(SUM(BG$15:BG$22)>0,$E26*$F26,0)","v":0},null,{"$f":"IF(SUM(BI$15:BI$22)>0,$E26*$F26,0)","v":0},null,{"$f":"IF(SUM(BK$15:BK$22)>0,$E26*$F26,0)","v":0},null,{"$f":"IF(SUM(BM$15:BM$22)>0,$E26*$F26,0)","v":0},null,{"$f":"IF(SUM(BO$15:BO$22)>0,$E26*$F26,0)","v":0},null,{"$f":"IF(SUM(BQ$15:BQ$22)>0,$E26*$F26,0)","v":0},null,{"$f":"IF(SUM(BS$15:BS$22)>0,$E26*$F26,0)","v":0},null,{"$f":"IF(SUM(BU$15:BU$22)>0,$E26*$F26,0)","v":0},null,{"$f":"IF(SUM(BW$15:BW$22)>0,$E26*$F26,0)","v":0},null,{"$f":"IF(SUM(BY$15:BY$22)>0,$E26*$F26,0)","v":0},null,{"$f":"IF(SUM(CA$15:CA$22)>0,$E26*$F26,0)","v":0},null,{"$f":"IF(SUM(CC$15:CC$22)>0,$E26*$F26,0)","v":0},null,{"$f":"IF(SUM(CE$15:CE$22)>0,$E26*$F26,0)","v":0},null,{"$f":"IF(SUM(CG$15:CG$22)>0,$E26*$F26,0)","v":0},null,{"$f":"IF(SUM(CI$15:CI$22)>0,$E26*$F26,0)","v":0},null,{"$f":"IF(SUM(CK$15:CK$22)>0,$E26*$F26,0)","v":0},null,{"$f":"IF(SUM(CM$15:CM$22)>0,$E26*$F26,0)","v":0},null,{"$f":"IF(SUM(CO$15:CO$22)>0,$E26*$F26,0)","v":0},null,{"$f":"IF(SUM(CQ$15:CQ$22)>0,$E26*$F26,0)","v":0},null,{"$f":"IF(SUM(CS$15:CS$22)>0,$E26*$F26,0)","v":0},null,{"$f":"IF(SUM(CU$15:CU$22)>0,$E26*$F26,0)","v":0},null,{"$f":"IF(SUM(CW$15:CW$22)>0,$E26*$F26,0)","v":0},null,{"$f":"IF(SUM(CY$15:CY$22)>0,$E26*$F26,0)","v":0},null,{"$f":"IF(SUM(DA$15:DA$22)>0,$E26*$F26,0)","v":0},null,{"$f":"IF(SUM(DC$15:DC$22)>0,$E26*$F26,0)","v":0},null,{"$f":"IF(SUM(DE$15:DE$22)>0,$E26*$F26,0)","v":0},null,{"$f":"IF(SUM(DG$15:DG$22)>0,$E26*$F26,0)","v":0},null,{"$f":"IF(SUM(DI$15:DI$22)>0,$E26*$F26,0)","v":0},null,{"$f":"IF(SUM(DK$15:DK$22)>0,$E26*$F26,0)","v":0},null,{"$f":"IF(SUM(DM$15:DM$22)>0,$E26*$F26,0)","v":0},null,{"$f":"IF(SUM(DO$15:DO$22)>0,$E26*$F26,0)","v":0},null,{"$f":"IF(SUM(DQ$15:DQ$22)>0,$E26*$F26,0)","v":0},null,{"$f":"IF(SUM(DS$15:DS$22)>0,$E26*$F26,0)","v":0},null,{"$f":"IF(SUM(DU$15:DU$22)>0,$E26*$F26,0)","v":0},null,{"$f":"IF(SUM(DW$15:DW$22)>0,$E26*$F26,0)","v":0}]
[null,null,null,null,null,null,null,null,null,{"$f":"IF(SUM(I$15:I$22)>0,$E27*$F27,0)","v":0},null,{"$f":"IF(SUM(K$15:K$22)>0,$E27*$F27,0)","v":0},null,{"$f":"IF(SUM(M$15:M$22)>0,$E27*$F27,0)","v":0},null,{"$f":"IF(SUM(O$15:O$22)>0,$E27*$F27,0)","v":0},null,{"$f":"IF(SUM(Q$15:Q$22)>0,$E27*$F27,0)","v":0},null,{"$f":"IF(SUM(S$15:S$22)>0,$E27*$F27,0)","v":0},null,{"$f":"IF(SUM(U$15:U$22)>0,$E27*$F27,0)","v":0},null,{"$f":"IF(SUM(W$15:W$22)>0,$E27*$F27,0)","v":0},null,{"$f":"IF(SUM(Y$15:Y$22)>0,$E27*$F27,0)","v":0},null,{"$f":"IF(SUM(AA$15:AA$22)>0,$E27*$F27,0)","v":0},null,{"$f":"IF(SUM(AC$15:AC$22)>0,$E27*$F27,0)","v":0},null,{"$f":"IF(SUM(AE$15:AE$22)>0,$E27*$F27,0)","v":0},null,{"$f":"IF(SUM(AG$15:AG$22)>0,$E27*$F27,0)","v":0},null,{"$f":"IF(SUM(AI$15:AI$22)>0,$E27*$F27,0)","v":0},null,{"$f":"IF(SUM(AK$15:AK$22)>0,$E27*$F27,0)","v":0},null,{"$f":"IF(SUM(AM$15:AM$22)>0,$E27*$F27,0)","v":0},null,{"$f":"IF(SUM(AO$15:AO$22)>0,$E27*$F27,0)","v":0},null,{"$f":"IF(SUM(AQ$15:AQ$22)>0,$E27*$F27,0)","v":0},null,{"$f":"IF(SUM(AS$15:AS$22)>0,$E27*$F27,0)","v":0},null,{"$f":"IF(SUM(AU$15:AU$22)>0,$E27*$F27,0)","v":0},null,{"$f":"IF(SUM(AW$15:AW$22)>0,$E27*$F27,0)","v":0},null,{"$f":"IF(SUM(AY$15:AY$22)>0,$E27*$F27,0)","v":0},null,{"$f":"IF(SUM(BA$15:BA$22)>0,$E27*$F27,0)","v":0},null,{"$f":"IF(SUM(BC$15:BC$22)>0,$E27*$F27,0)","v":0},null,{"$f":"IF(SUM(BE$15:BE$22)>0,$E27*$F27,0)","v":0},null,{"$f":"IF(SUM(BG$15:BG$22)>0,$E27*$F27,0)","v":0},null,{"$f":"IF(SUM(BI$15:BI$22)>0,$E27*$F27,0)","v":0},null,{"$f":"IF(SUM(BK$15:BK$22)>0,$E27*$F27,0)","v":0},null,{"$f":"IF(SUM(BM$15:BM$22)>0,$E27*$F27,0)","v":0},null,{"$f":"IF(SUM(BO$15:BO$22)>0,$E27*$F27,0)","v":0},null,{"$f":"IF(SUM(BQ$15:BQ$22)>0,$E27*$F27,0)","v":0},null,{"$f":"IF(SUM(BS$15:BS$22)>0,$E27*$F27,0)","v":0},null,{"$f":"IF(SUM(BU$15:BU$22)>0,$E27*$F27,0)","v":0},null,{"$f":"IF(SUM(BW$15:BW$22)>0,$E27*$F27,0)","v":0},null,{"$f":"IF(SUM(BY$15:BY$22)>0,$E27*$F27,0)","v":0},null,{"$f":"IF(SUM(CA$15:CA$22)>0,$E27*$F27,0)","v":0},null,{"$f":"IF(SUM(CC$15:CC$22)>0,$E27*$F27,0)","v":0},null,{"$f":"IF(SUM(CE$15:CE$22)>0,$E27*$F27,0)","v":0},null,{"$f":"IF(SUM(CG$15:CG$22)>0,$E27*$F27,0)","v":0},null,{"$f":"IF(SUM(CI$15:CI$22)>0,$E27*$F27,0)","v":0},null,{"$f":"IF(SUM(CK$15:CK$22)>0,$E27*$F27,0)","v":0},null,{"$f":"IF(SUM(CM$15:CM$22)>0,$E27*$F27,0)","v":0},null,{"$f":"IF(SUM(CO$15:CO$22)>0,$E27*$F27,0)","v":0},null,{"$f":"IF(SUM(CQ$15:CQ$22)>0,$E27*$F27,0)","v":0},null,{"$f":"IF(SUM(CS$15:CS$22)>0,$E27*$F27,0)","v":0},null,{"$f":"IF(SUM(CU$15:CU$22)>0,$E27*$F27,0)","v":0},null,{"$f":"IF(SUM(CW$15:CW$22)>0,$E27*$F27,0)","v":0},null,{"$f":"IF(SUM(CY$15:CY$22)>0,$E27*$F27,0)","v":0},null,{"$f":"IF(SUM(DA$15:DA$22)>0,$E27*$F27,0)","v":0},null,{"$f":"IF(SUM(DC$15:DC$22)>0,$E27*$F27,0)","v":0},null,{"$f":"IF(SUM(DE$15:DE$22)>0,$E27*$F27,0)","v":0},null,{"$f":"IF(SUM(DG$15:DG$22)>0,$E27*$F27,0)","v":0},null,{"$f":"IF(SUM(DI$15:DI$22)>0,$E27*$F27,0)","v":0},null,{"$f":"IF(SUM(DK$15:DK$22)>0,$E27*$F27,0)","v":0},null,{"$f":"IF(SUM(DM$15:DM$22)>0,$E27*$F27,0)","v":0},null,{"$f":"IF(SUM(DO$15:DO$22)>0,$E27*$F27,0)","v":0},null,{"$f":"IF(SUM(DQ$15:DQ$22)>0,$E27*$F27,0)","v":0},null,{"$f":"IF(SUM(DS$15:DS$22)>0,$E27*$F27,0)","v":0},null,{"$f":"IF(SUM(DU$15:DU$22)>0,$E27*$F27,0)","v":0},null,{"$f":"IF(SUM(DW$15:DW$22)>0,$E27*$F27,0)","v":0}]
[null,null,null,null,null,null,null,null,null,{"$f":"IF(SUM(I$15:I$22)>0,$E28*$F28,0)","v":0},null,{"$f":"IF(SUM(K$15:K$22)>0,$E28*$F28,0)","v":0},null,{"$f":"IF(SUM(M$15:M$22)>0,$E28*$F28,0)","v":0},null,{"$f":"IF(SUM(O$15:O$22)>0,$E28*$F28,0)","v":0},null,{"$f":"IF(SUM(Q$15:Q$22)>0,$E28*$F28,0)","v":0},null,{"$f":"IF(SUM(S$15:S$22)>0,$E28*$F28,0)","v":0},null,{"$f":"IF(SUM(U$15:U$22)>0,$E28*$F28,0)","v":0},null,{"$f":"IF(SUM(W$15:W$22)>0,$E28*$F28,0)","v":0},null,{"$f":"IF(SUM(Y$15:Y$22)>0,$E28*$F28,0)","v":0},null,{"$f":"IF(SUM(AA$15:AA$22)>0,$E28*$F28,0)","v":0},null,{"$f":"IF(SUM(AC$15:AC$22)>0,$E28*$F28,0)","v":0},null,{"$f":"IF(SUM(AE$15:AE$22)>0,$E28*$F28,0)","v":0},null,{"$f":"IF(SUM(AG$15:AG$22)>0,$E28*$F28,0)","v":0},null,{"$f":"IF(SUM(AI$15:AI$22)>0,$E28*$F28,0)","v":0},null,{"$f":"IF(SUM(AK$15:AK$22)>0,$E28*$F28,0)","v":0},null,{"$f":"IF(SUM(AM$15:AM$22)>0,$E28*$F28,0)","v":0},null,{"$f":"IF(SUM(AO$15:AO$22)>0,$E28*$F28,0)","v":0},null,{"$f":"IF(SUM(AQ$15:AQ$22)>0,$E28*$F28,0)","v":0},null,{"$f":"IF(SUM(AS$15:AS$22)>0,$E28*$F28,0)","v":0},null,{"$f":"IF(SUM(AU$15:AU$22)>0,$E28*$F28,0)","v":0},null,{"$f":"IF(SUM(AW$15:AW$22)>0,$E28*$F28,0)","v":0},null,{"$f":"IF(SUM(AY$15:AY$22)>0,$E28*$F28,0)","v":0},null,{"$f":"IF(SUM(BA$15:BA$22)>0,$E28*$F28,0)","v":0},null,{"$f":"IF(SUM(BC$15:BC$22)>0,$E28*$F28,0)","v":0},null,{"$f":"IF(SUM(BE$15:BE$22)>0,$E28*$F28,0)","v":0},null,{"$f":"IF(SUM(BG$15:BG$22)>0,$E28*$F28,0)","v":0},null,{"$f":"IF(SUM(BI$15:BI$22)>0,$E28*$F28,0)","v":0},null,{"$f":"IF(SUM(BK$15:BK$22)>0,$E28*$F28,0)","v":0},null,{"$f":"IF(SUM(BM$15:BM$22)>0,$E28*$F28,0)","v":0},null,{"$f":"IF(SUM(BO$15:BO$22)>0,$E28*$F28,0)","v":0},null,{"$f":"IF(SUM(BQ$15:BQ$22)>0,$E28*$F28,0)","v":0},null,{"$f":"IF(SUM(BS$15:BS$22)>0,$E28*$F28,0)","v":0},null,{"$f":"IF(SUM(BU$15:BU$22)>0,$E28*$F28,0)","v":0},null,{"$f":"IF(SUM(BW$15:BW$22)>0,$E28*$F28,0)","v":0},null,{"$f":"IF(SUM(BY$15:BY$22)>0,$E28*$F28,0)","v":0},null,{"$f":"IF(SUM(CA$15:CA$22)>0,$E28*$F28,0)","v":0},null,{"$f":"IF(SUM(CC$15:CC$22)>0,$E28*$F28,0)","v":0},null,{"$f":"IF(SUM(CE$15:CE$22)>0,$E28*$F28,0)","v":0},null,{"$f":"IF(SUM(CG$15:CG$22)>0,$E28*$F28,0)","v":0},null,{"$f":"IF(SUM(CI$15:CI$22)>0,$E28*$F28,0)","v":0},null,{"$f":"IF(SUM(CK$15:CK$22)>0,$E28*$F28,0)","v":0},null,{"$f":"IF(SUM(CM$15:CM$22)>0,$E28*$F28,0)","v":0},null,{"$f":"IF(SUM(CO$15:CO$22)>0,$E28*$F28,0)","v":0},null,{"$f":"IF(SUM(CQ$15:CQ$22)>0,$E28*$F28,0)","v":0},null,{"$f":"IF(SUM(CS$15:CS$22)>0,$E28*$F28,0)","v":0},null,{"$f":"IF(SUM(CU$15:CU$22)>0,$E28*$F28,0)","v":0},null,{"$f":"IF(SUM(CW$15:CW$22)>0,$E28*$F28,0)","v":0},null,{"$f":"IF(SUM(CY$15:CY$22)>0,$E28*$F28,0)","v":0},null,{"$f":"IF(SUM(DA$15:DA$22)>0,$E28*$F28,0)","v":0},null,{"$f":"IF(SUM(DC$15:DC$22)>0,$E28*$F28,0)","v":0},null,{"$f":"IF(SUM(DE$15:DE$22)>0,$E28*$F28,0)","v":0},null,{"$f":"IF(SUM(DG$15:DG$22)>0,$E28*$F28,0)","v":0},null,{"$f":"IF(SUM(DI$15:DI$22)>0,$E28*$F28,0)","v":0},null,{"$f":"IF(SUM(DK$15:DK$22)>0,$E28*$F28,0)","v":0},null,{"$f":"IF(SUM(DM$15:DM$22)>0,$E28*$F28,0)","v":0},null,{"$f":"IF(SUM(DO$15:DO$22)>0,$E28*$F28,0)","v":0},null,{"$f":"IF(SUM(DQ$15:DQ$22)>0,$E28*$F28,0)","v":0},null,{"$f":"IF(SUM(DS$15:DS$22)>0,$E28*$F28,0)","v":0},null,{"$f":"IF(SUM(DU$15:DU$22)>0,$E28*$F28,0)","v":0},null,{"$f":"IF(SUM(DW$15:DW$22)>0,$E28*$F28,0)","v":0}]

{"sheet":"Não Rel - EPI","index":18,"n_rows":38,"n_cols":15,"rows_kept":38,"cut":false,"hidden":true,"merged":[[9,1,9,4],[10,1,10,11]]}
[null,null,"CÂMARA DOS DEPUTADOS"]
[null,null,"DEPARTAMENTO TÉCNICO"]
[null,null,"Coordenação de Planejamento e Gestão"]
[]
[null,null,"Data:",{"$f":"'Dados Gerais'!#REF!","v":{"$error":"#REF!"}}]
[null,null,"Processo:",{"$f":"'Dados Gerais'!#REF!","v":{"$error":"#REF!"}}]
[null,null,"Objeto:",{"$f":"'Dados Gerais'!#REF!","v":{"$error":"#REF!"}}]
[]
[]
[]
[null,"EPIS NÃO RELACIONADOS DIRETAMENTE A UM POSTO DE TRABALHO - AQUISIÇÃO"]
[]
[]
[null,null,null,"ITEM","DESCRIÇÃO","QUANT ANUAL","UNIDADE","CUSTO UNITÁRIO","CUSTO ANUAL","BDI (%)","PREÇO TOTAL","FONTE"]
[]
[null,null,null,null,null,null,null,0,{"$f":"H16*F16","v":0},{"$f":"BDI!E26","v":0.26629999999999998},{"$f":"ROUND(I16*(1+J16),2)","v":0},"COTAÇÃO"]
[null,null,null,null,null,null,null,0,{"$f":"H17*F17","v":0},{"$f":"J16","v":0.26629999999999998},{"$f":"ROUND(I17*(1+J17),2)","v":0},"COTAÇÃO"]
[null,null,null,null,null,null,null,0,{"$f":"H18*F18","v":0},{"$f":"J17","v":0.26629999999999998},{"$f":"ROUND(I18*(1+J18),2)","v":0},"COTAÇÃO"]
[null,null,null,null,null,null,null,0,0,0.26629999999999998,0,"COTAÇÃO"]
[null,null,null,null,null,null,null,0,0,0.26629999999999998,0,"COTAÇÃO"]
[null,null,null,null,null,null,null,0,0,0.26629999999999998,0,"COTAÇÃO"]
[null,null,null,null,null,null,null,0,0,0.26629999999999998,0,"COTAÇÃO"]
[null,null,null,null,null,null,null,0,0,0.26629999999999998,0,"COTAÇÃO"]
[null,null,null,null,null,null,null,0,0,0.26629999999999998,0,"COTAÇÃO"]
[null,null,null,null,null,null,null,0,0,0.26629999999999998,0,"COTAÇÃO"]
[null,null,null,null,null,null,null,0,0,0.26629999999999998,0,"COTAÇÃO"]
[null,null,null,null,null,null,null,0,0,0.26629999999999998,0,"COTAÇÃO"]
[null,null,null,null,null,null,null,0,0,0.26629999999999998,0,"COTAÇÃO"]
[null,null,null,null,null,null,null,0,0,0.26629999999999998,0,"COTAÇÃO"]
[null,null,null,null,null,null,null,0,0,0.26629999999999998,0,"COTAÇÃO"]
[null,null,null,null,null,null,null,0,0,0.26629999999999998,0,"COTAÇÃO"]
[null,null,null,null,null,null,null,0,0,0.26629999999999998,0,"COTAÇÃO"]
[null,null,null,null,null,null,null,0,{"$f":"H33*F33","v":0},{"$f":"J17","v":0.26629999999999998},{"$f":"ROUND(I33*(1+J33),2)","v":0},"COTAÇÃO"]
[null,null,null,null,null,null,null,0,{"$f":"H34*F34","v":0},{"$f":"J33","v":0.26629999999999998},{"$f":"ROUND(I34*(1+J34),2)","v":0},"COTAÇÃO"]
[null,null,null,null,null,null,null,0,{"$f":"H35*F35","v":0},{"$f":"J34","v":0.26629999999999998},{"$f":"ROUND(I35*(1+J35),2)","v":0},"COTAÇÃO"]
[null,null,null,null,null,null,null,null,{"$f":"H36*F36","v":0}]
[null,null,null,null,null,null,null,null,null,"SOMATÓRIO TOTAL MENSAL",{"$f":"K38/12","v":0}]
[null,null,null,null,null,null,null,null,null,"SOMATÓRIO TOTAL ANUAL",{"$f":"SUM(K15:K36)","v":0},null,null,{"$f":"SUM($I$16:$I$35)","v":0},"por ano sem bdi"]

{"sheet":"SREP","index":19,"n_rows":82,"n_cols":15,"rows_kept":82,"cut":false,"hidden":true,"merged":[[9,1,9,3],[10,1,10,14]]}
[null,null,"CÂMARA DOS DEPUTADOS"]
[null,null,"DEPARTAMENTO TÉCNICO"]
[null,null,"Coordenação de Planejamento e Gestão"]
[]
[null,null,"Data:",{"$f":"'Dados Gerais'!#REF!","v":{"$error":"#REF!"}}]
[null,null,"Processo:",{"$f":"'Dados Gerais'!#REF!","v":{"$error":"#REF!"}}]
[null,null,"Objeto:",{"$f":"'Dados Gerais'!#REF!","v":{"$error":"#REF!"}}]
[]
[]
[]
[null,"SISTEMA DE REGISTRO ELETRÔNICO DE PRESENÇA - SREP"]
[]
[]
[null,null,"PAGAMENTO DA DEPRECIAÇÃO"]
[null,null,"ITEM","DESCRIÇÃO","QUANT ANUAL","CONTA SIAFI","VALOR DE AQ.","% RESIDUAL","VIDA ÚTIL","DEP. MENSAL","CUSTO TOTAL","BDI (%)","PREÇO TOTAL","FONTE","REFERÊNCIA"]
[]
[null,null,1,"Equipamento de Registro Eletrônico de Ponto, de parede, com teclado externo e leitor biométrico, em conformidade com a Portaria 1.510/2009 do MT",1,"12311.01.24\n(máquinas e equip\neletrônicos)",1840.33,0.1,10,{"$f":"G17*(1-H17)/(I17*12)","v":13.802474999999999},{"$f":"J17*E17","v":13.802474999999999},{"$f":"BDI!E26","v":0.26629999999999998},{"$f":"ROUND(K17*(1+L17),2)","v":17.48},"COTAÇÃO"]
[]
[]
[null,null,"PAGAMENTO DA MANUTENÇÃO"]
[null,null,"ITEM","DESCRIÇÃO",null,null,null,"K (calculado)","MENSAL DEPR.","% MAN X DEP","MENSAL MAN.","BDI (%)","PREÇO TOTAL"]
[]
[null,null,2,"Todos os itens",null,null,null,{"$f":"H30","v":1.9000396799999999},{"$f":"K17","v":13.802474999999999},{"$f":"H23","v":1.9000396799999999},{"$f":"I23*H23","v":26.225250182207997},{"$f":"L17","v":0.26629999999999998},{"$f":"ROUND(K23*(1+L23),2)","v":33.21}]
[]
[null,null,null,null,"K1","K2","K3","K4"]
[null,null,null,null,0.85,1,0.8,1.4]
[null,null,null,null,"K5","K6","K7","K8"]
[null,null,null,null,1,0.6,1.6,1.1000000000000001]
[null,null,null,null,"K9","K10","K11","RESULTADO"]
[null,null,null,"* a descrição de cada coeficiente segue abaixo",1.5,0.9,1.4,{"$f":"E26*F26*G26*H26*E28*F28*G28*H28*E30*F30*G30","v":1.9000396799999999}]
[]
[]
[null,null,"PAGAMENTO DO SOFTWARE"]
[null,null,"ITEM","DESCRIÇÃO",null,null,null,null,"QUANTIDADE","UNIDADE","UNIT. MENSAL","BDI (%)","PREÇO TOTAL"]
[]
[null,null,3,"Software Ponto Secullum 4 - manutenção e suporte técnico com backup - Web Nuvem - Mensalidade",null,null,null,null,1,"Licença/mês",75,{"$f":"L42","v":0.26629999999999998},{"$f":"ROUND(K36*(1+L36),2)","v":94.97},"COTAÇÃO"]
[]
[]
[null,null,"MATERIAL DE CONSUMO ASSOCIADO"]
[null,null,"ITEM","DESCRIÇÃO",null,null,null,"QUANTID/ANO","UNIDADE","VALOR DE AQ.","MENSAL MAT","BDI (%)","PREÇO TOTAL"]
[]
[null,null,4,"Bobina térmica específica para o registrador eletrônico de ponto, com papel termossensível, superfície de impressão externa ao rolo, durabilidade de impressão mínima de 5 anos e comprimento mínimo de 300m","* estimado um gasto anual de 21 bobinas por equipamento",null,null,10,"Bobina",28.01,{"$f":"J42*H42/12","v":23.341666666666669},{"$f":"L23","v":0.26629999999999998},{"$f":"ROUND(K42*(1+L42),2)","v":29.56},"COTAÇÃO"]
[]
[]
[null,null,"MATERIAL DE CONSUMO ASSOCIADO"]
[null,null,"ITEM","DESCRIÇÃO",null,null,null,null,null,null,null,null,"PREÇO TOTAL"]
[]
[null,null,1,"Componente DEPRECIAÇÃO",null,null,null,null,null,null,null,null,{"$f":"M17","v":17.48}]
[null,null,2,"Componente MANUTENÇÃO",null,null,null,null,null,null,null,null,{"$f":"M23","v":33.21}]
[null,null,3,"Componente SOFTWARE",null,null,null,null,null,null,null,null,{"$f":"M36","v":94.97}]
[null,null,4,"Componente MATERIAL DE CONSUMO ASSOCIADO",null,null,null,null,null,null,null,null,{"$f":"M42","v":29.56}]
[]
[null,null,null,null,null,null,null,null,null,null,null,"SOMATÓRIO TOTAL MENSAL",{"$f":"SUM(M47:M52)","v":175.22}]
[null,null,null,null,null,null,null,null,null,null,null,"SOMATÓRIO TOTAL ANUAL",{"$f":"M53*12","v":2102.64}]
[]
[]
[null,null,"MATERIAL DE CONSUMO ASSOCIADO"]
[null,null,"MEMÓRIA DE CÁLCULO DO COEFICIENTE DE CORRELAÇÃO MANUTENÇÃO X DEPRECIAÇÃO (K)"]
[]
[null,null,"JUSTIFICATIVAS",null,"TIPO","K1",null,"Condições de Trab","K4",null,"Tempo Vida (anos)","K6",null,"Temperatura","K8"]
[null,null,null,null,"Guindaste",0.5,null,"Em espera",0.4,null,1,0.6,null,"Muito quente (> 40º C)",1.3]
[null,null,"K1","Considerado o valor médio de 0,85","Caminhão-comum",0.8,null,"Leves",0.8,null,2,0.7,null,"Quente (30º a 40º C)",1.1000000000000001]
[null,null,"K2","Considerado o operador médio","Fora-de-estrada",1,null,"Médias",1,null,3,0.8,null,"Médio (10º a 30º C)",1]
[null,null,"K3","Consideradas ferramentas de primeira qualidade","Carregadeira",1,null,"Pesadas",1.4,null,4,0.9,null,"Frio (< 10º C)",1.2]
[null,null,"K4","Há todo o tipo de trabalho, foi considerado condições pesadas","Escavadeira",1.4,null,"Severas",2,null,5,1]
[null,null,"K5","Considerando manutenção normal","Motoescrêiper",1.1000000000000001,null,null,null,null,6,1,null,"Ritmo de Trabalho","K9"]
[null,null,"K6","Equipamentos novos","Trator de esteira",1.2,null,"Manutenção","K5",null,7,1,null,"Folgado",0.9]
[null,null,"K7","44h por dia, 252 dias por ano",null,null,null,"Excelente",0.6,null,8,1.2,null,"Médio ",1]
[null,null,"K8","Clima quente, acima de 30º C","Qualid do Operador","K2",null,"Boa",0.8,null,9,1.3,null,"Com pressa",1.5]
[null,null,"K9","Ritmo de trabalho usualmente com pressa","Excelente",0.8,null,"Média",1,null,10,1.4]
[null,null,"K10","Considerado o operador médio","Boa",0.9,null,"Ruim ",1.5,null,11,2,null,"Conh do Serviço","K10"]
[null,null,"K11","Foi considerada a opção de aluguel a terceiros, ainda que a simulação seja dos custos do contratado, contudo a execução dos serviços é em local de terceiros","Média",1,null,"Inexistente",3,null,15,2,null,"Grande ",0.8]
[null,null,null,null,"Ruim",1.2,null,null,null,null,null,null,null,"Médio     ",0.9]
[null,null,null,null,"Péssima",2,null,"Horas de Uso ","K7",6000,1,null,null,"Pouco ",1]
[null,null,null,null,null,null,null,1000,0.5,8000,1.3]
[null,null,null,null,"Qualidade do Equip","K3",null,2000,0.5,10000,1.6,null,null,"Tipo do Serviço","K11"]
[null,null,null,null,"De primeira",0.8,null,3000,0.6,12000,1.9,null,null,"Mina ou Pedreira",0.8]
[null,null,null,null,"Média",1,null,4000,0.7,15000,2.2999999999999998,null,null,"Construção Geral",1]
[null,null,null,null,"Ruim",1.5,null,5000,0.9,20000,3,null,null,"Aluguel a Terceiros",1.4]
[]
[null,null,null,null,"Fonte: "]
[null,null,null,null,"MATTOS, Aldo Dórea. Como preparar orçamentos de obras. São Paulo: Pini, 2006. 281 p., il"]

{"sheet":"Not. Demanda","index":20,"n_rows":44,"n_cols":8,"rows_kept":44,"cut":false,"hidden":true,"merged":[[1,1,1,3],[2,1,2,7]]}
[]
[]
[null,"ADICIONAL NOTURNO SOB DEMANDA"]
[]
[]
[null,null,"CATEGORIAS",null,null,null,"HORAS / ANO","% NOTURNA"]
[]
[null,null,3,{"$f":"HLOOKUP($C8,'Dados Gerais'!$D$5:$BH$10,6)","v":"Analista de TI - Analista de Dados - sênior"},null,null,null,0.2]
[]
[]
[null,null,"AJUSTE DE HORAS FICTAS",null,"AJUSTE H.NOT","HORA NORMAL","H.FICTAS/ANO","H.ÚTEIS/MÊS"]
[]
[null,null,3,{"$f":"HLOOKUP($C13,'Dados Gerais'!$D$5:$BH$10,6)","v":"Analista de TI - Analista de Dados - sênior"},52.5,60,{"$f":"G8*(F13/E13)","v":0},{"$f":"HLOOKUP(C13,'Dados Gerais'!$D$5:$G$16,12,0)","v":200}]
[]
[]
[null,null,"VALOR DO ADICIONAL NOTURNO",null,null,"SALÁRIO MÊS","VL.H.NORMAL","ADIC.H.FICTAS"]
[]
[null,null,3,{"$f":"HLOOKUP($C18,'Dados Gerais'!$D$5:$BH$10,6)","v":"Analista de TI - Analista de Dados - sênior"},null,{"$f":"HLOOKUP(C18,'Dados Gerais'!$D$5:$G$12,8,0)","v":9747.5400000000009},{"$f":"F18/H13","v":48.737700000000004},{"$f":"G18*(H8)","v":9.7475400000000008}]
[]
[]
[null,null,"RESUMO DO ADICIONAL NOTURNO SOB DEMANDA"]
[null,null,"TOTAIS ANUAIS",null,null,null,"PREÇO ANUAL"]
[]
[null,null,3,{"$f":"HLOOKUP($C24,'Dados Gerais'!$D$5:$BH$10,6)","v":"Analista de TI - Analista de Dados - sênior"},null,null,{"$f":"H18*G13","v":0}]
[]
[null,null,null,null,null,"SOMATÓRIO TOTAL MENSAL",{"$f":"G27/12","v":0}]
[null,null,null,null,null,"SOMATÓRIO TOTAL ANUAL",{"$f":"G24","v":0}]
[]
[]
[null,null,"ENCARGOS SOCIAIS E BDI SOBRE ADICIONAL NOTURNO SOB DEMANDA"]
[null,null,"TOTAIS MENSAIS",null,null,"PERCENTUAIS","PREÇO MENSAL"]
[]
[null,null,null,"ENCARGOS SOCIAIS",null,{"$f":"'Encargos Sociais'!$E$45","v":0.68169999999999997},{"$f":"F33*G26","v":0}]
[null,null,null,"BDI",null,{"$f":"BDI!$E$26","v":0.26629999999999998},{"$f":"F34*(G26+G33)","v":0}]
[]
[null,null,null,null,null,"SOMATÓRIO TOTAL MENSAL",{"$f":"SUM(G33:G35)","v":0}]
[null,null,null,null,null,"SOMATÓRIO TOTAL ANUAL",{"$f":"G36*12","v":0}]
[]
[]
[null,null,"VALOR TOTAL ADICIONAL NOTURNO SOB DEMANDA (COM ENCARGOS SOCIAIS E BDI INCLUSOS)"]
[null,null,"TOTAIS MENSAIS",null,null,"PERCENTUAIS","PREÇO MENSAL"]
[]
[null,null,null,null,null,"SOMATÓRIO TOTAL MENSAL",{"$f":"G36+G26","v":0}]
[null,null,null,null,null,"SOMATÓRIO TOTAL ANUAL",{"$f":"G43*12","v":0}]

{"sheet":"Equip Rel","index":21,"n_rows":80,"n_cols":136,"rows_kept":80,"cut":false,"hidden":true,"merged":[[9,1,9,3],[10,1,10,14]]}
[null,null,"CÂMARA DOS DEPUTADOS"]
[null,null,"DEPARTAMENTO TÉCNICO"]
[null,null,"Coordenação de Planejamento e Gestão"]
[]
[null,null,"Data:",{"$f":"'Dados Gerais'!#REF!","v":{"$error":"#REF!"}}]
[null,null,"Processo:",{"$f":"'Dados Gerais'!#REF!","v":{"$error":"#REF!"}}]
[null,null,"Objeto:",{"$f":"'Dados Gerais'!#REF!","v":{"$error":"#REF!"}}]
[]
[]
[]
[null,"EQUIPAMENTOS RELACIONADOS AO POSTO - PAGAMENTO DA DEPRECIAÇÃO / MANUTENÇÃO",null,null,null,null,null,null,null,null,null,null,null,null,null,null,1,null,{"$f":"Q11+1","v":2},null,{"$f":"S11+1","v":3},null,{"$f":"U11+1","v":4},null,{"$f":"W11+1","v":5},null,{"$f":"Y11+1","v":6},null,{"$f":"AA11+1","v":7},null,{"$f":"AC11+1","v":8},null,{"$f":"AE11+1","v":9},null,{"$f":"AG11+1","v":10},null,{"$f":"AI11+1","v":11},null,{"$f":"AK11+1","v":12},null,{"$f":"AM11+1","v":13},null,{"$f":"AO11+1","v":14},null,{"$f":"AQ11+1","v":15},null,{"$f":"AS11+1","v":16},null,{"$f":"AU11+1","v":17},null,{"$f":"AW11+1","v":18},null,{"$f":"AY11+1","v":19},null,{"$f":"BA11+1","v":20},null,{"$f":"BC11+1","v":21},null,{"$f":"BE11+1","v":22},null,{"$f":"BG11+1","v":23},null,{"$f":"BI11+1","v":24},null,{"$f":"BK11+1","v":25},null,{"$f":"BM11+1","v":26},null,{"$f":"BO11+1","v":27},null,{"$f":"BQ11+1","v":28},null,{"$f":"BS11+1","v":29},null,{"$f":"BU11+1","v":30},null,{"$f":"BW11+1","v":31},null,{"$f":"BY11+1","v":32},null,{"$f":"CA11+1","v":33},null,{"$f":"CC11+1","v":34},null,{"$f":"CE11+1","v":35},null,{"$f":"CG11+1","v":36},null,{"$f":"CI11+1","v":37},null,{"$f":"CK11+1","v":38},null,{"$f":"CM11+1","v":39},null,{"$f":"CO11+1","v":40},null,{"$f":"CQ11+1","v":41},null,{"$f":"CS11+1","v":42},null,{"$f":"CU11+1","v":43},null,{"$f":"CW11+1","v":44},null,{"$f":"CY11+1","v":45},null,{"$f":"DA11+1","v":46},null,{"$f":"DC11+1","v":47},null,{"$f":"DE11+1","v":48},null,{"$f":"DG11+1","v":49},null,{"$f":"DI11+1","v":50},null,{"$f":"DK11+1","v":51},null,{"$f":"DM11+1","v":52},null,{"$f":"DO11+1","v":53},null,{"$f":"DQ11+1","v":54},null,{"$f":"DS11+1","v":55},null,{"$f":"DU11+1","v":56},null,{"$f":"DW11+1","v":57},null,{"$f":"DY11+1","v":58},null,{"$f":"EA11+1","v":59},null,{"$f":"EC11+1","v":60}]
[]
[null,null,null,null,null,null,null,null,null,null,null,null,null,null,null,null,{"$f":"SUM(R12:R61)","v":0},null,{"$f":"SUM(T12:T61)","v":0},null,{"$f":"SUM(V12:V61)","v":0},null,{"$f":"SUM(X12:X61)","v":0},null,{"$f":"SUM(Z12:Z61)","v":0},null,{"$f":"SUM(AB12:AB61)","v":0},null,{"$f":"SUM(AD12:AD61)","v":0},null,{"$f":"SUM(AF12:AF61)","v":0},null,{"$f":"SUM(AH12:AH61)","v":0},null,{"$f":"SUM(AJ12:AJ61)","v":0},null,{"$f":"SUM(AL12:AL61)","v":0},null,{"$f":"SUM(AN12:AN61)","v":0},null,{"$f":"SUM(AP12:AP61)","v":0},null,{"$f":"SUM(AR12:AR61)","v":0},null,{"$f":"SUM(AT12:AT61)","v":0},null,{"$f":"SUM(AV12:AV61)","v":0},null,{"$f":"SUM(AX12:AX61)","v":0},null,{"$f":"SUM(AZ12:AZ61)","v":0},null,{"$f":"SUM(BB12:BB61)","v":0},null,{"$f":"SUM(BD12:BD61)","v":0},null,{"$f":"SUM(BF12:BF61)","v":0},null,{"$f":"SUM(BH12:BH61)","v":0},null,{"$f":"SUM(BJ12:BJ61)","v":0},null,{"$f":"SUM(BL12:BL61)","v":0},null,{"$f":"SUM(BN12:BN61)","v":0},null,{"$f":"SUM(BP12:BP61)","v":0},null,{"$f":"SUM(BR12:BR61)","v":0},null,{"$f":"SUM(BT12:BT61)","v":0},null,{"$f":"SUM(BV12:BV61)","v":0},null,{"$f":"SUM(BX12:BX61)","v":0},null,{"$f":"SUM(BZ12:BZ61)","v":0},null,{"$f":"SUM(CB12:CB61)","v":0},null,{"$f":"SUM(CD12:CD61)","v":0},null,{"$f":"SUM(CF12:CF61)","v":0},null,{"$f":"SUM(CH12:CH61)","v":0},null,{"$f":"SUM(CJ12:CJ61)","v":0},null,{"$f":"SUM(CL12:CL61)","v":0},null,{"$f":"SUM(CN12:CN61)","v":0},null,{"$f":"SUM(CP12:CP61)","v":0},null,{"$f":"SUM(CR12:CR61)","v":0},null,{"$f":"SUM(CT12:CT61)","v":0},null,{"$f":"SUM(CV12:CV61)","v":0},null,{"$f":"SUM(CX12:CX61)","v":0},null,{"$f":"SUM(CZ12:CZ61)","v":0},null,{"$f":"SUM(DB12:DB61)","v":0},null,{"$f":"SUM(DD12:DD61)","v":0},null,{"$f":"SUM(DF12:DF61)","v":0},null,{"$f":"SUM(DH12:DH61)","v":0},null,{"$f":"SUM(DJ12:DJ61)","v":0},null,{"$f":"SUM(DL12:DL61)","v":0},null,{"$f":"SUM(DN12:DN61)","v":0},null,{"$f":"SUM(DP12:DP61)","v":0},null,{"$f":"SUM(DR12:DR61)","v":0},null,{"$f":"SUM(DT12:DT61)","v":0},null,{"$f":"SUM(DV12:DV61)","v":0},null,{"$f":"SUM(DX12:DX61)","v":0},null,{"$f":"SUM(DZ12:DZ61)","v":0},null,{"$f":"SUM(EB12:EB61)","v":0},null,{"$f":"SUM(ED12:ED61)","v":0},null,{"$f":"SUM(EF12:EF61)","v":0}]
[null,null,"CATEGORIAS",null,"QUANTIDADE"]
[null,null,null,null,null,null,null,null,null,null,null,null,null,null,null,null,{"$f":"IF($C15=Q$11,1,0)","v":0},null,{"$f":"IF($C15=S$11,1,0)","v":0},null,{"$f":"IF($C15=U$11,1,0)","v":0},null,{"$f":"IF($C15=W$11,1,0)","v":0},null,{"$f":"IF($C15=Y$11,1,0)","v":0},null,{"$f":"IF($C15=AA$11,1,0)","v":0},null,{"$f":"IF($C15=AC$11,1,0)","v":0},null,{"$f":"IF($C15=AE$11,1,0)","v":0},null,{"$f":"IF($C15=AG$11,1,0)","v":0},null,{"$f":"IF($C15=AI$11,1,0)","v":0},null,{"$f":"IF($C15=AK$11,1,0)","v":0},null,{"$f":"IF($C15=AM$11,1,0)","v":0},null,{"$f":"IF($C15=AO$11,1,0)","v":0},null,{"$f":"IF($C15=AQ$11,1,0)","v":0},null,{"$f":"IF($C15=AS$11,1,0)","v":0},null,{"$f":"IF($C15=AU$11,1,0)","v":0},null,{"$f":"IF($C15=AW$11,1,0)","v":0},null,{"$f":"IF($C15=AY$11,1,0)","v":0},null,{"$f":"IF($C15=BA$11,1,0)","v":0},null,{"$f":"IF($C15=BC$11,1,0)","v":0},null,{"$f":"IF($C15=BE$11,1,0)","v":0},null,{"$f":"IF($C15=BG$11,1,0)","v":0},null,{"$f":"IF($C15=BI$11,1,0)","v":0},null,{"$f":"IF($C15=BK$11,1,0)","v":0},null,{"$f":"IF($C15=BM$11,1,0)","v":0},null,{"$f":"IF($C15=BO$11,1,0)","v":0},null,{"$f":"IF($C15=BQ$11,1,0)","v":0},null,{"$f":"IF($C15=BS$11,1,0)","v":0},null,{"$f":"IF($C15=BU$11,1,0)","v":0},null,{"$f":"IF($C15=BW$11,1,0)","v":0},null,{"$f":"IF($C15=BY$11,1,0)","v":0},null,{"$f":"IF($C15=CA$11,1,0)","v":0},null,{"$f":"IF($C15=CC$11,1,0)","v":0},null,{"$f":"IF($C15=CE$11,1,0)","v":0},null,{"$f":"IF($C15=CG$11,1,0)","v":0},null,{"$f":"IF($C15=CI$11,1,0)","v":0},null,{"$f":"IF($C15=CK$11,1,0)","v":0},null,{"$f":"IF($C15=CM$11,1,0)","v":0},null,{"$f":"IF($C15=CO$11,1,0)","v":0},null,{"$f":"IF($C15=CQ$11,1,0)","v":0},null,{"$f":"IF($C15=CS$11,1,0)","v":0},null,{"$f":"IF($C15=CU$11,1,0)","v":0},null,{"$f":"IF($C15=CW$11,1,0)","v":0},null,{"$f":"IF($C15=CY$11,1,0)","v":0},null,{"$f":"IF($C15=DA$11,1,0)","v":0},null,{"$f":"IF($C15=DC$11,1,0)","v":0},null,{"$f":"IF($C15=DE$11,1,0)","v":0},null,{"$f":"IF($C15=DG$11,1,0)","v":0},null,{"$f":"IF($C15=DI$11,1,0)","v":0},null,{"$f":"IF($C15=DK$11,1,0)","v":0},null,{"$f":"IF($C15=DM$11,1,0)","v":0},null,{"$f":"IF($C15=DO$11,1,0)","v":0},null,{"$f":"IF($C15=DQ$11,1,0)","v":0},null,{"$f":"IF($C15=DS$11,1,0)","v":0},null,{"$f":"IF($C15=DU$11,1,0)","v":0},null,{"$f":"IF($C15=DW$11,1,0)","v":0},null,{"$f":"IF($C15=DY$11,1,0)","v":0},null,{"$f":"IF($C15=EA$11,1,0)","v":0},null,{"$f":"IF($C15=EC$11,1,0)","v":0},null,{"$f":"IF($C15=EE$11,1,0)","v":0}]
[null,null,null,{"$f":"HLOOKUP($C16,'Dados Gerais'!$D$5:$BH$10,6)","v":{"$error":"#N/A"}},{"$f":"HLOOKUP($C16,'Dados Gerais'!$D$5:$BH$14,10)","v":{"$error":"#N/A"}},null,null,null,null,null,null,null,null,null,null,null,{"$f":"IF($C16=Q$11,1,0)","v":0},null,{"$f":"IF($C16=S$11,1,0)","v":0},null,{"$f":"IF($C16=U$11,1,0)","v":0},null,{"$f":"IF($C16=W$11,1,0)","v":0},null,{"$f":"IF($C16=Y$11,1,0)","v":0},null,{"$f":"IF($C16=AA$11,1,0)","v":0},null,{"$f":"IF($C16=AC$11,1,0)","v":0},null,{"$f":"IF($C16=AE$11,1,0)","v":0},null,{"$f":"IF($C16=AG$11,1,0)","v":0},null,{"$f":"IF($C16=AI$11,1,0)","v":0},null,{"$f":"IF($C16=AK$11,1,0)","v":0},null,{"$f":"IF($C16=AM$11,1,0)","v":0},null,{"$f":"IF($C16=AO$11,1,0)","v":0},null,{"$f":"IF($C16=AQ$11,1,0)","v":0},null,{"$f":"IF($C16=AS$11,1,0)","v":0},null,{"$f":"IF($C16=AU$11,1,0)","v":0},null,{"$f":"IF($C16=AW$11,1,0)","v":0},null,{"$f":"IF($C16=AY$11,1,0)","v":0},null,{"$f":"IF($C16=BA$11,1,0)","v":0},null,{"$f":"IF($C16=BC$11,1,0)","v":0},null,{"$f":"IF($C16=BE$11,1,0)","v":0},null,{"$f":"IF($C16=BG$11,1,0)","v":0},null,{"$f":"IF($C16=BI$11,1,0)","v":0},null,{"$f":"IF($C16=BK$11,1,0)","v":0},null,{"$f":"IF($C16=BM$11,1,0)","v":0},null,{"$f":"IF($C16=BO$11,1,0)","v":0},null,{"$f":"IF($C16=BQ$11,1,0)","v":0},null,{"$f":"IF($C16=BS$11,1,0)","v":0},null,{"$f":"IF($C16=BU$11,1,0)","v":0},null,{"$f":"IF($C16=BW$11,1,0)","v":0},null,{"$f":"IF($C16=BY$11,1,0)","v":0},null,{"$f":"IF($C16=CA$11,1,0)","v":0},null,{"$f":"IF($C16=CC$11,1,0)","v":0},null,{"$f":"IF($C16=CE$11,1,0)","v":0},null,{"$f":"IF($C16=CG$11,1,0)","v":0},null,{"$f":"IF($C16=CI$11,1,0)","v":0},null,{"$f":"IF($C16=CK$11,1,0)","v":0},null,{"$f":"IF($C16=CM$11,1,0)","v":0},null,{"$f":"IF($C16=CO$11,1,0)","v":0},null,{"$f":"IF($C16=CQ$11,1,0)","v":0},null,{"$f":"IF($C16=CS$11,1,0)","v":0},null,{"$f":"IF($C16=CU$11,1,0)","v":0},null,{"$f":"IF($C16=CW$11,1,0)","v":0},null,{"$f":"IF($C16=CY$11,1,0)","v":0},null,{"$f":"IF($C16=DA$11,1,0)","v":0},null,{"$f":"IF($C16=DC$11,1,0)","v":0},null,{"$f":"IF($C16=DE$11,1,0)","v":0},null,{"$f":"IF($C16=DG$11,1,0)","v":0},null,{"$f":"IF($C16=DI$11,1,0)","v":0},null,{"$f":"IF($C16=DK$11,1,0)","v":0},null,{"$f":"IF($C16=DM$11,1,0)","v":0},null,{"$f":"IF($C16=DO$11,1,0)","v":0},null,{"$f":"IF($C16=DQ$11,1,0)","v":0},null,{"$f":"IF($C16=DS$11,1,0)","v":0},null,{"$f":"IF($C16=DU$11,1,0)","v":0},null,{"$f":"IF($C16=DW$11,1,0)","v":0},null,{"$f":"IF($C16=DY$11,1,0)","v":0},null,{"$f":"IF($C16=EA$11,1,0)","v":0},null,{"$f":"IF($C16=EC$11,1,0)","v":0},null,{"$f":"IF($C16=EE$11,1,0)","v":0}]
[null,null,null,null,null,null,null,null,null,null,null,null,null,null,null,null,{"$f":"IF($C17=Q$11,1,0)","v":0},null,{"$f":"IF($C17=S$11,1,0)","v":0},null,{"$f":"IF($C17=U$11,1,0)","v":0},null,{"$f":"IF($C17=W$11,1,0)","v":0},null,{"$f":"IF($C17=Y$11,1,0)","v":0},null,{"$f":"IF($C17=AA$11,1,0)","v":0},null,{"$f":"IF($C17=AC$11,1,0)","v":0},null,{"$f":"IF($C17=AE$11,1,0)","v":0},null,{"$f":"IF($C17=AG$11,1,0)","v":0},null,{"$f":"IF($C17=AI$11,1,0)","v":0},null,{"$f":"IF($C17=AK$11,1,0)","v":0},null,{"$f":"IF($C17=AM$11,1,0)","v":0},null,{"$f":"IF($C17=AO$11,1,0)","v":0},null,{"$f":"IF($C17=AQ$11,1,0)","v":0},null,{"$f":"IF($C17=AS$11,1,0)","v":0},null,{"$f":"IF($C17=AU$11,1,0)","v":0},null,{"$f":"IF($C17=AW$11,1,0)","v":0},null,{"$f":"IF($C17=AY$11,1,0)","v":0},null,{"$f":"IF($C17=BA$11,1,0)","v":0},null,{"$f":"IF($C17=BC$11,1,0)","v":0},null,{"$f":"IF($C17=BE$11,1,0)","v":0},null,{"$f":"IF($C17=BG$11,1,0)","v":0},null,{"$f":"IF($C17=BI$11,1,0)","v":0},null,{"$f":"IF($C17=BK$11,1,0)","v":0},null,{"$f":"IF($C17=BM$11,1,0)","v":0},null,{"$f":"IF($C17=BO$11,1,0)","v":0},null,{"$f":"IF($C17=BQ$11,1,0)","v":0},null,{"$f":"IF($C17=BS$11,1,0)","v":0},null,{"$f":"IF($C17=BU$11,1,0)","v":0},null,{"$f":"IF($C17=BW$11,1,0)","v":0},null,{"$f":"IF($C17=BY$11,1,0)","v":0},null,{"$f":"IF($C17=CA$11,1,0)","v":0},null,{"$f":"IF($C17=CC$11,1,0)","v":0},null,{"$f":"IF($C17=CE$11,1,0)","v":0},null,{"$f":"IF($C17=CG$11,1,0)","v":0},null,{"$f":"IF($C17=CI$11,1,0)","v":0},null,{"$f":"IF($C17=CK$11,1,0)","v":0},null,{"$f":"IF($C17=CM$11,1,0)","v":0},null,{"$f":"IF($C17=CO$11,1,0)","v":0},null,{"$f":"IF($C17=CQ$11,1,0)","v":0},null,{"$f":"IF($C17=CS$11,1,0)","v":0},null,{"$f":"IF($C17=CU$11,1,0)","v":0},null,{"$f":"IF($C17=CW$11,1,0)","v":0},null,{"$f":"IF($C17=CY$11,1,0)","v":0},null,{"$f":"IF($C17=DA$11,1,0)","v":0},null,{"$f":"IF($C17=DC$11,1,0)","v":0},null,{"$f":"IF($C17=DE$11,1,0)","v":0},null,{"$f":"IF($C17=DG$11,1,0)","v":0},null,{"$f":"IF($C17=DI$11,1,0)","v":0},null,{"$f":"IF($C17=DK$11,1,0)","v":0},null,{"$f":"IF($C17=DM$11,1,0)","v":0},null,{"$f":"IF($C17=DO$11,1,0)","v":0},null,{"$f":"IF($C17=DQ$11,1,0)","v":0},null,{"$f":"IF($C17=DS$11,1,0)","v":0},null,{"$f":"IF($C17=DU$11,1,0)","v":0},null,{"$f":"IF($C17=DW$11,1,0)","v":0},null,{"$f":"IF($C17=DY$11,1,0)","v":0},null,{"$f":"IF($C17=EA$11,1,0)","v":0},null,{"$f":"IF($C17=EC$11,1,0)","v":0},null,{"$f":"IF($C17=EE$11,1,0)","v":0}]
[]
[null,null,"PAGAMENTO DA DEPRECIAÇÃO"]
[null,null,"ITEM","DESCRIÇÃO","QUANT ANUAL","CONTA SIAFI","VALOR DE AQ.","% RESIDUAL","VIDA ÚTIL","DEP. MENSAL","CUSTO TOTAL","BDI (%)","PREÇO TOTAL","FONTE","REFERÊNCIA"]
[]
[null,null,null,null,null,null,null,null,null,{"$f":"G22*(1-H22)/(I22*12)","v":{"$error":"#DIV/0!"}},{"$f":"J22*E22","v":{"$error":"#DIV/0!"}},{"$f":"BDI!E26","v":0.26629999999999998},{"$f":"ROUND(K22*(1+L22),2)","v":{"$error":"#DIV/0!"}},"COTAÇÃO"]
[]
[]
[null,null,"PAGAMENTO DA MANUTENÇÃO"]
[null,null,"ITEM","DESCRIÇÃO",null,null,null,"K (calculado)","MENSAL DEPR.","% MAN X DEP","MENSAL MAN.","BDI (%)","PREÇO TOTAL"]
[]
[null,null,null,null,null,null,null,{"$f":"H35","v":0.23950080000000007},{"$f":"M22","v":{"$error":"#DIV/0!"}},{"$f":"H28","v":0.23950080000000007},{"$f":"I28*H28","v":{"$error":"#DIV/0!"}},{"$f":"L22","v":0.26629999999999998},{"$f":"ROUND(K28*(1+L28),2)","v":{"$error":"#DIV/0!"}}]
[]
[null,null,null,null,"K1","K2","K3","K4"]
[null,null,null,null,1,1,0.8,0.8]
[null,null,null,null,"K5","K6","K7","K8"]
[null,null,null,null,1,0.6,0.5,1.1000000000000001]
[null,null,null,null,"K9","K10","K11","RESULTADO"]
[null,null,null,"* a descrição de cada coeficiente segue abaixo",0.9,0.9,1.4,{"$f":"E31*F31*G31*H31*E33*F33*G33*H33*E35*F35*G35","v":0.23950080000000007}]
[]
[]
[null,null,"MATERIAL DE CONSUMO ASSOCIADO"]
[null,null,"ITEM","DESCRIÇÃO",null,null,null,"QUANTID/ANO","UNIDADE","VALOR DE AQ.","MENSAL MAT","BDI (%)","PREÇO TOTAL"]
[]
[null,null,null,null,null,null,null,null,null,null,{"$f":"J41*H41/12","v":0},{"$f":"L28","v":0.26629999999999998},{"$f":"ROUND(K41*(1+L41),2)","v":0}]
[]
[]
[null,null,"MATERIAL DE CONSUMO ASSOCIADO"]
[null,null,"ITEM","DESCRIÇÃO",null,null,null,null,null,null,null,null,"PREÇO TOTAL"]
[]
[null,null,1,"Componente DEPRECIAÇÃO - POR POSTO",null,null,null,null,null,null,null,null,{"$f":"M22","v":{"$error":"#DIV/0!"}}]
[null,null,2,"Componente MANUTENÇÃO - POR POSTO",null,null,null,null,null,null,null,null,{"$f":"M28","v":{"$error":"#DIV/0!"}}]
[null,null,3,"Componente MATERIAL DE CONSUMO ASSOCIADO - POR POSTO",null,null,null,null,null,null,null,null,{"$f":"M41","v":0}]
[]
[null,null,null,null,null,null,null,null,null,null,null,"SOMATÓRIO TOTAL MENSAL - POR POSTO",{"$f":"SUM(M46:M50)","v":{"$error":"#DIV/0!"}},null,null,null,null,{"$f":"IF(SUM(Q$15:Q$17)>0,$M51,0)","v":0},null,{"$f":"IF(SUM(S$15:S$17)>0,$M51,0)","v":0},null,{"$f":"IF(SUM(U$15:U$17)>0,$M51,0)","v":0},null,{"$f":"IF(SUM(W$15:W$17)>0,$M51,0)","v":0},null,{"$f":"IF(SUM(Y$15:Y$17)>0,$M51,0)","v":0},null,{"$f":"IF(SUM(AA$15:AA$17)>0,$M51,0)","v":0},null,{"$f":"IF(SUM(AC$15:AC$17)>0,$M51,0)","v":0},null,{"$f":"IF(SUM(AE$15:AE$17)>0,$M51,0)","v":0},null,{"$f":"IF(SUM(AG$15:AG$17)>0,$M51,0)","v":0},null,{"$f":"IF(SUM(AI$15:AI$17)>0,$M51,0)","v":0},null,{"$f":"IF(SUM(AK$15:AK$17)>0,$M51,0)","v":0},null,{"$f":"IF(SUM(AM$15:AM$17)>0,$M51,0)","v":0},null,{"$f":"IF(SUM(AO$15:AO$17)>0,$M51,0)","v":0},null,{"$f":"IF(SUM(AQ$15:AQ$17)>0,$M51,0)","v":0},null,{"$f":"IF(SUM(AS$15:AS$17)>0,$M51,0)","v":0},null,{"$f":"IF(SUM(AU$15:AU$17)>0,$M51,0)","v":0},null,{"$f":"IF(SUM(AW$15:AW$17)>0,$M51,0)","v":0},null,{"$f":"IF(SUM(AY$15:AY$17)>0,$M51,0)","v":0},null,{"$f":"IF(SUM(BA$15:BA$17)>0,$M51,0)","v":0},null,{"$f":"IF(SUM(BC$15:BC$17)>0,$M51,0)","v":0},null,{"$f":"IF(SUM(BE$15:BE$17)>0,$M51,0)","v":0},null,{"$f":"IF(SUM(BG$15:BG$17)>0,$M51,0)","v":0},null,{"$f":"IF(SUM(BI$15:BI$17)>0,$M51,0)","v":0},null,{"$f":"IF(SUM(BK$15:BK$17)>0,$M51,0)","v":0},null,{"$f":"IF(SUM(BM$15:BM$17)>0,$M51,0)","v":0},null,{"$f":"IF(SUM(BO$15:BO$17)>0,$M51,0)","v":0},null,{"$f":"IF(SUM(BQ$15:BQ$17)>0,$M51,0)","v":0},null,{"$f":"IF(SUM(BS$15:BS$17)>0,$M51,0)","v":0},null,{"$f":"IF(SUM(BU$15:BU$17)>0,$M51,0)","v":0},null,{"$f":"IF(SUM(BW$15:BW$17)>0,$M51,0)","v":0},null,{"$f":"IF(SUM(BY$15:BY$17)>0,$M51,0)","v":0},null,{"$f":"IF(SUM(CA$15:CA$17)>0,$M51,0)","v":0},null,{"$f":"IF(SUM(CC$15:CC$17)>0,$M51,0)","v":0},null,{"$f":"IF(SUM(CE$15:CE$17)>0,$M51,0)","v":0},null,{"$f":"IF(SUM(CG$15:CG$17)>0,$M51,0)","v":0},null,{"$f":"IF(SUM(CI$15:CI$17)>0,$M51,0)","v":0},null,{"$f":"IF(SUM(CK$15:CK$17)>0,$M51,0)","v":0},null,{"$f":"IF(SUM(CM$15:CM$17)>0,$M51,0)","v":0},null,{"$f":"IF(SUM(CO$15:CO$17)>0,$M51,0)","v":0},null,{"$f":"IF(SUM(CQ$15:CQ$17)>0,$M51,0)","v":0},null,{"$f":"IF(SUM(CS$15:CS$17)>0,$M51,0)","v":0},null,{"$f":"IF(SUM(CU$15:CU$17)>0,$M51,0)","v":0},null,{"$f":"IF(SUM(CW$15:CW$17)>0,$M51,0)","v":0},null,{"$f":"IF(SUM(CY$15:CY$17)>0,$M51,0)","v":0},null,{"$f":"IF(SUM(DA$15:DA$17)>0,$M51,0)","v":0},null,{"$f":"IF(SUM(DC$15:DC$17)>0,$M51,0)","v":0},null,{"$f":"IF(SUM(DE$15:DE$17)>0,$M51,0)","v":0},null,{"$f":"IF(SUM(DG$15:DG$17)>0,$M51,0)","v":0},null,{"$f":"IF(SUM(DI$15:DI$17)>0,$M51,0)","v":0},null,{"$f":"IF(SUM(DK$15:DK$17)>0,$M51,0)","v":0},null,{"$f":"IF(SUM(DM$15:DM$17)>0,$M51,0)","v":0},null,{"$f":"IF(SUM(DO$15:DO$17)>0,$M51,0)","v":0},null,{"$f":"IF(SUM(DQ$15:DQ$17)>0,$M51,0)","v":0},null,{"$f":"IF(SUM(DS$15:DS$17)>0,$M51,0)","v":0},null,{"$f":"IF(SUM(DU$15:DU$17)>0,$M51,0)","v":0},null,{"$f":"IF(SUM(DW$15:DW$17)>0,$M51,0)","v":0},null,{"$f":"IF(SUM(DY$15:DY$17)>0,$M51,0)","v":0},null,{"$f":"IF(SUM(EA$15:EA$17)>0,$M51,0)","v":0},null,{"$f":"IF(SUM(EC$15:EC$17)>0,$M51,0)","v":0},null,{"$f":"IF(SUM(EE$15:EE$17)>0,$M51,0)","v":0}]
[null,null,null,null,null,null,null,null,null,null,null,"SOMATÓRIO TOTAL ANUAL - POR POSTO",{"$f":"M51*12","v":{"$error":"#DIV/0!"}}]
[]
[]
[null,null,"MATERIAL DE CONSUMO ASSOCIADO"]
[null,null,"MEMÓRIA DE CÁLCULO DO COEFICIENTE DE CORRELAÇÃO MANUTENÇÃO X DEPRECIAÇÃO (K)"]
[]
[null,null,"JUSTIFICATIVAS",null,"TIPO","K1",null,"Condições de Trab","K4",null,"Tempo Vida (anos)","K6",null,"Temperatura","K8"]
[null,null,null,null,"Guindaste",0.5,null,"Em espera",0.4,null,1,0.6,null,"Muito quente (> 40º C)",1.3]
[null,null,"K1","Arbitrado 1","Caminhão-comum",0.8,null,"Leves",0.8,null,2,0.7,null,"Quente (30º a 40º C)",1.1000000000000001]
[null,null,"K2","Considerado o operador médio","Fora-de-estrada",1,null,"Médias",1,null,3,0.8,null,"Médio (10º a 30º C)",1]
[null,null,"K3","Consideradas ferramentas de primeira qualidade","Carregadeira",1,null,"Pesadas",1.4,null,4,0.9,null,"Frio (< 10º C)",1.2]
[null,null,"K4","Consições leves","Escavadeira",1.4,null,"Severas",2,null,5,1]
[null,null,"K5","Considerando manutenção normal","Motoescrêiper",1.1000000000000001,null,null,null,null,6,1,null,"Ritmo de Trabalho","K9"]
[null,null,"K6","Equipamentos novos","Trator de esteira",1.2,null,"Manutenção","K5",null,7,1,null,"Folgado",0.9]
[null,null,"K7","220h por mês, 252 dias por ano",null,null,null,"Excelente",0.6,null,8,1.2,null,"Médio ",1]
[null,null,"K8","Clima quente, acima de 30º C","Qualid do Operador","K2",null,"Boa",0.8,null,9,1.3,null,"Com pressa",1.5]
[null,null,"K9","Ritmo de trabalho usualmente folgado","Excelente",0.8,null,"Média",1,null,10,1.4]
[null,null,"K10","Considerado o operador médio","Boa",0.9,null,"Ruim ",1.5,null,11,2,null,"Conh do Serviço","K10"]
[null,null,"K11","Foi considerada a opção de aluguel a terceiros, ainda que a simulação seja dos custos do contratado, contudo a execução dos serviços é em local de terceiros","Média",1,null,"Inexistente",3,null,15,2,null,"Grande ",0.8]
[null,null,null,null,"Ruim",1.2,null,null,null,null,null,null,null,"Médio     ",0.9]
[null,null,null,null,"Péssima",2,null,"Horas de Uso ","K7",6000,1,null,null,"Pouco ",1]
[null,null,null,null,null,null,null,1000,0.5,8000,1.3]
[null,null,null,null,"Qualidade do Equip","K3",null,2000,0.5,10000,1.6,null,null,"Tipo do Serviço","K11"]
[null,null,null,null,"De primeira",0.8,null,3000,0.6,12000,1.9,null,null,"Mina ou Pedreira",0.8]
[null,null,null,null,"Média",1,null,4000,0.7,15000,2.2999999999999998,null,null,"Construção Geral",1]
[null,null,null,null,"Ruim",1.5,null,5000,0.9,20000,3,null,null,"Aluguel a Terceiros",1.4]
[]
[null,null,null,null,"Fonte: "]
[null,null,null,null,"MATTOS, Aldo Dórea. Como preparar orçamentos de obras. São Paulo: Pini, 2006. 281 p., il"]

{"sheet":"Não Rel - Mat","index":22,"n_rows":118,"n_cols":13,"rows_kept":118,"cut":false,"hidden":true,"merged":[[9,1,9,4],[10,1,10,12]]}
[null,null,"CÂMARA DOS DEPUTADOS"]
[null,null,"DEPARTAMENTO TÉCNICO"]
[null,null,"Coordenação de Planejamento e Gestão"]
[]
[null,null,"Data:",{"$f":"'Dados Gerais'!#REF!","v":{"$error":"#REF!"}}]
[null,null,"Processo:",{"$f":"'Dados Gerais'!#REF!","v":{"$error":"#REF!"}}]
[null,null,"Objeto:",{"$f":"'Dados Gerais'!#REF!","v":{"$error":"#REF!"}}]
[]
[]
[]
[null,"MATERIAIS NÃO RELACIONADOS DIRETAMENTE A UM POSTO DE TRABALHO - AQUISIÇÃO SOB DEMANDA"]
[]
[]
[null,null,"ITEM","CÓDIGO","DESCRIÇÃO","QUANT ANUAL","UNIDADE","CUSTO UNITÁRIO","CUSTO TOTAL","BDI (%)","PREÇO TOTAL","FONTE","REFERÊNCIA"]
[]
[null,null,null,null,null,null,null,0,{"$f":"H16*F16","v":0},0,{"$f":"ROUND(I16*(1+J16),2)","v":0},"Cotação"]
[null,null,null,null,null,null,null,0,{"$f":"H17*F17","v":0},{"$f":"J16","v":0},{"$f":"ROUND(I17*(1+J17),2)","v":0},"Cotação"]
[null,null,null,null,null,null,null,0,0,{"$f":"J17","v":0},0,"Cotação"]
[null,null,null,null,null,null,null,0,0,0,0,"Cotação"]
[null,null,null,null,null,null,null,0,0,0,0,"Cotação"]
[null,null,null,null,null,null,null,0,0,0,0,"Cotação"]
[null,null,null,null,null,null,null,0,0,0,0,"Cotação"]
[null,null,null,null,null,null,null,0,0,0,0,"Cotação"]
[null,null,null,null,null,null,null,0,0,0,0,"Cotação"]
[null,null,null,null,null,null,null,0,0,0,0,"Cotação"]
[null,null,null,null,null,null,null,0,0,0,0,"Cotação"]
[null,null,null,null,null,null,null,0,0,0,0,"Cotação"]
[null,null,null,null,null,null,null,0,0,0,0,"Cotação"]
[null,null,null,null,null,null,null,0,0,0,0,"Cotação"]
[null,null,null,null,null,null,null,0,0,0,0,"Cotação"]
[null,null,null,null,null,null,null,0,0,0,0,"Cotação"]
[null,null,null,null,null,null,null,0,0,0,0,"Cotação"]
[null,null,null,null,null,null,null,0,0,0,0,"Cotação"]
[null,null,null,null,null,null,null,0,0,0,0,"Cotação"]
[null,null,null,null,null,null,null,0,0,0,0,"Cotação"]
[null,null,null,null,null,null,null,0,0,0,0,"Cotação"]
[null,null,null,null,null,null,null,0,0,0,0,"Cotação"]
[null,null,null,null,null,null,null,0,0,0,0,"Cotação"]
[null,null,null,null,null,null,null,0,0,0,0,"Cotação"]
[null,null,null,null,null,null,null,0,0,0,0,"Cotação"]
[null,null,null,null,null,null,null,0,0,0,0,"Cotação"]
[null,null,null,null,null,null,null,0,0,0,0,"Cotação"]
[null,null,null,null,null,null,null,0,0,0,0,"Cotação"]
[null,null,null,null,null,null,null,0,0,0,0,"Cotação"]
[null,null,null,null,null,null,null,0,0,0,0,"Cotação"]
[null,null,null,null,null,null,null,0,0,0,0,"Cotação"]
[null,null,null,null,null,null,null,0,0,0,0,"Cotação"]
[null,null,null,null,null,null,null,0,0,0,0,"Cotação"]
[null,null,null,null,null,null,null,0,{"$f":"H49*F49","v":0},0,{"$f":"ROUND(I49*(1+J49),2)","v":0},"Cotação"]
[null,null,null,null,null,null,null,0,{"$f":"H50*F50","v":0},0,{"$f":"ROUND(I50*(1+J50),2)","v":0},"Cotação"]
[null,null,null,null,null,null,null,0,0,0,0,"Cotação"]
[null,null,null,null,null,null,null,0,0,0,0,"Cotação"]
[null,null,null,null,null,null,null,0,0,0,0,"Cotação"]
[null,null,null,null,null,null,null,0,0,0,0,"Cotação"]
[null,null,null,null,null,null,null,0,0,0,0,"Cotação"]
[null,null,null,null,null,null,null,0,0,0,0,"Cotação"]
[null,null,null,null,null,null,null,0,0,0,0,"Cotação"]
[null,null,null,null,null,null,null,0,0,0,0,"Cotação"]
[null,null,null,null,null,null,null,0,0,0,0,"Cotação"]
[null,null,null,null,null,null,null,0,0,0,0,"Cotação"]
[null,null,null,null,null,null,null,0,0,0,0,"Cotação"]
[null,null,null,null,null,null,null,0,0,0,0,"Cotação"]
[null,null,null,null,null,null,null,0,0,0,0,"Cotação"]
[null,null,null,null,null,null,null,0,0,0,0,"Cotação"]
[null,null,null,null,null,null,null,0,0,0,0,"Cotação"]
[null,null,null,null,null,null,null,0,0,0,0,"Cotação"]
[null,null,null,null,null,null,null,0,0,0,0,"Cotação"]
[null,null,null,null,null,null,null,0,0,0,0,"Cotação"]
[null,null,null,null,null,null,null,0,0,0,0,"Cotação"]
[null,null,null,null,null,null,null,0,0,0,0,"Cotação"]
[null,null,null,null,null,null,null,0,0,0,0,"Cotação"]
[null,null,null,null,null,null,null,0,0,0,0,"Cotação"]
[null,null,null,null,null,null,null,0,0,0,0,"Cotação"]
[null,null,null,null,null,null,null,0,0,0,0,"Cotação"]
[null,null,null,null,null,null,null,0,0,0,0,"Cotação"]
[null,null,null,null,null,null,null,0,0,0,0,"Cotação"]
[null,null,null,null,null,null,null,0,0,0,0,"Cotação"]
[null,null,null,null,null,null,null,0,0,0,0,"Cotação"]
[null,null,null,null,null,null,null,0,0,0,0,"Cotação"]
[null,null,null,null,null,null,null,0,0,0,0,"Cotação"]
[null,null,null,null,null,null,null,0,0,0,0,"Cotação"]
[null,null,null,null,null,null,null,0,{"$f":"H82*F82","v":0},{"$f":"J81","v":0},{"$f":"ROUND(I82*(1+J82),2)","v":0},"Cotação"]
[null,null,null,null,null,null,null,0,{"$f":"H83*F83","v":0},0,{"$f":"ROUND(I83*(1+J83),2)","v":0},"Cotação"]
[null,null,null,null,null,null,null,0,0,0,0,"Cotação"]
[null,null,null,null,null,null,null,0,0,0,0,"Cotação"]
[null,null,null,null,null,null,null,0,0,0,0,"Cotação"]
[null,null,null,null,null,null,null,0,0,0,0,"Cotação"]
[null,null,null,null,null,null,null,0,0,0,0,"Cotação"]
[null,null,null,null,null,null,null,0,0,0,0,"Cotação"]
[null,null,null,null,null,null,null,0,0,0,0,"Cotação"]
[null,null,null,null,null,null,null,0,0,0,0,"Cotação"]
[null,null,null,null,null,null,null,0,0,0,0,"Cotação"]
[null,null,null,null,null,null,null,0,0,0,0,"Cotação"]
[null,null,null,null,null,null,null,0,0,0,0,"Cotação"]
[null,null,null,null,null,null,null,0,0,0,0,"Cotação"]
[null,null,null,null,null,null,null,0,0,0,0,"Cotação"]
[null,null,null,null,null,null,null,0,0,0,0,"Cotação"]
[null,null,null,null,null,null,null,0,0,0,0,"Cotação"]
[null,null,null,null,null,null,null,0,0,0,0,"Cotação"]
[null,null,null,null,null,null,null,0,0,0,0,"Cotação"]
[null,null,null,null,null,null,null,0,0,0,0,"Cotação"]
[null,null,null,null,null,null,null,0,0,0,0,"Cotação"]
[null,null,null,null,null,null,null,0,0,0,0,"Cotação"]
[null,null,null,null,null,null,null,0,0,0,0,"Cotação"]
[null,null,null,null,null,null,null,0,0,0,0,"Cotação"]
[null,null,null,null,null,null,null,0,0,0,0,"Cotação"]
[null,null,null,null,null,null,null,0,0,0,0,"Cotação"]
[null,null,null,null,null,null,null,0,0,0,0,"Cotação"]
[null,null,null,null,null,null,null,0,0,0,0,"Cotação"]
[null,null,null,null,null,null,null,0,0,0,0,"Cotação"]
[null,null,null,null,null,null,null,0,0,0,0,"Cotação"]
[null,null,null,null,null,null,null,0,0,0,0,"Cotação"]
[null,null,null,null,null,null,null,0,0,0,0,"Cotação"]
[null,null,null,null,null,null,null,0,{"$f":"H114*F114","v":0},0,{"$f":"ROUND(I114*(1+J114),2)","v":0},"Cotação"]
[null,null,null,null,null,null,null,0,0,0,0,"Cotação"]
[]
[null,null,null,null,null,null,null,null,null,"SOMATÓRIO TOTAL MENSAL",{"$f":"K118/12","v":0}]
[null,null,null,null,null,null,null,null,null,"SOMATÓRIO TOTAL ANUAL",{"$f":"SUM(K15:K116)","v":0}]

{"sheet":"Não Rel - Equip","index":23,"n_rows":50,"n_cols":13,"rows_kept":50,"cut":false,"hidden":true,"merged":[[9,1,9,4],[10,1,10,12]]}
[null,null,"CÂMARA DOS DEPUTADOS"]
[null,null,"DEPARTAMENTO TÉCNICO"]
[null,null,"Coordenação de Planejamento e Gestão"]
[]
[null,null,"Data:",{"$f":"'Dados Gerais'!#REF!","v":{"$error":"#REF!"}}]
[null,null,"Processo:",{"$f":"'Dados Gerais'!#REF!","v":{"$error":"#REF!"}}]
[null,null,"Objeto:",{"$f":"'Dados Gerais'!#REF!","v":{"$error":"#REF!"}}]
[]
[]
[]
[null,"MATERIAIS NÃO RELACIONADOS DIRETAMENTE A UM POSTO DE TRABALHO - AQUISIÇÃO SOB DEMANDA"]
[]
[]
[null,null,"ITEM","CÓDIGO","DESCRIÇÃO","QUANT ANUAL","UNIDADE","CUSTO UNITÁRIO","CUSTO TOTAL","BDI (%)","PREÇO TOTAL","FONTE","REFERÊNCIA"]
[]
[null,null,null,null,null,null,null,0,{"$f":"H16*F16","v":0},0,{"$f":"ROUND(I16*(1+J16),2)","v":0},"Cotação"]
[null,null,null,null,null,null,null,0,{"$f":"H17*F17","v":0},{"$f":"J16","v":0},{"$f":"ROUND(I17*(1+J17),2)","v":0},"Cotação"]
[null,null,null,null,null,null,null,0,0,{"$f":"J17","v":0},0,"Cotação"]
[null,null,null,null,null,null,null,0,0,0,0,"Cotação"]
[null,null,null,null,null,null,null,0,0,0,0,"Cotação"]
[null,null,null,null,null,null,null,0,0,0,0,"Cotação"]
[null,null,null,null,null,null,null,0,0,0,0,"Cotação"]
[null,null,null,null,null,null,null,0,0,0,0,"Cotação"]
[null,null,null,null,null,null,null,0,0,0,0,"Cotação"]
[null,null,null,null,null,null,null,0,0,0,0,"Cotação"]
[null,null,null,null,null,null,null,0,0,0,0,"Cotação"]
[null,null,null,null,null,null,null,0,0,0,0,"Cotação"]
[null,null,null,null,null,null,null,0,0,0,0,"Cotação"]
[null,null,null,null,null,null,null,0,0,0,0,"Cotação"]
[null,null,null,null,null,null,null,0,0,0,0,"Cotação"]
[null,null,null,null,null,null,null,0,0,0,0,"Cotação"]
[null,null,null,null,null,null,null,0,0,0,0,"Cotação"]
[null,null,null,null,null,null,null,0,0,0,0,"Cotação"]
[null,null,null,null,null,null,null,0,0,0,0,"Cotação"]
[null,null,null,null,null,null,null,0,0,0,0,"Cotação"]
[null,null,null,null,null,null,null,0,0,0,0,"Cotação"]
[null,null,null,null,null,null,null,0,0,0,0,"Cotação"]
[null,null,null,null,null,null,null,0,0,0,0,"Cotação"]
[null,null,null,null,null,null,null,0,0,0,0,"Cotação"]
[null,null,null,null,null,null,null,0,0,0,0,"Cotação"]
[null,null,null,null,null,null,null,0,0,0,0,"Cotação"]
[null,null,null,null,null,null,null,0,0,0,0,"Cotação"]
[null,null,null,null,null,null,null,0,0,0,0,"Cotação"]
[null,null,null,null,null,null,null,0,0,0,0,"Cotação"]
[null,null,null,null,null,null,null,0,0,0,0,"Cotação"]
[null,null,null,null,null,null,null,0,0,0,0,"Cotação"]
[null,null,null,null,null,null,null,0,0,0,0,"Cotação"]
[]
[null,null,null,null,null,null,null,null,null,"SOMATÓRIO TOTAL MENSAL",{"$f":"K50/12","v":0}]
[null,null,null,null,null,null,null,null,null,"SOMATÓRIO TOTAL ANUAL",{"$f":"SUM(K15:K48)","v":0}]

{"sheet":"Não Rel - Depr","index":24,"n_rows":91,"n_cols":15,"rows_kept":91,"cut":false,"hidden":true,"merged":[[9,1,9,3],[10,1,10,14]]}
[null,null,"CÂMARA DOS DEPUTADOS"]
[null,null,"DEPARTAMENTO TÉCNICO"]
[null,null,"Coordenação de Planejamento e Gestão"]
[]
[null,null,"Data:",{"$f":"'Dados Gerais'!#REF!","v":{"$error":"#REF!"}}]
[null,null,"Processo:",{"$f":"'Dados Gerais'!#REF!","v":{"$error":"#REF!"}}]
[null,null,"Objeto:",{"$f":"'Dados Gerais'!#REF!","v":{"$error":"#REF!"}}]
[]
[]
[]
[null,"MATERIAIS NÃO RELACIONADOS DIRETAMENTE A UM POSTO DE TRABALHO - PAGAMENTO DA DEPRECIAÇÃO / MANUTENÇÃO"]
[]
[]
[null,null,"PAGAMENTO DA DEPRECIAÇÃO"]
[null,null,"ITEM","DESCRIÇÃO","QUANT ANUAL","CONTA SIAFI","VALOR DE AQ.","% RESIDUAL","VIDA ÚTIL","DEP. MENSAL","CUSTO TOTAL","BDI (%)","PREÇO TOTAL","FONTE","REFERÊNCIA"]
[]
[null,null,1,null,null,null,null,0.1,10,{"$f":"G17*(1-H17)/(I17*12)","v":0},{"$f":"J17*E17","v":0},{"$f":"BDI!$E$26","v":0.26629999999999998},{"$f":"ROUND(K17*(1+L17),2)","v":0},"COTAÇÃO"]
[null,null,2,null,null,null,null,0.1,10,0,0,{"$f":"BDI!$E$26","v":0.26629999999999998},0,"COTAÇÃO"]
[null,null,3,null,null,null,null,0.1,10,0,0,{"$f":"BDI!$E$26","v":0.26629999999999998},0,"COTAÇÃO"]
[null,null,4,null,null,null,null,0.1,10,0,0,{"$f":"BDI!$E$26","v":0.26629999999999998},0,"COTAÇÃO"]
[null,null,5,null,null,null,null,0.1,10,0,0,{"$f":"BDI!$E$26","v":0.26629999999999998},0,"COTAÇÃO"]
[null,null,6,null,null,null,null,0.1,10,0,0,{"$f":"BDI!$E$26","v":0.26629999999999998},0,"COTAÇÃO"]
[null,null,7,null,null,null,null,0.1,10,0,0,{"$f":"BDI!$E$26","v":0.26629999999999998},0,"COTAÇÃO"]
[null,null,8,null,null,null,null,0.1,10,0,0,{"$f":"BDI!$E$26","v":0.26629999999999998},0,"COTAÇÃO"]
[null,null,9,null,null,null,null,0.1,10,0,0,{"$f":"BDI!$E$26","v":0.26629999999999998},0,"COTAÇÃO"]
[null,null,10,null,null,null,null,0.1,10,0,0,{"$f":"BDI!$E$26","v":0.26629999999999998},0,"COTAÇÃO"]
[null,null,11,null,null,null,null,0.1,10,0,0,{"$f":"BDI!$E$26","v":0.26629999999999998},0,"COTAÇÃO"]
[null,null,12,null,null,null,null,0.1,10,0,0,{"$f":"BDI!$E$26","v":0.26629999999999998},0,"COTAÇÃO"]
[null,null,13,null,null,null,null,0.1,10,0,0,{"$f":"BDI!$E$26","v":0.26629999999999998},0,"COTAÇÃO"]
[null,null,14,null,null,null,null,0.1,10,0,0,{"$f":"BDI!$E$26","v":0.26629999999999998},0,"COTAÇÃO"]
[null,null,15,null,null,null,null,0.1,10,0,0,{"$f":"BDI!$E$26","v":0.26629999999999998},0,"COTAÇÃO"]
[null,null,16,null,null,null,null,0.1,10,0,0,{"$f":"BDI!$E$26","v":0.26629999999999998},0,"COTAÇÃO"]
[null,null,17,null,null,null,null,0.1,10,{"$f":"G33*(1-H33)/(I33*12)","v":0},{"$f":"J33*E33","v":0},{"$f":"BDI!$E$26","v":0.26629999999999998},{"$f":"ROUND(K33*(1+L33),2)","v":0},"COTAÇÃO"]
[]
[]
[null,null,"PAGAMENTO DA MANUTENÇÃO"]
[null,null,"ITEM","DESCRIÇÃO",null,null,null,"K (calculado)","MENSAL DEPR.","% MAN X DEP","MENSAL MAN.","BDI (%)","PREÇO TOTAL"]
[]
[null,null,null,null,null,null,null,{"$f":"H46","v":0.59376239999999991},{"$f":"SUM(M17:M33)","v":0},{"$f":"H39","v":0.59376239999999991},{"$f":"I39*H39","v":0},{"$f":"L33","v":0.26629999999999998},{"$f":"ROUND(K39*(1+L39),2)","v":0}]
[]
[null,null,null,null,"K1","K2","K3","K4"]
[null,null,null,null,0.85,1,0.8,1.4]
[null,null,null,null,"K5","K6","K7","K8"]
[null,null,null,null,1,0.6,0.5,1.1000000000000001]
[null,null,null,null,"K9","K10","K11","RESULTADO"]
[null,null,null,"* a descrição de cada coeficiente segue abaixo",1.5,0.9,1.4,{"$f":"E42*F42*G42*H42*E44*F44*G44*H44*E46*F46*G46","v":0.59376239999999991}]
[]
[]
[null,null,"MATERIAL DE CONSUMO ASSOCIADO"]
[null,null,"ITEM","DESCRIÇÃO",null,null,null,"QUANTID/ANO","UNIDADE","VALOR DE AQ.","MENSAL MAT","BDI (%)","PREÇO TOTAL"]
[]
[null,null,null,null,null,null,null,null,null,null,{"$f":"J52*H52/12","v":0},{"$f":"BDI!E26","v":0.26629999999999998},{"$f":"ROUND(K52*(1+L52),2)","v":0}]
[]
[]
[null,null,"MATERIAL DE CONSUMO ASSOCIADO"]
[null,null,"ITEM","DESCRIÇÃO",null,null,null,null,null,null,null,null,"PREÇO TOTAL"]
[]
[null,null,1,"Componente DEPRECIAÇÃO",null,null,null,null,null,null,null,null,{"$f":"I39","v":0}]
[null,null,2,"Componente MANUTENÇÃO",null,null,null,null,null,null,null,null,{"$f":"M39","v":0}]
[null,null,3,"Componente MATERIAL DE CONSUMO ASSOCIADO",null,null,null,null,null,null,null,null,{"$f":"M52","v":0}]
[]
[null,null,null,null,null,null,null,null,null,null,null,"SOMATÓRIO TOTAL MENSAL",{"$f":"SUM(M57:M61)","v":0}]
[null,null,null,null,null,null,null,null,null,null,null,"SOMATÓRIO TOTAL ANUAL",{"$f":"M62*12","v":0}]
[]
[]
[null,null,"MATERIAL DE CONSUMO ASSOCIADO"]
[null,null,"MEMÓRIA DE CÁLCULO DO COEFICIENTE DE CORRELAÇÃO MANUTENÇÃO X DEPRECIAÇÃO (K)"]
[]
[null,null,"JUSTIFICATIVAS",null,"TIPO","K1",null,"Condições de Trab","K4",null,"Tempo Vida (anos)","K6",null,"Temperatura","K8"]
[null,null,null,null,"Guindaste",0.5,null,"Em espera",0.4,null,1,0.6,null,"Muito quente (> 40º C)",1.3]
[null,null,"K1","Considerado o valor médio de 0,85","Caminhão-comum",0.8,null,"Leves",0.8,null,2,0.7,null,"Quente (30º a 40º C)",1.1000000000000001]
[null,null,"K2","Considerado o operador médio","Fora-de-estrada",1,null,"Médias",1,null,3,0.8,null,"Médio (10º a 30º C)",1]
[null,null,"K3","Consideradas ferramentas de primeira qualidade","Carregadeira",1,null,"Pesadas",1.4,null,4,0.9,null,"Frio (< 10º C)",1.2]
[null,null,"K4","Há todo o tipo de trabalho, foi considerado o valor médio","Escavadeira",1.4,null,"Severas",2,null,5,1]
[null,null,"K5","Considerando manutenção normal","Motoescrêiper",1.1000000000000001,null,null,null,null,6,1,null,"Ritmo de Trabalho","K9"]
[null,null,"K6","Equipamentos novos","Trator de esteira",1.2,null,"Manutenção","K5",null,7,1,null,"Folgado",0.9]
[null,null,"K7","220h por mês, 252 dias por ano",null,null,null,"Excelente",0.6,null,8,1.2,null,"Médio ",1]
[null,null,"K8","Clima quente, acima de 30º C","Qualid do Operador","K2",null,"Boa",0.8,null,9,1.3,null,"Com pressa",1.5]
[null,null,"K9","Ritmo de trabalho usualmente com pressa","Excelente",0.8,null,"Média",1,null,10,1.4]
[null,null,"K10","Considerado o operador médio","Boa",0.9,null,"Ruim ",1.5,null,11,2,null,"Conh do Serviço","K10"]
[null,null,"K11","Foi considerada a opção de aluguel a terceiros, ainda que a simulação seja dos custos do contratado, contudo a execução dos serviços é em local de terceiros","Média",1,null,"Inexistente",3,null,15,2,null,"Grande ",0.8]
[null,null,null,null,"Ruim",1.2,null,null,null,null,null,null,null,"Médio     ",0.9]
[null,null,null,null,"Péssima",2,null,"Horas de Uso ","K7",6000,1,null,null,"Pouco ",1]
[null,null,null,null,null,null,null,1000,0.5,8000,1.3]
[null,null,null,null,"Qualidade do Equip","K3",null,2000,0.5,10000,1.6,null,null,"Tipo do Serviço","K11"]
[null,null,null,null,"De primeira",0.8,null,3000,0.6,12000,1.9,null,null,"Mina ou Pedreira",0.8]
[null,null,null,null,"Média",1,null,4000,0.7,15000,2.2999999999999998,null,null,"Construção Geral",1]
[null,null,null,null,"Ruim",1.5,null,5000,0.9,20000,3,null,null,"Aluguel a Terceiros",1.4]
[]
[null,null,null,null,"Fonte: "]
[null,null,null,null,"MATTOS, Aldo Dórea. Como preparar orçamentos de obras. São Paulo: Pini, 2006. 281 p., il"]